Workbook

Sheet Instructions
A1: Project Name: | C1: Reclaim Model - Overview of Program
B2: AEM Meliadine Gold 2015 | C2: All users are urged to read the Reclaim Model User Manual - Scroll down for overview description of program.
C3: Important! Reclaim 7.0 works better with no other excel files open.
C4: If other excel files are open ignore run time error and proceed
A5: Reclaim Menu | C5: The default Excel menu bar has an additional tab labelled "Add-Ins" that provides options specific to the Reclaim Model.
B6: Clear | C6: This option deletes all input data, deletes any duplicated elements and blanks out the project name. It also allows for segregation into land costs vs water costs if required.
B7: Duplicate | C7: This option Duplicates components of the project. E.g. if there is more than one Open Pit, use duplicate to add a second Open Pit. Quantities for the new Open Pit are erased, but the Activities and Cost Codes are carried over from the original Open Pit. The new Open Pit subtotal is added to the Summary page.
B8: Unit Costs | C8: This option opens a window of unit costs to provide easy reference. NOTE: the unit cost table has a filter in the 'UNITS' column. You can select to only see a particular unit (eg km) or multiple units (km and m3) or all units.
B9: Print All | C9: This option prints the Summary Worksheet, Unit Cost Worksheet, and the individual component worksheets having non-zero balances. Individual worksheets can be printed directly using standard printing methods, such as Ctl - P.
B10: Quit | C10: Select Quit to exit the program
B11: Help | C11: Redirects user to Instructions worksheet.
A13: WorkSheets
B14: Summary | C14: This worksheet contains a cumulative summary of costs for each component of the project. Associated costs such as engineering and project management are added as a percentage of the component costs.
B15: Components | C15: Costs are derived for individual closure and reclamation activities by multiplying a "quantity" of activity by a "unit cost". An activity can be edited, added, or deleted from worksheet. However, care should be taken not to modify cells that are defined and used elsewhere in the program.
C16: Do not change the content or column width of the first column of each component worksheet.
B17: Unit Costs | C17: This worksheet contains a look up table with costs for typical work associated with each closure and reclamation activity
A19: Limitations | C19: The Reclaim Program will NOT work if the worksheets are changed such that the following requirements are not met. Please review the following prior to modifiying worksheets.
B20: WorkSheet Names | C20: The names of the worksheets must not be changed.
B21: Defined Names | C21: Certain cells have defined names, which must not be changed. Where the cell is named, the name will appear in the "Name Box" to the left of the formula bar.
B22: First line of data | C22: The first line of data for any component worksheet starts on line 4. Do not change the first line of a component worksheet, ie the component name.
B23: Cell A1 | C23: Cell A1 on the component sheet MUST always contain the count of that component for the duplicate function to operate. DO NOT CHANGE.
B24: Adding Lines | C24: You can add lines to components and the unit cost table, as long as they are not the last lines. The last line might fall outside the named ranges. You can check the size of the named range by selecting the name from the drop down box at the top left of the sheet. Usually this box has a cell reference, or a name.
B25: Printing | C25: A component will only be printed if its sub-total is greater than zero. In addition, a component and the summary sheet cannot be printed if there is an error. Printing has been set to print 1 page per component.
A27: Conditions of Use | C27: The Reclamation Cost Estimating Model was prepared to serve as a guide for Government Agencies, mining companies, and others to estimate the cost of mine reclamation. This model is not intended to replace reclamation planning or to be used to determine the activities required to reclaim a site or to dictate how much should be spent on reclamation.
C29: Reclaim was prepared by Brodie Consulting Ltd. on behalf of AANDC. AANDC and Brodie Consulting Ltd. are not responsible for the completeness or accuracy of any reclamation estimate made using this model. The user agrees to check and take responsibility for all aspects of any cost estimate made using this model.
A31: The following table provides guidance as to whether water management and treatment is considered short term or long term. Short term closure activities
A32: may be costed within a component (eg 'Open Pit' or 'Rock Pile') or 'Water Management'. Long term or post-closure water treatment is costed in 'Water Treatment'.
D33: Short Term/ Capital Ex. | E33: Long term/ NPV
A34: Open Pit | C34: flood pit - install/operate pumping system | D34: x
C35: construct diversion ditches | D35: x
C36: treat 1st filling | D36: x
C37: install pump/decant system | D37: x
C38: passive/biological treatment | D38: x
C39: overflow treatment | E39: x
A40: Rock Pile/Heap Leach Facility | C40: construct diversion ditches | D40: x
C41: install groundwater collection system | D41: x
C42: install toe seepage collection system | D42: x
C43: collect and treat groundwater | E43: x
C44: collect and treat seepage (ARD/ML) | E44: x
C45: install passive treatment system | D45: x
C46: operate and maintain passive treatment system | E46: x
C47: operate pump and detoxify heap leach pile (cyanide destruction) | D47: x
A48: Tailings Facility | C48: construct diversion ditches | D48: x
C49: pump supernatant (to pit, U/G) | D49: x
C50: treat supernatant | D50: x
C51: install toe seepage collection system | D51: x
C52: collect and treat seepage (ARD/ML) | E52: x
C53: install passive treatment system | D53: x
C54: operate and maintain passive treatment system | E54: x
A55: U/G Mine | C55: accelerate flooding | D55: x
C56: install seepage collection system | D56: x
C57: install dewatering/pumping system | D57: x
C58: operate seepage/dewatering system (ARD/ML) | E58: x
A59: Water Management | C59: refill lakes
C60: redirect creeks/streams | D60: x
C61: stabilize water management ponds | D61: x
C62: stabilize/close sediment ponds | D62: x
C63: fresh water supply - breach embankment | D63: x
C64: fresh water supply - remove piping system | D64: x
C65: construct water treatment plant | D65: x
C66: construct sludge pond | D66: x
C67: water control in reclamation quarry | D67: x
C68: operate/maintain water treatment plant | E68: x

Sheet Summary
B1: SUMMARY OF COSTS
A3: CAPITAL COSTS | B3: COMPONENT NAME | D3: COST | F3: LAND LIABILITY | H3: WATER LIABILITY
A4: OPEN PIT | B4: =IF(ISBLANK('Open Pit'!$C$1),"",'Open Pit'!$C$1) -> Tiriganiaq Pit 1 | D4: =Pit1Total -> 2781688.965 | F4: =Pit1LandTotal -> 0 | H4: =Pit1WaterTotal -> 2781688.965
B5: =IF(ISBLANK('Open Pit'!$N$1),"",'Open Pit'!$N$1) -> Tiriganiaq Pit 2 | D5: ='Open Pit'!$S$65 -> 54435.51968 | F5: ='Open Pit'!$U$65 -> 0 | H5: ='Open Pit'!$V$65 -> 54435.51958
A6: UNDERGROUND MINE | B6: =IF(ISBLANK('UG Mine'!$B$1),"",'UG Mine'!$B$1) -> Tiriganiaq | D6: =UG1Total -> 969540.3098 | F6: =UG1LandTotal -> 0 | H6: =UG1WaterTotal -> 969540.3097
A7: TAILINGS FACILITY | B7: =IF(ISBLANK(Tailings!$C$1),"",Tailings!$C$1) -> Tailings Storage Facility | D7: =Tailings1Total -> 1489584.229 | F7: =Tailings1LandTotal -> 0 | H7: =Tailings1WaterTotal -> 1489584.229
A8: ROCK PILE | B8: =IF(ISBLANK('Rock Pile'!$C$1),"",'Rock Pile'!$C$1) -> Waste Rock Facility East | D8: =RP1Total -> 0.0001 | F8: =RP1LandTotal -> 0 | H8: =RP1WaterTotal -> 0
B9: =IF(ISBLANK('Rock Pile'!$N$1),"",'Rock Pile'!$N$1) -> Waste Rock Facility West | D9: ='Rock Pile'!$S$63 -> 0.0001 | F9: ='Rock Pile'!$U$63 -> 0 | H9: ='Rock Pile'!$V$63 -> 0
B10: =IF(ISBLANK('Rock Pile'!$Y$1),"",'Rock Pile'!$Y$1) -> Waste Rock Facility H19-H20 | D10: ='Rock Pile'!$AD$63 -> 0.0001 | F10: ='Rock Pile'!$AF$63 -> 0 | H10: ='Rock Pile'!$AG$63 -> 0
A11: BUILDINGS AND EQUIPMENT | B11: =IF(ISBLANK('Bldgs & Equip'!$C$1),"",'Bldgs & Equip'!$C$1) ->  | D11: =Bldg1Total -> 18916071.12 | F11: =Bldg1LandTotal -> 0 | H11: =Bldg1WaterTotal -> 18916071.12
A12: CHEMICALS AND CONTAMINATED SOIL MANAGEMENT | B12: =IF(ISBLANK(Chemicals!$B$1),"",Chemicals!$B$1) ->  | D12: =Chem1Total -> 1917861.483 | F12: =Chem1LandTotal -> 0 | H12: =Chem1WaterTotal -> 1917861.482
A13: SURFACE AND GROUNDWATER MANAGEMENT | B13: =IF(ISBLANK('Water Treatment'!$C$1),"",'Water Treatment'!$C$1) ->  | D13: =Water1Total -> 127050.0001 | F13: - | H13: =Water1Total -> 127050.0001
A14: INTERIM CARE AND MAINTENANCE | B14: =IF(ISBLANK(ICM!$C$1),"",ICM!$C$1) ->  | D14: =ICMTotal -> 1684380.139 | F14: - | H14: =ICMTotal -> 1684380.139
B15: SUBTOTAL: Capital Costs | D15: =SUM(D4:D14) -> 27940611.77 | F15: =SUM(F4:F14) -> 0 | H15: =SUM(H4:H14) -> 27940611.77
B16: PERCENT OF SUBTOTAL | F16: =IF(F15<0.01,0,F15/D15) -> 0 | H16: =IF(H15<0.01,0,H15/D15) -> 1
A18: INDIRECT COSTS | D18: COST | F18: LAND LIABILITY | H18: WATER LIABILITY
A19: MOBILIZATION/DEMOBILIZATION | B19: =IF(ISBLANK(Mobilization!$B$1),"",Mobilization!$B$1) ->  | D19: =MobTotal -> 9687952 | F19: =D19*$F$16 -> 0 | H19: =D19*$H$16 -> 9687952
A20: POST-CLOSURE MONITORING AND MAINTENANCE | B20: =IF(ISBLANK(PostClosure!$C$1),"",PostClosure!$C$1) ->  | D20: =PC1Total -> 879777.873 | F20: =D20*$F$16 -> 0 | H20: =D20*$H$16 -> 879777.873
A21: ENGINEERING | B21: 0.05 | D21: =B21*$D$15 -> 1397030.588 | F21: =+$F$16*D21 -> 0 | H21: =+$H$16*D21 -> 1397030.588
A22: PROJECT MANAGEMENT | B22: 0.05 | D22: 1397030.588 | F22: 0 | H22: 1397030.588
A23: HEALTH AND SAFETY PLANS/MONITORING & QA/QC | B23: 0.01 | D23: 279406.1177 | F23: 0 | H23: 279406.1177
A24: BONDING/INSURANCE | B24: 0.01 | D24: 279406.1177 | F24: 0 | H24: 279406.1177
A25: CONTINGENCY | B25: 0.2 | D25: 5588122.353 | F25: 0 | H25: 5588122.353
A26: MARKET PRICE FACTOR ADJUSTMENT | B26: 0 | D26: 0 | F26: 0 | H26: 0
B27: SUBTOTAL: Indirect Costs | D27: =SUM(D19:D26) -> 19508725.64 | F27: =SUM(F19:F26) -> 0 | H27: =SUM(H19:H26) -> 19508725.64
A29: TOTAL COSTS | D29: =D15+D27 -> 47449337.41 | F29: =F15+F27 -> 0 | H29: =H15+H27 -> 47449337.4

Sheet Open Pit
A1: 2 | B1: Open Pit Name: | C1: Tiriganiaq Pit 1 | G1: Pit # | H1: 1 | M1: Open Pit Name: | N1: Tiriganiaq Pit 2 | R1: Pit # | S1: =H1+1 -> 2
B3: ACTIVITY/MATERIAL | C3: Notes | D3: Units | E3: Quantity | F3: Cost Code | G3: Unit Cost | H3: Cost | I3: % Land | J3: Land Cost | K3: Water Cost | M3: ACTIVITY/MATERIAL | N3: Notes | O3: Units | P3: Quantity | Q3: Cost Code | R3: Unit Cost | S3: Cost | T3: % Land | U3: Land Cost | V3: Water Cost
B4: CONTROL ACCESS | M4: CONTROL ACCESS
B5: Fence | D5: m | F5: =NA() ->  | G5: =IF(ISNA(F5),0,INDEX(IF(UPPER(RIGHT(F5,1))=Low,UnitCostLow, IF(UPPER(RIGHT(F5,1))=High,UnitCostHigh,UnitCostSpecified)),MATCH(UPPER(LEFT(F5,LEN(F5)-1)),CostCode,0))) -> 0 | H5: =G5*E5 -> 0 | J5: =H5*I5 -> 0 | K5: =H5*(1-I5) -> 0 | M5: Fence | O5: m | Q5: =NA() ->  | R5: =IF(ISNA(Q5),0,INDEX(IF(UPPER(RIGHT(Q5,1))=Low,UnitCostLow, IF(UPPER(RIGHT(Q5,1))=High,UnitCostHigh,UnitCostSpecified)),MATCH(UPPER(LEFT(Q5,LEN(Q5)-1)),CostCode,0))) -> 0 | S5: =R5*P5 -> 0 | U5: =S5*T5 -> 0 | V5: =S5*(1-T5) -> 0
B6: Signs | D6: each | E6: 15 | F6: SH | G6: 37.079856 | H6: =G6*E6 -> 556.19784 | J6: =H6*I6 -> 0 | K6: =H6*(1-I6) -> 556.19784 | M6: Signs | O6: each | P6: 5 | Q6: SH | R6: 37.079856 | S6: =R6*P6 -> 185.39928 | U6: 0 | V6: 185.39928
B7: Berm at crest | D7: m3 | E7: =2795*1*2 -> 5590 | F7: RB1H | G7: 17.05 | H7: =G7*E7 -> 95309.5 | J7: 0 | K7: 95309.5 | M7: Berm at crest | O7: m3 | P7: =1188*1*2 -> 2376 | Q7: RB1H | R7: 17.05 | S7: =R7*P7 -> 40510.8 | U7: 0 | V7: 40510.8
B8: Block roads | D8: m3 | E8: =3*3*1.14*40 -> 410.4 | F8: RB1H | G8: 17.05 | H8: =G8*E8 -> 6997.32 | J8: 0 | K8: 6997.32 | M8: Block roads | O8: m3 | P8: =3*3*1.14*40 -> 410.4 | Q8: RB1H | R8: 17.05 | S8: =R8*P8 -> 6997.32 | U8: 0 | V8: 6997.32
B9: Other | F9: =NA() ->  | G9: =IF(ISNA(F9),0,INDEX(IF(UPPER(RIGHT(F9,1))=Low,UnitCostLow, IF(UPPER(RIGHT(F9,1))=High,UnitCostHigh,UnitCostSpecified)),MATCH(UPPER(LEFT(F9,LEN(F9)-1)),CostCode,0))) -> 0 | H9: =G9*E9 -> 0 | J9: =H9*I9 -> 0 | K9: =H9*(1-I9) -> 0 | M9: Other | Q9: =NA() ->  | R9: =IF(ISNA(Q9),0,INDEX(IF(UPPER(RIGHT(Q9,1))=Low,UnitCostLow, IF(UPPER(RIGHT(Q9,1))=High,UnitCostHigh,UnitCostSpecified)),MATCH(UPPER(LEFT(Q9,LEN(Q9)-1)),CostCode,0))) -> 0 | S9: =R9*P9 -> 0 | U9: =S9*T9 -> 0 | V9: =S9*(1-T9) -> 0
B10: STABILITY STUDY | M10: STABILITY STUDY
B11: Conduct stability and setback study | D11: allow | F11: =NA() ->  | G11: =IF(ISNA(F11),0,INDEX(IF(UPPER(RIGHT(F11,1))=Low,UnitCostLow, IF(UPPER(RIGHT(F11,1))=High,UnitCostHigh,UnitCostSpecified)),MATCH(UPPER(LEFT(F11,LEN(F11)-1)),CostCode,0))) -> 0 | H11: =G11*E11 -> 0 | J11: =H11*I11 -> 0 | K11: =H11*(1-I11) -> 0 | M11: Conduct stability and setback study | O11: allow | Q11: =NA() ->  | R11: =IF(ISNA(Q11),0,INDEX(IF(UPPER(RIGHT(Q11,1))=Low,UnitCostLow, IF(UPPER(RIGHT(Q11,1))=High,UnitCostHigh,UnitCostSpecified)),MATCH(UPPER(LEFT(Q11,LEN(Q11)-1)),CostCode,0))) -> 0 | S11: =R11*P11 -> 0 | U11: =S11*T11 -> 0 | V11: =S11*(1-T11) -> 0
B12: STABILIZE SLOPES | M12: STABILIZE SLOPES
B13: Off-load crest, soil A | D13: m3 | F13: =NA() ->  | G13: 0 | H13: =G13*E13 -> 0 | J13: 0 | K13: 0 | M13: Off-load crest, soil A | O13: m3 | Q13: =NA() ->  | R13: =IF(ISNA(Q13),0,INDEX(IF(UPPER(RIGHT(Q13,1))=Low,UnitCostLow, IF(UPPER(RIGHT(Q13,1))=High,UnitCostHigh,UnitCostSpecified)),MATCH(UPPER(LEFT(Q13,LEN(Q13)-1)),CostCode,0))) -> 0 | S13: =R13*P13 -> 0 | U13: =S13*T13 -> 0 | V13: =S13*(1-T13) -> 0
B14: Off-load crest, soil B | D14: m3 | F14: =NA() ->  | G14: 0 | H14: 0 | J14: 0 | K14: 0 | M14: Off-load crest, soil B | O14: m3 | Q14: =NA() ->  | R14: 0 | S14: 0 | U14: 0 | V14: 0
B15: Doze/trim overburden at crest | D15: m3 | F15: =NA() ->  | G15: 0 | H15: 0 | J15: 0 | K15: 0 | M15: Doze/trim overburden at crest | O15: m3 | Q15: =NA() ->  | R15: 0 | S15: 0 | U15: 0 | V15: 0
B16: Drill & blast pit crest | D16: m3 | F16: =NA() ->  | G16: 0 | H16: 0 | J16: 0 | K16: 0 | M16: Drill & blast pit crest | O16: m3 | Q16: =NA() ->  | R16: 0 | S16: 0 | U16: 0 | V16: 0
B17: Buttress slope | D17: m3 | F17: =NA() ->  | G17: 0 | H17: 0 | J17: 0 | K17: 0 | M17: Buttress slope | O17: m3 | Q17: =NA() ->  | R17: 0 | S17: 0 | U17: 0 | V17: 0
B18: Other | F18: =NA() ->  | G18: 0 | H18: 0 | J18: 0 | K18: 0 | M18: Other | Q18: =NA() ->  | R18: 0 | S18: 0 | U18: 0 | V18: 0
B19: COVER/CONTOUR SLOPES | M19: COVER/CONTOUR SLOPES
B20: Place fill, soil A | D20: m3 | F20: =NA() ->  | G20: 0 | H20: =G20*E20 -> 0 | J20: 0 | K20: 0 | M20: Place fill, soil A | O20: m3 | Q20: =NA() ->  | R20: =IF(ISNA(Q20),0,INDEX(IF(UPPER(RIGHT(Q20,1))=Low,UnitCostLow, IF(UPPER(RIGHT(Q20,1))=High,UnitCostHigh,UnitCostSpecified)),MATCH(UPPER(LEFT(Q20,LEN(Q20)-1)),CostCode,0))) -> 0 | S20: =R20*P20 -> 0 | U20: =S20*T20 -> 0 | V20: =S20*(1-T20) -> 0
B21: Place fill, soil B | D21: m3 | F21: =NA() ->  | G21: 0 | H21: 0 | J21: 0 | K21: 0 | M21: Place fill, soil B | O21: m3 | Q21: =NA() ->  | R21: 0 | S21: 0 | U21: 0 | V21: 0
B22: Rip rap | D22: m3 | F22: =NA() ->  | G22: 0 | H22: 0 | J22: 0 | K22: 0 | M22: Rip rap | O22: m3 | Q22: =NA() ->  | R22: 0 | S22: 0 | U22: 0 | V22: 0
B23: Vegetate slopes | D23: ha | F23: =NA() ->  | G23: 0 | H23: 0 | J23: 0 | K23: 0 | M23: Vegetate slopes | O23: ha | Q23: =NA() ->  | R23: 0 | S23: 0 | U23: 0 | V23: 0
B24: Vegetate pit floor | D24: ha | F24: =NA() ->  | G24: 0 | H24: 0 | J24: 0 | K24: 0 | M24: Vegetate pit floor | O24: ha | Q24: =NA() ->  | R24: 0 | S24: 0 | U24: 0 | V24: 0
B25: Other | F25: =NA() ->  | G25: 0 | H25: 0 | J25: 0 | K25: 0 | M25: Other | Q25: =NA() ->  | R25: 0 | S25: 0 | U25: 0 | V25: 0
B26: CONSTRUCT DIVERSION DITCHES | M26: CONSTRUCT DIVERSION DITCHES
B27: Excavate ditches -soil | D27: m3 | F27: =NA() ->  | G27: =IF(ISNA(F27),0,INDEX(IF(UPPER(RIGHT(F27,1))=Low,UnitCostLow, IF(UPPER(RIGHT(F27,1))=High,UnitCostHigh,UnitCostSpecified)),MATCH(UPPER(LEFT(F27,LEN(F27)-1)),CostCode,0))) -> 0 | H27: =G27*E27 -> 0 | J27: =H27*I27 -> 0 | K27: =H27*(1-I27) -> 0 | M27: Excavate ditches -soil | O27: m3 | Q27: =NA() ->  | R27: =IF(ISNA(Q27),0,INDEX(IF(UPPER(RIGHT(Q27,1))=Low,UnitCostLow, IF(UPPER(RIGHT(Q27,1))=High,UnitCostHigh,UnitCostSpecified)),MATCH(UPPER(LEFT(Q27,LEN(Q27)-1)),CostCode,0))) -> 0 | S27: =R27*P27 -> 0 | U27: =S27*T27 -> 0 | V27: =S27*(1-T27) -> 0
B28: Excavate ditches -rock | D28: m3 | F28: =NA() ->  | G28: =IF(ISNA(F28),0,INDEX(IF(UPPER(RIGHT(F28,1))=Low,UnitCostLow, IF(UPPER(RIGHT(F28,1))=High,UnitCostHigh,UnitCostSpecified)),MATCH(UPPER(LEFT(F28,LEN(F28)-1)),CostCode,0))) -> 0 | H28: =G28*E28 -> 0 | J28: 0 | K28: 0 | M28: Excavate ditches -rock | O28: m3 | Q28: =NA() ->  | R28: =IF(ISNA(Q28),0,INDEX(IF(UPPER(RIGHT(Q28,1))=Low,UnitCostLow, IF(UPPER(RIGHT(Q28,1))=High,UnitCostHigh,UnitCostSpecified)),MATCH(UPPER(LEFT(Q28,LEN(Q28)-1)),CostCode,0))) -> 0 | S28: =R28*P28 -> 0 | U28: 0 | V28: 0
B29: Rip rap in channel base | D29: m3 | F29: =NA() ->  | G29: =IF(ISNA(F29),0,INDEX(IF(UPPER(RIGHT(F29,1))=Low,UnitCostLow, IF(UPPER(RIGHT(F29,1))=High,UnitCostHigh,UnitCostSpecified)),MATCH(UPPER(LEFT(F29,LEN(F29)-1)),CostCode,0))) -> 0 | H29: =G29*E29 -> 0 | J29: 0 | K29: 0 | M29: Rip rap in channel base | O29: m3 | Q29: =NA() ->  | R29: =IF(ISNA(Q29),0,INDEX(IF(UPPER(RIGHT(Q29,1))=Low,UnitCostLow, IF(UPPER(RIGHT(Q29,1))=High,UnitCostHigh,UnitCostSpecified)),MATCH(UPPER(LEFT(Q29,LEN(Q29)-1)),CostCode,0))) -> 0 | S29: =R29*P29 -> 0 | U29: 0 | V29: 0
B30: CONSTRUCT SPILLWAY | M30: CONSTRUCT SPILLWAY
B31: Excavate channel (soil A) | F31: =NA() ->  | H31: =G31*E31 -> 0 | J31: 0 | K31: 0 | M31: Excavate channel (soil A) | O31: m | Q31: =NA() ->  | S31: =R31*P31 -> 0 | U31: =S31*T31 -> 0 | V31: =S31*(1-T31) -> 0
B32: Concrete | D32: m3 | F32: =NA() ->  | G32: 0 | H32: =G32*E32 -> 0 | J32: 0 | K32: 0 | M32: Concrete | O32: m3 | Q32: =NA() ->  | R32: =IF(ISNA(Q32),0,INDEX(IF(UPPER(RIGHT(Q32,1))=Low,UnitCostLow, IF(UPPER(RIGHT(Q32,1))=High,UnitCostHigh,UnitCostSpecified)),MATCH(UPPER(LEFT(Q32,LEN(Q32)-1)),CostCode,0))) -> 0 | S32: =R32*P32 -> 0 | U32: 0 | V32: 0
B33: Rip rap | D33: m3 | F33: =NA() ->  | G33: 0 | H33: =G33*E33 -> 0 | J33: 0 | K33: 0 | M33: Rip rap | O33: m3 | Q33: =NA() ->  | R33: 0 | S33: =R33*P33 -> 0 | U33: 0 | V33: 0
B34: Other | F34: =NA() ->  | G34: 0 | H34: =G34*E34 -> 0 | J34: 0 | K34: 0 | M34: Other | Q34: =NA() ->  | R34: 0 | S34: =R34*P34 -> 0 | U34: 0 | V34: 0
B35: RECLAIM QUARRIES | M35: RECLAIM QUARRIES
B36: Contour slopes | D36: m3 | F36: =NA() ->  | G36: =IF(ISNA(F36),0,INDEX(IF(UPPER(RIGHT(F36,1))=Low,UnitCostLow, IF(UPPER(RIGHT(F36,1))=High,UnitCostHigh,UnitCostSpecified)),MATCH(UPPER(LEFT(F36,LEN(F36)-1)),CostCode,0))) -> 0 | H36: =G36*E36 -> 0 | J36: =H36*I36 -> 0 | K36: =H36*(1-I36) -> 0 | M36: Contour slopes | O36: m3 | Q36: =NA() ->  | R36: =IF(ISNA(Q36),0,INDEX(IF(UPPER(RIGHT(Q36,1))=Low,UnitCostLow, IF(UPPER(RIGHT(Q36,1))=High,UnitCostHigh,UnitCostSpecified)),MATCH(UPPER(LEFT(Q36,LEN(Q36)-1)),CostCode,0))) -> 0 | S36: =R36*P36 -> 0 | U36: =S36*T36 -> 0 | V36: =S36*(1-T36) -> 0
B37: Place overburden | D37: m3 | F37: =NA() ->  | G37: =IF(ISNA(F37),0,INDEX(IF(UPPER(RIGHT(F37,1))=Low,UnitCostLow, IF(UPPER(RIGHT(F37,1))=High,UnitCostHigh,UnitCostSpecified)),MATCH(UPPER(LEFT(F37,LEN(F37)-1)),CostCode,0))) -> 0 | H37: =G37*E37 -> 0 | J37: =H37*I37 -> 0 | K37: =H37*(1-I37) -> 0 | M37: Place overburden | O37: m3 | Q37: =NA() ->  | R37: =IF(ISNA(Q37),0,INDEX(IF(UPPER(RIGHT(Q37,1))=Low,UnitCostLow, IF(UPPER(RIGHT(Q37,1))=High,UnitCostHigh,UnitCostSpecified)),MATCH(UPPER(LEFT(Q37,LEN(Q37)-1)),CostCode,0))) -> 0 | S37: =R37*P37 -> 0 | U37: =S37*T37 -> 0 | V37: =S37*(1-T37) -> 0
B38: Vegetate | D38: m3 | F38: =NA() ->  | G38: =IF(ISNA(F38),0,INDEX(IF(UPPER(RIGHT(F38,1))=Low,UnitCostLow, IF(UPPER(RIGHT(F38,1))=High,UnitCostHigh,UnitCostSpecified)),MATCH(UPPER(LEFT(F38,LEN(F38)-1)),CostCode,0))) -> 0 | H38: =G38*E38 -> 0 | J38: =H38*I38 -> 0 | K38: =H38*(1-I38) -> 0 | M38: Vegetate | O38: m3 | Q38: =NA() ->  | R38: =IF(ISNA(Q38),0,INDEX(IF(UPPER(RIGHT(Q38,1))=Low,UnitCostLow, IF(UPPER(RIGHT(Q38,1))=High,UnitCostHigh,UnitCostSpecified)),MATCH(UPPER(LEFT(Q38,LEN(Q38)-1)),CostCode,0))) -> 0 | S38: =R38*P38 -> 0 | U38: =S38*T38 -> 0 | V38: =S38*(1-T38) -> 0
B39: FLOOD PIT-Captital | M39: FLOOD PIT-Captital
B40: Remove stationary equipment (sump pumps) | D40: each | E40: 1 | F40: PRH | G40: 6742 | H40: =G40*E40 -> 6742 | J40: 0 | K40: 6742 | M40: Remove stationary equipment (sump pumps) | O40: each | P40: 1 | Q40: PRH | R40: =IF(ISNA(Q40),0,INDEX(IF(UPPER(RIGHT(Q40,1))=Low,UnitCostLow, IF(UPPER(RIGHT(Q40,1))=High,UnitCostHigh,UnitCostSpecified)),MATCH(UPPER(LEFT(Q40,LEN(Q40)-1)),CostCode,0))) -> 6742 | S40: =R40*P40 -> 6742 | U40: =S40*T40 -> 0 | V40: =S40*(1-T40) -> 6742
B41: Remove dewatering pipeline | D41: m | F41: =NA() ->  | G41: =IF(ISNA(F41),0,INDEX(IF(UPPER(RIGHT(F41,1))=Low,UnitCostLow, IF(UPPER(RIGHT(F41,1))=High,UnitCostHigh,UnitCostSpecified)),MATCH(UPPER(LEFT(F41,LEN(F41)-1)),CostCode,0))) -> 0 | H41: =G41*E41 -> 0 | J41: =H41*I41 -> 0 | K41: =H41*(1-I41) -> 0 | M41: Remove dewatering pipeline | O41: m | Q41: =NA() ->  | R41: =IF(ISNA(Q41),0,INDEX(IF(UPPER(RIGHT(Q41,1))=Low,UnitCostLow, IF(UPPER(RIGHT(Q41,1))=High,UnitCostHigh,UnitCostSpecified)),MATCH(UPPER(LEFT(Q41,LEN(Q41)-1)),CostCode,0))) -> 0 | S41: =R41*P41 -> 0 | U41: =S41*T41 -> 0 | V41: =S41*(1-T41) -> 0
B42: Remove power lines | D42: each | F42: =NA() ->  | G42: 0 | H42: 0 | J42: 0 | K42: 0 | M42: Remove power lines | O42: each | Q42: =NA() ->  | R42: =IF(ISNA(Q42),0,INDEX(IF(UPPER(RIGHT(Q42,1))=Low,UnitCostLow, IF(UPPER(RIGHT(Q42,1))=High,UnitCostHigh,UnitCostSpecified)),MATCH(UPPER(LEFT(Q42,LEN(Q42)-1)),CostCode,0))) -> 0 | S42: =R42*P42 -> 0 | U42: =S42*T42 -> 0 | V42: =S42*(1-T42) -> 0
B43: Construct diversion ditches | D43: m3 | F43: =NA() ->  | G43: =IF(ISNA(F43),0,INDEX(IF(UPPER(RIGHT(F43,1))=Low,UnitCostLow, IF(UPPER(RIGHT(F43,1))=High,UnitCostHigh,UnitCostSpecified)),MATCH(UPPER(LEFT(F43,LEN(F43)-1)),CostCode,0))) -> 0 | H43: =G43*E43 -> 0 | J43: =H43*I43 -> 0 | K43: =H43*(1-I43) -> 0 | M43: Construct diversion ditches | O43: m3 | Q43: =NA() ->  | R43: 0 | S43: 0 | U43: 0 | V43: 0
B44: -Ditch, mat'l A | D44: m3 | F44: =NA() ->  | G44: 0 | H44: =G44*E44 -> 0 | J44: 0 | K44: =+H44*(1-I44) -> 0 | M44: -Ditch, mat'l A | O44: m3 | Q44: =NA() ->  | R44: 0 | S44: =R44*P44 -> 0 | U44: 0 | V44: =+S44*(1-T44) -> 0
B45: -Ditch, mat'l B | D45: m3 | F45: =NA() ->  | G45: 0 | H45: =G45*E45 -> 0 | J45: 0 | K45: 0 | M45: -Ditch, mat'l B | O45: m3 | Q45: =NA() ->  | R45: 0 | S45: =R45*P45 -> 0 | U45: 0 | V45: 0
B46: Construct embankment/dam | D46: m3 | F46: =NA() ->  | G46: 0 | H46: 0 | J46: 0 | K46: 0 | M46: Construct embankment/dam | O46: m3 | Q46: =NA() ->  | R46: 0 | S46: =R46*P46 -> 0 | U46: 0 | V46: =S46*(1-T46) -> 0
B47: Supply/install pump station & piping system | D47: each | E47: 1 | F47: AEM | G47: 350000 | H47: 350000 | J47: 0 | K47: 350000
B48: Supply/install piping system | D48: m | G48: =IF(ISNA(F48),0,INDEX(IF(UPPER(RIGHT(F48,1))=Low,UnitCostLow, IF(UPPER(RIGHT(F48,1))=High,UnitCostHigh,UnitCostSpecified)),MATCH(UPPER(LEFT(F48,LEN(F48)-1)),CostCode,0))) -> 0 | H48: =G48*E48 -> 0 | J48: =H48*I48 -> 0 | K48: =H48*(1-I48) -> 0 | M48: Supply/install piping system | O48: m | Q48: =NA() ->  | R48: =IF(ISNA(Q48),0,INDEX(IF(UPPER(RIGHT(Q48,1))=Low,UnitCostLow, IF(UPPER(RIGHT(Q48,1))=High,UnitCostHigh,UnitCostSpecified)),MATCH(UPPER(LEFT(Q48,LEN(Q48)-1)),CostCode,0))) -> 0 | S48: 0 | U48: 0 | V48: 0
B49: Supply - install pump to flood | D49: each | E49: 1 | F49: PF | G49: 350000 | H49: 350000 | J49: 0 | K49: 350000 | M49: Supply - install pump to flood | O49: each | P49: 1 | Q49: PF | R49: 0 | S49: 0 | U49: 0 | V49: 0
B50: Remove pump post-closure | D50: each | F50: =NA() ->  | G50: =IF(ISNA(F50),0,INDEX(IF(UPPER(RIGHT(F50,1))=Low,UnitCostLow, IF(UPPER(RIGHT(F50,1))=High,UnitCostHigh,UnitCostSpecified)),MATCH(UPPER(LEFT(F50,LEN(F50)-1)),CostCode,0))) -> 0 | H50: =G50*E50 -> 0 | J50: =H50*I50 -> 0 | K50: =H50*(1-I50) -> 0 | M50: Remove pump post-closure | O50: each | Q50: =NA() ->  | R50: 0 | S50: 0 | U50: 0 | V50: 0
B51: Remove pipeline post-closure | D51: m | F51: =NA() ->  | G51: =IF(ISNA(F51),0,INDEX(IF(UPPER(RIGHT(F51,1))=Low,UnitCostLow, IF(UPPER(RIGHT(F51,1))=High,UnitCostHigh,UnitCostSpecified)),MATCH(UPPER(LEFT(F51,LEN(F51)-1)),CostCode,0))) -> 0 | H51: =G51*E51 -> 0 | J51: =H51*I51 -> 0 | K51: =H51*(1-I51) -> 0 | M51: Remove pipeline post-closure | O51: m | Q51: =NA() ->  | R51: 0 | S51: 0 | U51: 0 | V51: 0
B52: FLOOD PIT-Annual Cost | M52: FLOOD PIT-Annual Cost
B53: Operate Pumps to flood pit | C53: lower fuel | D53: each | E53: 1 | F53: MBK | G53: 558940.3156 | H53: =G53*E53 -> 558940.3156 | J53: =H53*I53 -> 0 | K53: =H53*(1-I53) -> 558940.3156
B54: Operate pumps (power) | D54: m3 | G54: 0 | H54: 0 | J54: 0 | K54: =H54*(1-I54) -> 0 | M54: Operate pumps (power) | O54: m3 | Q54: POCL | R54: =IF(ISNA(Q54),0,INDEX(IF(UPPER(RIGHT(Q54,1))=Low,UnitCostLow, IF(UPPER(RIGHT(Q54,1))=High,UnitCostHigh,UnitCostSpecified)),MATCH(UPPER(LEFT(Q54,LEN(Q54)-1)),CostCode,0))) -> 0.12 | S54: =R54*P54 -> 0 | U54: =S54*T54 -> 0 | V54: =S54*(1-T54) -> 0
B55: Maintain pump/pipeline | D55: allow | F55: =NA() ->  | G55: =IF(ISNA(F55),0,INDEX(IF(UPPER(RIGHT(F55,1))=Low,UnitCostLow, IF(UPPER(RIGHT(F55,1))=High,UnitCostHigh,UnitCostSpecified)),MATCH(UPPER(LEFT(F55,LEN(F55)-1)),CostCode,0))) -> 0 | H55: =G55*E55 -> 0 | J55: =H55*I55 -> 0 | K55: =H55*(1-I55) -> 0 | M55: Maintain pump/pipeline | O55: allow | Q55: =NA() ->  | R55: =IF(ISNA(Q55),0,INDEX(IF(UPPER(RIGHT(Q55,1))=Low,UnitCostLow, IF(UPPER(RIGHT(Q55,1))=High,UnitCostHigh,UnitCostSpecified)),MATCH(UPPER(LEFT(Q55,LEN(Q55)-1)),CostCode,0))) -> 0 | S55: 0 | U55: 0 | V55: =S55*(1-T55) -> 0
B56: Labour:fuel management, comissioning/decom | D56: $/h | F56: =NA() ->  | G56: =IF(ISNA(F56),0,INDEX(IF(UPPER(RIGHT(F56,1))=Low,UnitCostLow, IF(UPPER(RIGHT(F56,1))=High,UnitCostHigh,UnitCostSpecified)),MATCH(UPPER(LEFT(F56,LEN(F56)-1)),CostCode,0))) -> 0 | H56: =G56*E56 -> 0 | J56: =H56*I56 -> 0 | K56: =H56*(1-I56) -> 0 | M56: Labour:fuel management, comissioning/decom | O56: $/h | Q56: =NA() ->  | R56: 0 | S56: 0 | U56: 0 | V56: 0
B57: Chemical addition, _____ kg/m3 of water | D57: tonne | F57: =NA() ->  | G57: 0 | H57: 0 | J57: 0 | K57: 0 | M57: Chemical addition, _____ kg/m3 of water | O57: tonne | Q57: =NA() ->  | R57: 0 | S57: 0 | U57: 0 | V57: 0
B58: Chemicals, purchase and shipping | D58: tonne | F58: =NA() ->  | G58: 0 | H58: 0 | J58: 0 | K58: 0 | M58: Chemicals, purchase and shipping | O58: tonne | Q58: =NA() ->  | R58: 0 | S58: 0 | U58: 0 | V58: 0
B59: Passive/biological additives | D59: $/ha | F59: =NA() ->  | G59: =IF(ISNA(F59),0,INDEX(IF(UPPER(RIGHT(F59,1))=Low,UnitCostLow, IF(UPPER(RIGHT(F59,1))=High,UnitCostHigh,UnitCostSpecified)),MATCH(UPPER(LEFT(F59,LEN(F59)-1)),CostCode,0))) -> 0 | H59: =G59*E59 -> 0 | J59: =H59*I59 -> 0 | K59: =H59*(1-I59) -> 0 | M59: Passive/biological additives | O59: $/ha | Q59: =NA() ->  | R59: =IF(ISNA(Q59),0,INDEX(IF(UPPER(RIGHT(Q59,1))=Low,UnitCostLow, IF(UPPER(RIGHT(Q59,1))=High,UnitCostHigh,UnitCostSpecified)),MATCH(UPPER(LEFT(Q59,LEN(Q59)-1)),CostCode,0))) -> 0 | S59: =R59*P59 -> 0 | U59: =S59*T59 -> 0 | V59: =S59*(1-T59) -> 0
B60: Passive additives purchase and shipping | D60: tonne | F60: =NA() ->  | G60: =IF(ISNA(F60),0,INDEX(IF(UPPER(RIGHT(F60,1))=Low,UnitCostLow, IF(UPPER(RIGHT(F60,1))=High,UnitCostHigh,UnitCostSpecified)),MATCH(UPPER(LEFT(F60,LEN(F60)-1)),CostCode,0))) -> 0 | H60: =G60*E60 -> 0 | J60: =H60*I60 -> 0 | K60: =H60*(1-I60) -> 0 | M60: Passive additives purchase and shipping | O60: tonne | Q60: =NA() ->  | R60: =IF(ISNA(Q60),0,INDEX(IF(UPPER(RIGHT(Q60,1))=Low,UnitCostLow, IF(UPPER(RIGHT(Q60,1))=High,UnitCostHigh,UnitCostSpecified)),MATCH(UPPER(LEFT(Q60,LEN(Q60)-1)),CostCode,0))) -> 0 | S60: =R60*P60 -> 0 | U60: =S60*T60 -> 0 | V60: =S60*(1-T60) -> 0
B61: Other- Water purchased to flood pit from Meliadine Lake | D61: m3 | E61: 3714000 | F61: MBK | G61: 0.0265 | H61: 98421 | J61: =H61*I61 -> 0 | K61: 98421 | M61: Other- Water purchased to flood pit from Meliadine Lake | O61: m3 | P61: 0 | Q61: MBK | R61: 0.0265 | S61: =R61*P61 -> 0 | U61: =S61*T61 -> 0 | V61: =S61*(1-T61) -> 0
G62: Annual pumping costs | H62: =SUM(H53:H61)+0.0001 -> 657361.3157 | R62: Annual pumping costs | S62: =SUM(S53:S61)+0.0001 -> 0.0001
B63: Number of years of pump flooding | D63: years | E63: 3 | M63: Number of years of pump flooding | O63: years | P63: 3
G64: Total pumping costs | H64: =H62*E63 -> 1972083.947 | J64: =H64*I64 -> 0 | K64: =H64*(1-I64) -> 1972083.947 | R64: Total pumping costs | S64: =S62*P63 -> 0.0003 | U64: =S64*T64 -> 0 | V64: =S64*(1-T64) -> 0.0003
G65: Total | H65: =SUM(H5:H51)+H64+0.0001 -> 2781688.965 | J65: =SUM(J5:J51)+J64 -> 0 | K65: =SUM(K5:K51)+K64 -> 2781688.965 | R65: Total | S65: =SUM(S5:S51)+S64+0.0001 -> 54435.51968 | U65: =SUM(U5:U51)+U64 -> 0 | V65: =SUM(V5:V51)+V64 -> 54435.51958
G66: % of Total | J66: =J65/H65 -> 0 | K66: =K65/H65 -> 1 | R66: % of Total | U66: =U65/S65 -> 0 | V66: =V65/S65 -> 0.9999999982

Sheet UG Mine
A1: Underground Mine Name | B1: Tiriganiaq | F1: UG Mine # | G1: 1
A3: ACTIVITY/MATERIAL | B3: Notes | C3: Unit | D3: Qty | E3: Cost Code | F3: Unit Cost | G3: Cost | H3: % Land | I3: Land Cost | J3: Water Cost
A4: CONTROL ACCESS
A5: Fence | C5: m | E5: =NA() ->  | F5: =IF(ISNA(E5),0,INDEX(IF(UPPER(RIGHT(E5,1))=Low,UnitCostLow, IF(UPPER(RIGHT(E5,1))=High,UnitCostHigh,UnitCostSpecified)),MATCH(UPPER(LEFT(E5,LEN(E5)-1)),CostCode,0))) -> 0 | G5: =F5*D5 -> 0 | I5: =G5*H5 -> 0 | J5: =G5*(1-H5) -> 0
A6: Signs | C6: each | D6: 2 | E6: SH | F6: 37.079856 | G6: 74.159712 | I6: =G6*H6 -> 0 | J6: =G6*(1-H6) -> 74.159712
A7: Block roads | C7: m3 | E7: =NA() ->  | F7: 0 | G7: =F7*D7 -> 0 | I7: 0 | J7: 0
A8: Berm | C8: m3 | D8: =250*3*3*1.14 -> 2565 | E8: RB1H | F8: 17.05 | G8: 43733.25 | I8: 0 | J8: 43733.25
A9: Concrete wall in portals | C9: m3 | E9: =NA() ->  | F9: =IF(ISNA(E9),0,INDEX(IF(UPPER(RIGHT(E9,1))=Low,UnitCostLow, IF(UPPER(RIGHT(E9,1))=High,UnitCostHigh,UnitCostSpecified)),MATCH(UPPER(LEFT(E9,LEN(E9)-1)),CostCode,0))) -> 0 | G9: 0 | I9: =G9*H9 -> 0 | J9: =G9*(1-H9) -> 0
A10: Cap bulkhead, pit portal | C10: each | D10: 2 | E10: MBK | F10: 79590.6 | G10: =F10*D10 -> 159181.2 | I10: =G10*H10 -> 0 | J10: =G10*(1-H10) -> 159181.2
A11: Backfill portal #1 | C11: m3 | E11: =NA() ->  | F11: =IF(ISNA(E11),0,INDEX(IF(UPPER(RIGHT(E11,1))=Low,UnitCostLow, IF(UPPER(RIGHT(E11,1))=High,UnitCostHigh,UnitCostSpecified)),MATCH(UPPER(LEFT(E11,LEN(E11)-1)),CostCode,0))) -> 0 | G11: 0 | I11: 0 | J11: 0
A12: Backfill portal #2 | C12: m3 | E12: =NA() ->  | F12: 0 | G12: 0 | I12: 0 | J12: 0
A13: Cap raises and/or stopes | C13: each | D13: 4 | E13: MBK | F13: 79590.6 | G13: =F13*D13 -> 318362.4 | I13: =G13*H13 -> 0 | J13: =G13*(1-H13) -> 318362.4
A14: Cap raise # 1 | C14: m3 | E14: =NA() ->  | F14: =IF(ISNA(E14),0,INDEX(IF(UPPER(RIGHT(E14,1))=Low,UnitCostLow, IF(UPPER(RIGHT(E14,1))=High,UnitCostHigh,UnitCostSpecified)),MATCH(UPPER(LEFT(E14,LEN(E14)-1)),CostCode,0))) -> 0 | G14: 0 | I14: 0 | J14: 0
A15: Cap raise #2 | C15: m3 | E15: =NA() ->  | F15: 0 | G15: 0 | I15: 0 | J15: 0
A16: Cap shaft #1 | C16: m3 | E16: =NA() ->  | F16: 0 | G16: 0 | I16: 0 | J16: 0
A17: Cap shaft #2 | C17: m3 | E17: =NA() ->  | F17: 0 | G17: 0 | I17: 0 | J17: 0
A18: Backfill adits | C18: m3 | E18: =NA() ->  | F18: 0 | G18: 0 | I18: =G18*H18 -> 0 | J18: =G18*(1-H18) -> 0
A19: Backfill open stope | C19: m3 | E19: =NA() ->  | F19: 0 | G19: 0 | I19: 0 | J19: 0
A20: Concrete cap over open stope | C20: m3 | E20: =NA() ->  | F20: 0 | G20: 0 | I20: 0 | J20: 0
A21: Contour portal area | C21: m3 | D21: 13727 | E21: SB1H | F21: =IF(ISNA(E21),0,INDEX(IF(UPPER(RIGHT(E21,1))=Low,UnitCostLow, IF(UPPER(RIGHT(E21,1))=High,UnitCostHigh,UnitCostSpecified)),MATCH(UPPER(LEFT(E21,LEN(E21)-1)),CostCode,0))) -> 5.9 | G21: =F21*D21 -> 80989.3 | I21: =G21*H21 -> 0 | J21: =G21*(1-H21) -> 80989.3
A22: Other | E22: =NA() ->  | F22: 0 | G22: 0 | I22: 0 | J22: 0
A23: REMOVE HAZARDOUS MATERIALS
A24: Remove hazardous materials, U/G labor | C24: hrs | D24: =90*24 -> 2160 | E24: SCOOPL | F24: =IF(ISNA(E24),0,INDEX(IF(UPPER(RIGHT(E24,1))=Low,UnitCostLow, IF(UPPER(RIGHT(E24,1))=High,UnitCostHigh,UnitCostSpecified)),MATCH(UPPER(LEFT(E24,LEN(E24)-1)),CostCode,0))) -> 170 | G24: =F24*D24 -> 367200 | I24: =G24*H24 -> 0 | J24: =G24*(1-H24) -> 367200
A25: Remove/decontam. stationary & elect. equip | C25: mandays | E25: =NA() ->  | F25: =IF(ISNA(E25),0,INDEX(IF(UPPER(RIGHT(E25,1))=Low,UnitCostLow, IF(UPPER(RIGHT(E25,1))=High,UnitCostHigh,UnitCostSpecified)),MATCH(UPPER(LEFT(E25,LEN(E25)-1)),CostCode,0))) -> 0 | G25: =F25*D25 -> 0 | I25: =G25*H25 -> 0 | J25: =G25*(1-H25) -> 0
A26: Remove/decontam. mobile equipment | C26: each | E26: =NA() ->  | F26: =IF(ISNA(E26),0,INDEX(IF(UPPER(RIGHT(E26,1))=Low,UnitCostLow, IF(UPPER(RIGHT(E26,1))=High,UnitCostHigh,UnitCostSpecified)),MATCH(UPPER(LEFT(E26,LEN(E26)-1)),CostCode,0))) -> 0 | G26: =F26*D26 -> 0 | I26: =G26*H26 -> 0 | J26: =G26*(1-H26) -> 0
A27: Remove misc. haz. mat & explosives | C27: kg | E27: =NA() ->  | F27: =IF(ISNA(E27),0,INDEX(IF(UPPER(RIGHT(E27,1))=Low,UnitCostLow, IF(UPPER(RIGHT(E27,1))=High,UnitCostHigh,UnitCostSpecified)),MATCH(UPPER(LEFT(E27,LEN(E27)-1)),CostCode,0))) -> 0 | G27: =F27*D27 -> 0 | I27: =G27*H27 -> 0 | J27: =G27*(1-H27) -> 0
A28: Other | E28: =NA() ->  | F28: =IF(ISNA(E28),0,INDEX(IF(UPPER(RIGHT(E28,1))=Low,UnitCostLow, IF(UPPER(RIGHT(E28,1))=High,UnitCostHigh,UnitCostSpecified)),MATCH(UPPER(LEFT(E28,LEN(E28)-1)),CostCode,0))) -> 0 | G28: =F28*D28 -> 0 | I28: =G28*H28 -> 0 | J28: =G28*(1-H28) -> 0
A29: INSTALL BULKHEADS
A30: Bulkheads to control water flow | C30: each | E30: =NA() ->  | F30: =IF(ISNA(E30),0,INDEX(IF(UPPER(RIGHT(E30,1))=Low,UnitCostLow, IF(UPPER(RIGHT(E30,1))=High,UnitCostHigh,UnitCostSpecified)),MATCH(UPPER(LEFT(E30,LEN(E30)-1)),CostCode,0))) -> 0 | G30: =F30*D30 -> 0 | I30: =G30*H30 -> 0 | J30: =G30*(1-H30) -> 0
A31: Grout bulkhead | C31: m3 | E31: =NA() ->  | F31: =IF(ISNA(E31),0,INDEX(IF(UPPER(RIGHT(E31,1))=Low,UnitCostLow, IF(UPPER(RIGHT(E31,1))=High,UnitCostHigh,UnitCostSpecified)),MATCH(UPPER(LEFT(E31,LEN(E31)-1)),CostCode,0))) -> 0 | G31: =F31*D31 -> 0 | I31: =G31*H31 -> 0 | J31: =G31*(1-H31) -> 0
A32: FLOOD MINE
A33: Supply/install pump | C33: each | E33: =NA() ->  | F33: =IF(ISNA(E33),0,INDEX(IF(UPPER(RIGHT(E33,1))=Low,UnitCostLow, IF(UPPER(RIGHT(E33,1))=High,UnitCostHigh,UnitCostSpecified)),MATCH(UPPER(LEFT(E33,LEN(E33)-1)),CostCode,0))) -> 0 | G33: =F33*D33 -> 0 | I33: 0 | J33: 0
A34: Supply/install piping system | C34: each | E34: =NA() ->  | F34: =IF(ISNA(E34),0,INDEX(IF(UPPER(RIGHT(E34,1))=Low,UnitCostLow, IF(UPPER(RIGHT(E34,1))=High,UnitCostHigh,UnitCostSpecified)),MATCH(UPPER(LEFT(E34,LEN(E34)-1)),CostCode,0))) -> 0 | G34: =F34*D34 -> 0 | I34: =G34*H34 -> 0 | J34: =G34*(1-H34) -> 0
A35: Operate pumps to flood workings | C35: m3 | E35: =NA() ->  | F35: =IF(ISNA(E35),0,INDEX(IF(UPPER(RIGHT(E35,1))=Low,UnitCostLow, IF(UPPER(RIGHT(E35,1))=High,UnitCostHigh,UnitCostSpecified)),MATCH(UPPER(LEFT(E35,LEN(E35)-1)),CostCode,0))) -> 0 | G35: =F35*D35 -> 0 | I35: 0 | J35: 0
A36: Other | E36: =NA() ->  | F36: =IF(ISNA(E36),0,INDEX(IF(UPPER(RIGHT(E36,1))=Low,UnitCostLow, IF(UPPER(RIGHT(E36,1))=High,UnitCostHigh,UnitCostSpecified)),MATCH(UPPER(LEFT(E36,LEN(E36)-1)),CostCode,0))) -> 0 | G36: =F36*D36 -> 0 | I36: 0 | J36: 0
A37: INSTALL GROUNDWATER COLLECTION SYSTEM
A38: Excavate/install sumps | C38: m2 | E38: =NA() ->  | F38: =IF(ISNA(E38),0,INDEX(IF(UPPER(RIGHT(E38,1))=Low,UnitCostLow, IF(UPPER(RIGHT(E38,1))=High,UnitCostHigh,UnitCostSpecified)),MATCH(UPPER(LEFT(E38,LEN(E38)-1)),CostCode,0))) -> 0 | G38: =F38*D38 -> 0 | I38: =G38*H38 -> 0 | J38: =+G38*(1-H38) -> 0
A39: Install pumping wells | C39: m3 | E39: =NA() ->  | F39: 0 | G39: 0 | I39: 0 | J39: 0
A40: Install pumps/pipelines/power supply | C40: LS | E40: =NA() ->  | F40: 0 | G40: 0 | I40: 0 | J40: 0
A41: SPECIALIZED ITEMS
A42: Install water quality monitoring pipes | C42: each | E42: =NA() ->  | F42: =IF(ISNA(E42),0,INDEX(IF(UPPER(RIGHT(E42,1))=Low,UnitCostLow, IF(UPPER(RIGHT(E42,1))=High,UnitCostHigh,UnitCostSpecified)),MATCH(UPPER(LEFT(E42,LEN(E42)-1)),CostCode,0))) -> 0 | G42: =F42*D42 -> 0 | I42: =G42*H42 -> 0 | J42: 0
A43: Install permanent pumping system | C43: each | E43: =NA() ->  | F43: 0 | G43: =F43*D43 -> 0 | I43: =G43*H43 -> 0 | J43: 0
A44: Other | E44: =NA() ->  | F44: =IF(ISNA(E44),0,INDEX(IF(UPPER(RIGHT(E44,1))=Low,UnitCostLow, IF(UPPER(RIGHT(E44,1))=High,UnitCostHigh,UnitCostSpecified)),MATCH(UPPER(LEFT(E44,LEN(E44)-1)),CostCode,0))) -> 0 | G44: =F44*D44 -> 0 | I44: =G44*H44 -> 0 | J44: 0
F45: Total | G45: =SUM(G5:G44)+0.0001 -> 969540.3098 | I45: =SUM(I5:I44) -> 0 | J45: =SUM(J5:J44) -> 969540.3097
F46: % of Total | I46: =I45/G45 -> 0 | J46: =J45/G45 -> 0.9999999999

Sheet Tailings
A1: 1 | B1: Tailings Impoundment Name: | C1: Tailings Storage Facility | G1: Pond # | H1: 1
B3: ACTIVITY/MATERIAL | C3: Notes | D3: Units | E3: Quantity | F3: Cost Code | G3: Unit Cost | H3: Cost | I3: % Land | J3: Land Cost | K3: Water Cost
B4: CONTROL ACCESS
B5: Fence | D5: m | F5: =NA() ->  | G5: =IF(ISNA(F5),0,INDEX(IF(UPPER(RIGHT(F5,1))=Low,UnitCostLow, IF(UPPER(RIGHT(F5,1))=High,UnitCostHigh,UnitCostSpecified)),MATCH(UPPER(LEFT(F5,LEN(F5)-1)),CostCode,0))) -> 0 | H5: =G5*E5 -> 0 | J5: =H5*I5 -> 0 | K5: =+H5*(1-I5) -> 0
B6: Signs | D6: each | F6: =NA() ->  | G6: 0 | H6: 0 | J6: =H6*I6 -> 0 | K6: =+H6*(1-I6) -> 0
B7: Berm | D7: m3 | F7: =NA() ->  | G7: 0 | H7: 0 | J7: 0 | K7: 0
B8: Block roads | D8: m3 | F8: =NA() ->  | G8: 0 | H8: 0 | J8: 0 | K8: 0
B9: Other | F9: =NA() ->  | G9: 0 | H9: 0 | J9: 0 | K9: 0
B10: STABILIZE EMBANKMENT(S)
B11: Toe buttress, drainage layer | D11: m3 | F11: =NA() ->  | G11: 0 | H11: =G11*E11 -> 0 | J11: 0 | K11: 0
B12: Toe buttress, bulk fill | D12: m3 | F12: =NA() ->  | G12: 0 | H12: 0 | J12: 0 | K12: 0
B13: Rip rap | D13: m3 | F13: =NA() ->  | G13: 0 | H13: 0 | J13: 0 | K13: 0
B14: Vegetate | D14: ha | F14: =NA() ->  | G14: 0 | H14: 0 | J14: 0 | K14: 0
B15: Raise crest | D15: m3 | F15: =NA() ->  | G15: 0 | H15: 0 | J15: 0 | K15: 0
B16: Flatten slopes | D16: m3 | F16: =NA() ->  | G16: 0 | H16: 0 | J16: 0 | K16: 0
B17: Other | F17: =NA() ->  | G17: 0 | H17: 0 | J17: 0 | K17: 0
B18: COVER TAILINGS
B19: Grade/shape tailings surface | D19: m3 | F19: =NA() ->  | G19: =IF(ISNA(F19),0,INDEX(IF(UPPER(RIGHT(F19,1))=Low,UnitCostLow, IF(UPPER(RIGHT(F19,1))=High,UnitCostHigh,UnitCostSpecified)),MATCH(UPPER(LEFT(F19,LEN(F19)-1)),CostCode,0))) -> 0 | H19: =G19*E19 -> 0 | J19: =H19*I19 -> 0 | K19: =+H19*(1-I19) -> 0
B20: Liner bedding | D20: m3 | F20: =NA() ->  | G20: =IF(ISNA(F20),0,INDEX(IF(UPPER(RIGHT(F20,1))=Low,UnitCostLow, IF(UPPER(RIGHT(F20,1))=High,UnitCostHigh,UnitCostSpecified)),MATCH(UPPER(LEFT(F20,LEN(F20)-1)),CostCode,0))) -> 0 | H20: =G20*E20 -> 0 | J20: =H20*I20 -> 0 | K20: =+H20*(1-I20) -> 0
B21: Subgrade preparation - compact | D21: m2 | F21: =NA() ->  | G21: =IF(ISNA(F21),0,INDEX(IF(UPPER(RIGHT(F21,1))=Low,UnitCostLow, IF(UPPER(RIGHT(F21,1))=High,UnitCostHigh,UnitCostSpecified)),MATCH(UPPER(LEFT(F21,LEN(F21)-1)),CostCode,0))) -> 0 | H21: =G21*E21 -> 0 | J21: =H21*I21 -> 0 | K21: =+H21*(1-I21) -> 0
B22: Supply geotextile/geosynthetic | D22: m2 | F22: =NA() ->  | G22: =IF(ISNA(F22),0,INDEX(IF(UPPER(RIGHT(F22,1))=Low,UnitCostLow, IF(UPPER(RIGHT(F22,1))=High,UnitCostHigh,UnitCostSpecified)),MATCH(UPPER(LEFT(F22,LEN(F22)-1)),CostCode,0))) -> 0 | H22: 0 | J22: 0 | K22: 0
B23: Install geotextile/geosynthetic | D23: m2 | F23: =NA() ->  | G23: =IF(ISNA(F23),0,INDEX(IF(UPPER(RIGHT(F23,1))=Low,UnitCostLow, IF(UPPER(RIGHT(F23,1))=High,UnitCostHigh,UnitCostSpecified)),MATCH(UPPER(LEFT(F23,LEN(F23)-1)),CostCode,0))) -> 0 | H23: =G23*E23 -> 0 | J23: =H23*I23 -> 0 | K23: =+H23*(1-I23) -> 0
B24: Soil cover | D24: m3 | E24: 28627 | F24: AEM | G24: =8.47 -> 8.47 | H24: 242470.69 | J24: 0 | K24: 242470.69
B25: Rock (fill) cover | C25: Operations cover most of TSF - checked other budget | D25: m3 | E25: =143135 -> 143135 | F25: AEM | G25: =8.47 -> 8.47 | H25: =G25*E25 -> 1212353.45 | J25: =H25*I25 -> 0 | K25: =+H25*(1-I25) -> 1212353.45
B26: Vegetate | D26: m2 | F26: =NA() ->  | G26: =IF(ISNA(F26),0,INDEX(IF(UPPER(RIGHT(F26,1))=Low,UnitCostLow, IF(UPPER(RIGHT(F26,1))=High,UnitCostHigh,UnitCostSpecified)),MATCH(UPPER(LEFT(F26,LEN(F26)-1)),CostCode,0))) -> 0 | H26: 0 | J26: 0 | K26: 0
B27: Other | F27: =NA() ->  | G27: 0 | H27: =G27*E27 -> 0 | J27: =H27*I27 -> 0 | K27: =+H27*(1-I27) -> 0
B28: BURY PAG ROCK
B29: Relocate PAG rock | D29: m3 | F29: =NA() ->  | G29: 0 | H29: =G29*E29 -> 0 | J29: 0 | K29: 0
B30: Place cover over PAG rock | D30: m3 | F30: =NA() ->  | G30: 0 | H30: =G30*E30 -> 0 | J30: 0 | K30: 0
B31: Raise crest of dam | D31: m3 | F31: =NA() ->  | G31: 0 | H31: =G31*E31 -> 0 | J31: 0 | K31: 0
B32: Other | F32: =NA() ->  | G32: 0 | H32: =G32*E32 -> 0 | J32: 0 | K32: 0
B33: STABILIZE DECANT SYSTEM
B34: Excavate and replace | D34: m3 | F34: =NA() ->  | G34: =IF(ISNA(F34),0,INDEX(IF(UPPER(RIGHT(F34,1))=Low,UnitCostLow, IF(UPPER(RIGHT(F34,1))=High,UnitCostHigh,UnitCostSpecified)),MATCH(UPPER(LEFT(F34,LEN(F34)-1)),CostCode,0))) -> 0 | H34: =G34*E34 -> 0 | J34: =H34*I34 -> 0 | K34: =+H34*(1-I34) -> 0
B35: Plug/backfill with concrete or clay | D35: m3 | F35: =NA() ->  | G35: =IF(ISNA(F35),0,INDEX(IF(UPPER(RIGHT(F35,1))=Low,UnitCostLow, IF(UPPER(RIGHT(F35,1))=High,UnitCostHigh,UnitCostSpecified)),MATCH(UPPER(LEFT(F35,LEN(F35)-1)),CostCode,0))) -> 0 | H35: =G35*E35 -> 0 | J35: =H35*I35 -> 0 | K35: =+H35*(1-I35) -> 0
B36: Other | F36: =NA() ->  | G36: =IF(ISNA(F36),0,INDEX(IF(UPPER(RIGHT(F36,1))=Low,UnitCostLow, IF(UPPER(RIGHT(F36,1))=High,UnitCostHigh,UnitCostSpecified)),MATCH(UPPER(LEFT(F36,LEN(F36)-1)),CostCode,0))) -> 0 | H36: =G36*E36 -> 0 | J36: =H36*I36 -> 0 | K36: =+H36*(1-I36) -> 0
B37: REMOVE TAILINGS DISCHARGE
B38: Cyclones | D38: m3 | F38: =NA() ->  | G38: =IF(ISNA(F38),0,INDEX(IF(UPPER(RIGHT(F38,1))=Low,UnitCostLow, IF(UPPER(RIGHT(F38,1))=High,UnitCostHigh,UnitCostSpecified)),MATCH(UPPER(LEFT(F38,LEN(F38)-1)),CostCode,0))) -> 0 | H38: =G38*E38 -> 0 | J38: =H38*I38 -> 0 | K38: =+H38*(1-I38) -> 0
B39: Pipe | D39: m3 | F39: =NA() ->  | G39: =IF(ISNA(F39),0,INDEX(IF(UPPER(RIGHT(F39,1))=Low,UnitCostLow, IF(UPPER(RIGHT(F39,1))=High,UnitCostHigh,UnitCostSpecified)),MATCH(UPPER(LEFT(F39,LEN(F39)-1)),CostCode,0))) -> 0 | H39: =G39*E39 -> 0 | J39: =H39*I39 -> 0 | K39: =+H39*(1-I39) -> 0
B40: Remove reclaim barge | D40: allow | F40: =NA() ->  | G40: =IF(ISNA(F40),0,INDEX(IF(UPPER(RIGHT(F40,1))=Low,UnitCostLow, IF(UPPER(RIGHT(F40,1))=High,UnitCostHigh,UnitCostSpecified)),MATCH(UPPER(LEFT(F40,LEN(F40)-1)),CostCode,0))) -> 0 | H40: =G40*E40 -> 0 | J40: =H40*I40 -> 0 | K40: =+H40*(1-I40) -> 0
B41: CONSTRUCT DIVERSION DITCHES
B42: Excavate ditches -soil | D42: m3 | F42: =NA() ->  | G42: =IF(ISNA(F42),0,INDEX(IF(UPPER(RIGHT(F42,1))=Low,UnitCostLow, IF(UPPER(RIGHT(F42,1))=High,UnitCostHigh,UnitCostSpecified)),MATCH(UPPER(LEFT(F42,LEN(F42)-1)),CostCode,0))) -> 0 | H42: =G42*E42 -> 0 | J42: =H42*I42 -> 0 | K42: =+H42*(1-I42) -> 0
B43: Excavate ditches -rock | D43: m3 | F43: =NA() ->  | G43: =IF(ISNA(F43),0,INDEX(IF(UPPER(RIGHT(F43,1))=Low,UnitCostLow, IF(UPPER(RIGHT(F43,1))=High,UnitCostHigh,UnitCostSpecified)),MATCH(UPPER(LEFT(F43,LEN(F43)-1)),CostCode,0))) -> 0 | H43: =G43*E43 -> 0 | J43: 0 | K43: 0
B44: Rip rap in channel base | D44: m3 | F44: =NA() ->  | G44: =IF(ISNA(F44),0,INDEX(IF(UPPER(RIGHT(F44,1))=Low,UnitCostLow, IF(UPPER(RIGHT(F44,1))=High,UnitCostHigh,UnitCostSpecified)),MATCH(UPPER(LEFT(F44,LEN(F44)-1)),CostCode,0))) -> 0 | H44: =G44*E44 -> 0 | J44: 0 | K44: 0
B45: FLOOD TAILINGS
B46: Doze tailings to final contour | D46: m3 | F46: =NA() ->  | G46: 0 | H46: =G46*E46 -> 0 | J46: 0 | K46: 0
B47: Raise crest of dam | D47: m3 | F47: =NA() ->  | G47: 0 | H47: =G47*E47 -> 0 | J47: 0 | K47: 0
B48: Other | F48: =NA() ->  | G48: 0 | H48: =G48*E48 -> 0 | J48: 0 | K48: 0
B49: UPGRADE SPILLWAY
B50: Excavate channel, rock | D50: m3 | F50: =NA() ->  | G50: 0 | H50: =G50*E50 -> 0 | J50: 0 | K50: 0
B51: Excavate channel, soil | D51: m3 | F51: =NA() ->  | G51: 0 | H51: =G51*E51 -> 0 | J51: 0 | K51: 0
B52: Concrete | D52: m3 | F52: =NA() ->  | G52: 0 | H52: =G52*E52 -> 0 | J52: 0 | K52: 0
B53: Rip rap | D53: m3 | F53: =NA() ->  | G53: 0 | H53: =G53*E53 -> 0 | J53: 0 | K53: 0
B54: Other | F54: =NA() ->  | G54: 0 | H54: =G54*E54 -> 0 | J54: 0 | K54: 0
B55: CONSTRUCT SEEPAGE COLLECTION POND
B56: Excavate seepage collection pond | D56: m3 | F56: =NA() ->  | G56: =IF(ISNA(F56),0,INDEX(IF(UPPER(RIGHT(F56,1))=Low,UnitCostLow, IF(UPPER(RIGHT(F56,1))=High,UnitCostHigh,UnitCostSpecified)),MATCH(UPPER(LEFT(F56,LEN(F56)-1)),CostCode,0))) -> 0 | H56: =G56*E56 -> 0 | J56: =H56*I56 -> 0 | K56: =+H56*(1-I56) -> 0
B57: Doze & spread excavated material | D57: m3 | F57: =NA() ->  | G57: 0 | H57: 0 | J57: 0 | K57: 0
B58: Vegetate spread material | D58: ha | F58: =NA() ->  | G58: 0 | H58: 0 | J58: 0 | K58: 0
B59: Bedding layer | D59: m3 | F59: =NA() ->  | G59: 0 | H59: 0 | J59: 0 | K59: 0
B60: Supply geomembrane | D60: m2 | F60: =NA() ->  | G60: 0 | H60: 0 | J60: 0 | K60: 0
B61: Install geomembrane | D61: m2 | F61: =NA() ->  | G61: 0 | H61: 0 | J61: 0 | K61: 0
B62: Erosion protection layer | D62: m3 | F62: =NA() ->  | G62: 0 | H62: 0 | J62: 0 | K62: 0
B63: INSTALL GROUNDWATER COLLECTION SYSTEM
B64: Excavate/install sumps | D64: m3 | F64: =NA() ->  | G64: =IF(ISNA(F64),0,INDEX(IF(UPPER(RIGHT(F64,1))=Low,UnitCostLow, IF(UPPER(RIGHT(F64,1))=High,UnitCostHigh,UnitCostSpecified)),MATCH(UPPER(LEFT(F64,LEN(F64)-1)),CostCode,0))) -> 0 | H64: =G64*E64 -> 0 | J64: =H64*I64 -> 0 | K64: =+H64*(1-I64) -> 0
B65: Install pumping wells | D65: m3 | F65: =NA() ->  | G65: 0 | H65: 0 | J65: 0 | K65: 0
B66: Install pumps/pipelines/power supply | D66: LS | F66: =NA() ->  | G66: 0 | H66: 0 | J66: 0 | K66: 0
B67: SPECIALIZED ITEMS
B68: Install permanent instrumentation, supply & technican | D68: each | F68: =NA() ->  | G68: 0 | H68: =G68*E68 -> 0 | J68: =H68*I68 -> 0 | K68: =+H68*(1-I68) -> 0
B69: Install permanent instrumentation, drilling | D69: each | F69: =NA() ->  | G69: =IF(ISNA(F69),0,INDEX(IF(UPPER(RIGHT(F69,1))=Low,UnitCostLow, IF(UPPER(RIGHT(F69,1))=High,UnitCostHigh,UnitCostSpecified)),MATCH(UPPER(LEFT(F69,LEN(F69)-1)),CostCode,0))) -> 0 | H69: =G69*E69 -> 0 | K69: =+H69*(1-I69) -> 0
B70: TREAT SEEPAGE - see "Water Management" and "Water Treatment"
B71: TREAT SUPERNATANT
B72: Pump water | D72: each | E72: 1 | F72: AEM | G72: 34760.08913 | H72: =G72*E72 -> 34760.08913 | J72: =H72*I72 -> 0 | K72: =+H72*(1-I72) -> 34760.08913
B73: Equipment maintenance and parts | D73: allow | F73: =NA() ->  | G73: =IF(ISNA(F73),0,INDEX(IF(UPPER(RIGHT(F73,1))=Low,UnitCostLow, IF(UPPER(RIGHT(F73,1))=High,UnitCostHigh,UnitCostSpecified)),MATCH(UPPER(LEFT(F73,LEN(F73)-1)),CostCode,0))) -> 0 | H73: =G73*E73 -> 0 | J73: =H73*I73 -> 0 | K73: =+H73*(1-I73) -> 0
B74: Supply reagents | D74: tonne | F74: =NA() ->  | G74: =IF(ISNA(F74),0,INDEX(IF(UPPER(RIGHT(F74,1))=Low,UnitCostLow, IF(UPPER(RIGHT(F74,1))=High,UnitCostHigh,UnitCostSpecified)),MATCH(UPPER(LEFT(F74,LEN(F74)-1)),CostCode,0))) -> 0 | H74: =G74*E74 -> 0 | J74: =H74*I74 -> 0 | K74: =+H74*(1-I74) -> 0
G75: Annual treatment costs | H75: =SUM(H72:H74)+0.0001 -> 34760.08923
B76: Number of years of treatment | D76: years | E76: 1
G77: Total treatment costs | H77: =H75*E76 -> 34760.08923 | K77: =H77 -> 34760.08923
G78: Total | H78: =SUM(H5:H69)+H77+0.0001 -> 1489584.229 | J78: =SUM(J5:J69)+J77 -> 0 | K78: =SUM(K5:K69)+K77 -> 1489584.229
G79: % of Total | J79: =J78/H78 -> 0 | K79: =K78/H78 -> 0.9999999999
B80: * for construction of passive treatment system refer to "Water Management"

Sheet Rock Pile
A1: 3 | B1: Rock Pile Name: | C1: Waste Rock Facility East | M1: Rock Pile Name: | N1: Waste Rock Facility West | S1: =H1+1 -> 1 | X1: Rock Pile Name: | Y1: Waste Rock Facility H19-H20 | AD1: =S1+1 -> 2
B3: ACTIVITY/MATERIAL | C3: Notes | D3: Units | E3: Quantity | F3: Cost Code | G3: Unit Cost | H3: Cost | I3: % Land | J3: Land Cost | K3: Water Cost | M3: ACTIVITY/MATERIAL | N3: Notes | O3: Units | P3: Quantity | Q3: Cost Code | R3: Unit Cost | S3: Cost | T3: % Land | U3: Land Cost | V3: Water Cost | X3: ACTIVITY/MATERIAL | Y3: Notes | Z3: Units | AA3: Quantity | AB3: Cost Code | AC3: Unit Cost | AD3: Cost | AE3: % Land | AF3: Land Cost | AG3: Water Cost
B4: STABILIZE SLOPES | M4: STABILIZE SLOPES | X4: STABILIZE SLOPES
B5: Flatten slopes with dozer | D5: m3 | F5: =NA() ->  | G5: =IF(ISNA(F5),0,INDEX(IF(UPPER(RIGHT(F5,1))=Low,UnitCostLow, IF(UPPER(RIGHT(F5,1))=High,UnitCostHigh,UnitCostSpecified)),MATCH(UPPER(LEFT(F5,LEN(F5)-1)),CostCode,0))) -> 0 | H5: =G5*E5 -> 0 | J5: =H5*I5 -> 0 | K5: =+H5*(1-I5) -> 0 | M5: Flatten slopes with dozer | O5: m3 | Q5: =NA() ->  | R5: =IF(ISNA(Q5),0,INDEX(IF(UPPER(RIGHT(Q5,1))=Low,UnitCostLow, IF(UPPER(RIGHT(Q5,1))=High,UnitCostHigh,UnitCostSpecified)),MATCH(UPPER(LEFT(Q5,LEN(Q5)-1)),CostCode,0))) -> 0 | S5: =R5*P5 -> 0 | U5: =S5*T5 -> 0 | V5: =+S5*(1-T5) -> 0 | X5: Flatten slopes with dozer | Z5: m3 | AB5: =NA() ->  | AC5: =IF(ISNA(AB5),0,INDEX(IF(UPPER(RIGHT(AB5,1))=Low,UnitCostLow, IF(UPPER(RIGHT(AB5,1))=High,UnitCostHigh,UnitCostSpecified)),MATCH(UPPER(LEFT(AB5,LEN(AB5)-1)),CostCode,0))) -> 0 | AD5: =AC5*AA5 -> 0 | AF5: =AD5*AE5 -> 0 | AG5: =+AD5*(1-AE5) -> 0
B6: Flatten "bubble dump" areas | D6: m3 | F6: =NA() ->  | G6: 0 | H6: 0 | J6: 0 | K6: 0 | M6: Flatten "bubble dump" areas | O6: m3 | Q6: =NA() ->  | R6: 0 | S6: 0 | U6: 0 | V6: 0 | X6: Flatten "bubble dump" areas | Z6: m3 | AB6: =NA() ->  | AC6: 0 | AD6: 0 | AF6: 0 | AG6: 0
B7: Divert runon, ditch mat'l A | D7: m3 | F7: =NA() ->  | G7: 0 | H7: 0 | J7: 0 | K7: 0 | M7: Divert runon, ditch mat'l A | O7: m3 | Q7: =NA() ->  | R7: 0 | S7: 0 | U7: 0 | V7: 0 | X7: Divert runon, ditch mat'l A | Z7: m3 | AB7: =NA() ->  | AC7: 0 | AD7: 0 | AF7: 0 | AG7: 0
B8: Divert runon, ditch mat'l B | D8: m3 | F8: =NA() ->  | G8: 0 | H8: 0 | J8: 0 | K8: 0 | M8: Divert runon, ditch mat'l B | O8: m3 | Q8: =NA() ->  | R8: 0 | S8: 0 | U8: 0 | V8: 0 | X8: Divert runon, ditch mat'l B | Z8: m3 | AB8: =NA() ->  | AC8: 0 | AD8: 0 | AF8: 0 | AG8: 0
B9: Toe buttress, drain mat'l | D9: m3 | F9: =NA() ->  | G9: 0 | H9: 0 | J9: 0 | K9: 0 | M9: Toe buttress, drain mat'l | O9: m3 | Q9: =NA() ->  | R9: 0 | S9: 0 | U9: 0 | V9: 0 | X9: Toe buttress, drain mat'l | Z9: m3 | AB9: =NA() ->  | AC9: 0 | AD9: 0 | AF9: 0 | AG9: 0
B10: Toe buttress, fill mat'l A | D10: m3 | F10: =NA() ->  | G10: 0 | H10: 0 | J10: 0 | K10: 0 | M10: Toe buttress, fill mat'l A | O10: m3 | Q10: =NA() ->  | R10: 0 | S10: 0 | U10: 0 | V10: 0 | X10: Toe buttress, fill mat'l A | Z10: m3 | AB10: =NA() ->  | AC10: 0 | AD10: 0 | AF10: 0 | AG10: 0
B11: Toe buttress, fill mat'l B | D11: m3 | F11: =NA() ->  | G11: 0 | H11: 0 | J11: 0 | K11: 0 | M11: Toe buttress, fill mat'l B | O11: m3 | Q11: =NA() ->  | R11: 0 | S11: 0 | U11: 0 | V11: 0 | X11: Toe buttress, fill mat'l B | Z11: m3 | AB11: =NA() ->  | AC11: 0 | AD11: 0 | AF11: 0 | AG11: 0
B12: Other | F12: =NA() ->  | G12: 0 | H12: 0 | J12: 0 | K12: 0 | M12: Other | Q12: =NA() ->  | R12: 0 | S12: 0 | U12: 0 | V12: 0 | X12: Other | AB12: =NA() ->  | AC12: 0 | AD12: 0 | AF12: 0 | AG12: 0
B13: COVER ROCK PILE | M13: COVER ROCK PILE | X13: COVER ROCK PILE
B14: Subgrade preparation - doze surface | D14: m3 | F14: =NA() ->  | G14: =IF(ISNA(F14),0,INDEX(IF(UPPER(RIGHT(F14,1))=Low,UnitCostLow, IF(UPPER(RIGHT(F14,1))=High,UnitCostHigh,UnitCostSpecified)),MATCH(UPPER(LEFT(F14,LEN(F14)-1)),CostCode,0))) -> 0 | H14: =G14*E14 -> 0 | J14: =H14*I14 -> 0 | K14: =+H14*(1-I14) -> 0 | M14: Subgrade preparation - doze surface | O14: m3 | Q14: =NA() ->  | R14: =IF(ISNA(Q14),0,INDEX(IF(UPPER(RIGHT(Q14,1))=Low,UnitCostLow, IF(UPPER(RIGHT(Q14,1))=High,UnitCostHigh,UnitCostSpecified)),MATCH(UPPER(LEFT(Q14,LEN(Q14)-1)),CostCode,0))) -> 0 | S14: =R14*P14 -> 0 | U14: =S14*T14 -> 0 | V14: =+S14*(1-T14) -> 0 | X14: Subgrade preparation - doze surface | Z14: m3 | AB14: =NA() ->  | AC14: =IF(ISNA(AB14),0,INDEX(IF(UPPER(RIGHT(AB14,1))=Low,UnitCostLow, IF(UPPER(RIGHT(AB14,1))=High,UnitCostHigh,UnitCostSpecified)),MATCH(UPPER(LEFT(AB14,LEN(AB14)-1)),CostCode,0))) -> 0 | AD14: =AC14*AA14 -> 0 | AF14: =AD14*AE14 -> 0 | AG14: =+AD14*(1-AE14) -> 0
B15: Soil cover - excavate,haul,spread&compact | D15: m3 | F15: =NA() ->  | G15: 0 | H15: 0 | J15: 0 | K15: 0 | M15: Soil cover - excavate,haul,spread&compact | O15: m3 | Q15: =NA() ->  | R15: 0 | S15: 0 | U15: 0 | V15: 0 | X15: Soil cover - excavate,haul,spread&compact | Z15: m3 | AB15: =NA() ->  | AC15: 0 | AD15: 0 | AF15: 0 | AG15: 0
B16: Rock cover - excavate,haul & spread | D16: m3 | F16: =NA() ->  | G16: 0 | H16: 0 | J16: 0 | K16: 0 | M16: Rock cover - excavate,haul & spread | O16: m3 | Q16: =NA() ->  | R16: 0 | S16: 0 | U16: 0 | V16: 0 | X16: Rock cover - excavate,haul & spread | Z16: m3 | AB16: =NA() ->  | AC16: 0 | AD16: 0 | AF16: 0 | AG16: 0
B17: Excavate downslope drainage channel & chute | D17: m3 | F17: =NA() ->  | G17: 0 | H17: 0 | J17: 0 | K17: 0 | M17: Excavate downslope drainage channel & chute | O17: m3 | Q17: =NA() ->  | R17: 0 | S17: 0 | U17: 0 | V17: 0 | X17: Excavate downslope drainage channel & chute | Z17: m3 | AB17: =NA() ->  | AC17: 0 | AD17: 0 | AF17: 0 | AG17: 0
B18: Rip rap drainage channel and chute | D18: m3 | F18: =NA() ->  | G18: 0 | H18: 0 | J18: 0 | K18: 0 | M18: Rip rap drainage channel and chute | O18: m3 | Q18: =NA() ->  | R18: 0 | S18: 0 | U18: 0 | V18: 0 | X18: Rip rap drainage channel and chute | Z18: m3 | AB18: =NA() ->  | AC18: 0 | AD18: 0 | AF18: 0 | AG18: 0
B19: Vegetate | D19: ha | F19: =NA() ->  | G19: 0 | H19: 0 | J19: 0 | K19: 0 | M19: Vegetate | O19: ha | Q19: =NA() ->  | R19: 0 | S19: 0 | U19: 0 | V19: 0 | X19: Vegetate | Z19: ha | AB19: =NA() ->  | AC19: 0 | AD19: 0 | AF19: 0 | AG19: 0
B20: Other | F20: =NA() ->  | G20: 0 | H20: 0 | J20: 0 | K20: 0 | M20: Other | Q20: =NA() ->  | R20: 0 | S20: 0 | U20: 0 | V20: 0 | X20: Other | AB20: =NA() ->  | AC20: 0 | AD20: 0 | AF20: 0 | AG20: 0
B21: VERY LOW PERMEABILITY COVER (in addition to above) | M21: VERY LOW PERMEABILITY COVER (in addition to above) | X21: VERY LOW PERMEABILITY COVER (in addition to above)
B22: Liner subgrade preparation - compact | D22: m2 | F22: =NA() ->  | G22: =IF(ISNA(F22),0,INDEX(IF(UPPER(RIGHT(F22,1))=Low,UnitCostLow, IF(UPPER(RIGHT(F22,1))=High,UnitCostHigh,UnitCostSpecified)),MATCH(UPPER(LEFT(F22,LEN(F22)-1)),CostCode,0))) -> 0 | H22: =G22*E22 -> 0 | J22: =H22*I22 -> 0 | K22: =+H22*(1-I22) -> 0 | M22: Liner subgrade preparation - compact | O22: m2 | Q22: =NA() ->  | R22: =IF(ISNA(Q22),0,INDEX(IF(UPPER(RIGHT(Q22,1))=Low,UnitCostLow, IF(UPPER(RIGHT(Q22,1))=High,UnitCostHigh,UnitCostSpecified)),MATCH(UPPER(LEFT(Q22,LEN(Q22)-1)),CostCode,0))) -> 0 | S22: =R22*P22 -> 0 | U22: =S22*T22 -> 0 | V22: =+S22*(1-T22) -> 0 | X22: Liner subgrade preparation - compact | Z22: m2 | AB22: =NA() ->  | AC22: =IF(ISNA(AB22),0,INDEX(IF(UPPER(RIGHT(AB22,1))=Low,UnitCostLow, IF(UPPER(RIGHT(AB22,1))=High,UnitCostHigh,UnitCostSpecified)),MATCH(UPPER(LEFT(AB22,LEN(AB22)-1)),CostCode,0))) -> 0 | AD22: =AC22*AA22 -> 0 | AF22: =AD22*AE22 -> 0 | AG22: =+AD22*(1-AE22) -> 0
B23: Supply geomembrame | D23: m2 | F23: =NA() ->  | G23: =IF(ISNA(F23),0,INDEX(IF(UPPER(RIGHT(F23,1))=Low,UnitCostLow, IF(UPPER(RIGHT(F23,1))=High,UnitCostHigh,UnitCostSpecified)),MATCH(UPPER(LEFT(F23,LEN(F23)-1)),CostCode,0))) -> 0 | H23: =G23*E23 -> 0 | J23: 0 | K23: 0 | M23: Supply geomembrame | O23: m2 | Q23: =NA() ->  | R23: =IF(ISNA(Q23),0,INDEX(IF(UPPER(RIGHT(Q23,1))=Low,UnitCostLow, IF(UPPER(RIGHT(Q23,1))=High,UnitCostHigh,UnitCostSpecified)),MATCH(UPPER(LEFT(Q23,LEN(Q23)-1)),CostCode,0))) -> 0 | S23: =R23*P23 -> 0 | U23: 0 | V23: 0 | X23: Supply geomembrame | Z23: m2 | AB23: =NA() ->  | AC23: =IF(ISNA(AB23),0,INDEX(IF(UPPER(RIGHT(AB23,1))=Low,UnitCostLow, IF(UPPER(RIGHT(AB23,1))=High,UnitCostHigh,UnitCostSpecified)),MATCH(UPPER(LEFT(AB23,LEN(AB23)-1)),CostCode,0))) -> 0 | AD23: =AC23*AA23 -> 0 | AF23: 0 | AG23: 0
B24: Install geomembrane | D24: m2 | F24: =NA() ->  | G24: =IF(ISNA(F24),0,INDEX(IF(UPPER(RIGHT(F24,1))=Low,UnitCostLow, IF(UPPER(RIGHT(F24,1))=High,UnitCostHigh,UnitCostSpecified)),MATCH(UPPER(LEFT(F24,LEN(F24)-1)),CostCode,0))) -> 0 | H24: =G24*E24 -> 0 | J24: 0 | K24: 0 | M24: Install geomembrane | O24: m2 | Q24: =NA() ->  | R24: =IF(ISNA(Q24),0,INDEX(IF(UPPER(RIGHT(Q24,1))=Low,UnitCostLow, IF(UPPER(RIGHT(Q24,1))=High,UnitCostHigh,UnitCostSpecified)),MATCH(UPPER(LEFT(Q24,LEN(Q24)-1)),CostCode,0))) -> 0 | S24: =R24*P24 -> 0 | U24: 0 | V24: 0 | X24: Install geomembrane | Z24: m2 | AB24: =NA() ->  | AC24: =IF(ISNA(AB24),0,INDEX(IF(UPPER(RIGHT(AB24,1))=Low,UnitCostLow, IF(UPPER(RIGHT(AB24,1))=High,UnitCostHigh,UnitCostSpecified)),MATCH(UPPER(LEFT(AB24,LEN(AB24)-1)),CostCode,0))) -> 0 | AD24: =AC24*AA24 -> 0 | AF24: 0 | AG24: 0
B25: Protective cover - excavate,haul,spread&compact | D25: m3 | F25: =NA() ->  | G25: 0 | H25: 0 | J25: 0 | K25: 0 | M25: Protective cover - excavate,haul,spread&compact | O25: m3 | Q25: =NA() ->  | R25: 0 | S25: 0 | U25: 0 | V25: 0 | X25: Protective cover - excavate,haul,spread&compact | Z25: m3 | AB25: =NA() ->  | AC25: 0 | AD25: 0 | AF25: 0 | AG25: 0
B26: Vegetate | D26: ha | F26: =NA() ->  | G26: 0 | H26: 0 | J26: 0 | K26: 0 | M26: Vegetate | O26: ha | Q26: =NA() ->  | R26: 0 | S26: 0 | U26: 0 | V26: 0 | X26: Vegetate | Z26: ha | AB26: =NA() ->  | AC26: 0 | AD26: 0 | AF26: 0 | AG26: 0
B27: Install infiltration/seepage instrumentation | D27: allow | F27: =NA() ->  | G27: 0 | H27: 0 | J27: 0 | K27: 0 | M27: Install infiltration/seepage instrumentation | O27: allow | Q27: =NA() ->  | R27: 0 | S27: 0 | U27: 0 | V27: 0 | X27: Install infiltration/seepage instrumentation | Z27: allow | AB27: =NA() ->  | AC27: 0 | AD27: 0 | AF27: 0 | AG27: 0
B28: CONSTRUCT DIVERSION DITCHES | M28: CONSTRUCT DIVERSION DITCHES | X28: CONSTRUCT DIVERSION DITCHES
B29: Excavate ditches -soil | D29: m3 | F29: =NA() ->  | G29: =IF(ISNA(F29),0,INDEX(IF(UPPER(RIGHT(F29,1))=Low,UnitCostLow, IF(UPPER(RIGHT(F29,1))=High,UnitCostHigh,UnitCostSpecified)),MATCH(UPPER(LEFT(F29,LEN(F29)-1)),CostCode,0))) -> 0 | H29: =G29*E29 -> 0 | J29: =H29*I29 -> 0 | K29: =+H29*(1-I29) -> 0 | M29: Excavate ditches -soil | O29: m3 | Q29: =NA() ->  | R29: =IF(ISNA(Q29),0,INDEX(IF(UPPER(RIGHT(Q29,1))=Low,UnitCostLow, IF(UPPER(RIGHT(Q29,1))=High,UnitCostHigh,UnitCostSpecified)),MATCH(UPPER(LEFT(Q29,LEN(Q29)-1)),CostCode,0))) -> 0 | S29: =R29*P29 -> 0 | U29: =S29*T29 -> 0 | V29: =+S29*(1-T29) -> 0 | X29: Excavate ditches -soil | Z29: m3 | AB29: =NA() ->  | AC29: =IF(ISNA(AB29),0,INDEX(IF(UPPER(RIGHT(AB29,1))=Low,UnitCostLow, IF(UPPER(RIGHT(AB29,1))=High,UnitCostHigh,UnitCostSpecified)),MATCH(UPPER(LEFT(AB29,LEN(AB29)-1)),CostCode,0))) -> 0 | AD29: =AC29*AA29 -> 0 | AF29: =AD29*AE29 -> 0 | AG29: =+AD29*(1-AE29) -> 0
B30: Excavate ditches -rock | D30: m3 | F30: =NA() ->  | G30: =IF(ISNA(F30),0,INDEX(IF(UPPER(RIGHT(F30,1))=Low,UnitCostLow, IF(UPPER(RIGHT(F30,1))=High,UnitCostHigh,UnitCostSpecified)),MATCH(UPPER(LEFT(F30,LEN(F30)-1)),CostCode,0))) -> 0 | H30: 0 | J30: 0 | K30: 0 | M30: Excavate ditches -rock | O30: m3 | Q30: =NA() ->  | R30: =IF(ISNA(Q30),0,INDEX(IF(UPPER(RIGHT(Q30,1))=Low,UnitCostLow, IF(UPPER(RIGHT(Q30,1))=High,UnitCostHigh,UnitCostSpecified)),MATCH(UPPER(LEFT(Q30,LEN(Q30)-1)),CostCode,0))) -> 0 | S30: 0 | U30: 0 | V30: 0 | X30: Excavate ditches -rock | Z30: m3 | AB30: =NA() ->  | AC30: =IF(ISNA(AB30),0,INDEX(IF(UPPER(RIGHT(AB30,1))=Low,UnitCostLow, IF(UPPER(RIGHT(AB30,1))=High,UnitCostHigh,UnitCostSpecified)),MATCH(UPPER(LEFT(AB30,LEN(AB30)-1)),CostCode,0))) -> 0 | AD30: 0 | AF30: 0 | AG30: 0
B31: Rip rap in channel base | D31: m3 | F31: =NA() ->  | G31: =IF(ISNA(F31),0,INDEX(IF(UPPER(RIGHT(F31,1))=Low,UnitCostLow, IF(UPPER(RIGHT(F31,1))=High,UnitCostHigh,UnitCostSpecified)),MATCH(UPPER(LEFT(F31,LEN(F31)-1)),CostCode,0))) -> 0 | H31: 0 | J31: 0 | K31: 0 | M31: Rip rap in channel base | O31: m3 | Q31: =NA() ->  | R31: =IF(ISNA(Q31),0,INDEX(IF(UPPER(RIGHT(Q31,1))=Low,UnitCostLow, IF(UPPER(RIGHT(Q31,1))=High,UnitCostHigh,UnitCostSpecified)),MATCH(UPPER(LEFT(Q31,LEN(Q31)-1)),CostCode,0))) -> 0 | S31: 0 | U31: 0 | V31: 0 | X31: Rip rap in channel base | Z31: m3 | AB31: =NA() ->  | AC31: =IF(ISNA(AB31),0,INDEX(IF(UPPER(RIGHT(AB31,1))=Low,UnitCostLow, IF(UPPER(RIGHT(AB31,1))=High,UnitCostHigh,UnitCostSpecified)),MATCH(UPPER(LEFT(AB31,LEN(AB31)-1)),CostCode,0))) -> 0 | AD31: 0 | AF31: 0 | AG31: 0
B32: CONSTRUCT SEEPAGE COLLECTION POND | M32: CONSTRUCT SEEPAGE COLLECTION POND | X32: CONSTRUCT SEEPAGE COLLECTION POND
B33: Excavate seepage collection pond | D33: m3 | F33: =NA() ->  | G33: 0 | H33: 0 | J33: =H33*I33 -> 0 | K33: =+H33*(1-I33) -> 0 | M33: Excavate seepage collection pond | O33: m3 | Q33: =NA() ->  | R33: =IF(ISNA(Q33),0,INDEX(IF(UPPER(RIGHT(Q33,1))=Low,UnitCostLow, IF(UPPER(RIGHT(Q33,1))=High,UnitCostHigh,UnitCostSpecified)),MATCH(UPPER(LEFT(Q33,LEN(Q33)-1)),CostCode,0))) -> 0 | S33: =R33*P33 -> 0 | U33: =S33*T33 -> 0 | V33: =+S33*(1-T33) -> 0 | X33: Excavate seepage collection pond | Z33: m3 | AB33: =NA() ->  | AC33: =IF(ISNA(AB33),0,INDEX(IF(UPPER(RIGHT(AB33,1))=Low,UnitCostLow, IF(UPPER(RIGHT(AB33,1))=High,UnitCostHigh,UnitCostSpecified)),MATCH(UPPER(LEFT(AB33,LEN(AB33)-1)),CostCode,0))) -> 0 | AD33: =AC33*AA33 -> 0 | AF33: =AD33*AE33 -> 0 | AG33: =+AD33*(1-AE33) -> 0
B34: Doze & spread excavated material | D34: m3 | F34: =NA() ->  | G34: 0 | H34: 0 | J34: 0 | K34: 0 | M34: Doze & spread excavated material | O34: m3 | Q34: =NA() ->  | R34: 0 | S34: 0 | U34: 0 | V34: 0 | X34: Doze & spread excavated material | Z34: m3 | AB34: =NA() ->  | AC34: 0 | AD34: 0 | AF34: 0 | AG34: 0
B35: Vegetate spread material | D35: ha | F35: =NA() ->  | G35: 0 | H35: 0 | J35: 0 | K35: 0 | M35: Vegetate spread material | O35: ha | Q35: =NA() ->  | R35: 0 | S35: 0 | U35: 0 | V35: 0 | X35: Vegetate spread material | Z35: ha | AB35: =NA() ->  | AC35: 0 | AD35: 0 | AF35: 0 | AG35: 0
B36: Bedding layer | D36: m3 | F36: =NA() ->  | G36: 0 | H36: 0 | J36: 0 | K36: 0 | M36: Bedding layer | O36: m3 | Q36: =NA() ->  | R36: 0 | S36: 0 | U36: 0 | V36: 0 | X36: Bedding layer | Z36: m3 | AB36: =NA() ->  | AC36: 0 | AD36: 0 | AF36: 0 | AG36: 0
B37: Supply geomembrane | D37: m2 | F37: =NA() ->  | G37: 0 | H37: 0 | J37: 0 | K37: 0 | M37: Supply geomembrane | O37: m2 | Q37: =NA() ->  | R37: 0 | S37: 0 | U37: 0 | V37: 0 | X37: Supply geomembrane | Z37: m2 | AB37: =NA() ->  | AC37: 0 | AD37: 0 | AF37: 0 | AG37: 0
B38: Install geomembrane | D38: m2 | F38: =NA() ->  | G38: 0 | H38: 0 | J38: 0 | K38: 0 | M38: Install geomembrane | O38: m2 | Q38: =NA() ->  | R38: 0 | S38: 0 | U38: 0 | V38: 0 | X38: Install geomembrane | Z38: m2 | AB38: =NA() ->  | AC38: 0 | AD38: 0 | AF38: 0 | AG38: 0
B39: Erosion protection layer | D39: m3 | F39: =NA() ->  | G39: 0 | H39: 0 | J39: 0 | K39: 0 | M39: Erosion protection layer | O39: m3 | Q39: =NA() ->  | R39: 0 | S39: 0 | U39: 0 | V39: 0 | X39: Erosion protection layer | Z39: m3 | AB39: =NA() ->  | AC39: 0 | AD39: 0 | AF39: 0 | AG39: 0
B40: INSTALL GROUNDWATER COLLECTION SYSTEM | M40: INSTALL GROUNDWATER COLLECTION SYSTEM | X40: INSTALL GROUNDWATER COLLECTION SYSTEM
B41: Excavate/install sumps | D41: m3 | F41: =NA() ->  | G41: =IF(ISNA(F41),0,INDEX(IF(UPPER(RIGHT(F41,1))=Low,UnitCostLow, IF(UPPER(RIGHT(F41,1))=High,UnitCostHigh,UnitCostSpecified)),MATCH(UPPER(LEFT(F41,LEN(F41)-1)),CostCode,0))) -> 0 | H41: =G41*E41 -> 0 | J41: =H41*I41 -> 0 | K41: =+H41*(1-I41) -> 0 | M41: Excavate/install sumps | O41: m3 | Q41: =NA() ->  | R41: =IF(ISNA(Q41),0,INDEX(IF(UPPER(RIGHT(Q41,1))=Low,UnitCostLow, IF(UPPER(RIGHT(Q41,1))=High,UnitCostHigh,UnitCostSpecified)),MATCH(UPPER(LEFT(Q41,LEN(Q41)-1)),CostCode,0))) -> 0 | S41: =R41*P41 -> 0 | U41: =S41*T41 -> 0 | V41: =+S41*(1-T41) -> 0 | X41: Excavate/install sumps | Z41: m3 | AB41: =NA() ->  | AC41: =IF(ISNA(AB41),0,INDEX(IF(UPPER(RIGHT(AB41,1))=Low,UnitCostLow, IF(UPPER(RIGHT(AB41,1))=High,UnitCostHigh,UnitCostSpecified)),MATCH(UPPER(LEFT(AB41,LEN(AB41)-1)),CostCode,0))) -> 0 | AD41: =AC41*AA41 -> 0 | AF41: =AD41*AE41 -> 0 | AG41: =+AD41*(1-AE41) -> 0
B42: Install pumping wells | D42: m3 | F42: =NA() ->  | G42: 0 | H42: 0 | J42: 0 | K42: 0 | M42: Install pumping wells | O42: m3 | Q42: =NA() ->  | R42: 0 | S42: 0 | U42: 0 | V42: 0 | X42: Install pumping wells | Z42: m3 | AB42: =NA() ->  | AC42: 0 | AD42: 0 | AF42: 0 | AG42: 0
B43: Install pumps/pipelines/power supply | D43: allow | F43: =NA() ->  | G43: 0 | H43: 0 | J43: 0 | K43: 0 | M43: Install pumps/pipelines/power supply | O43: allow | Q43: =NA() ->  | R43: 0 | S43: 0 | U43: 0 | V43: 0 | X43: Install pumps/pipelines/power supply | Z43: allow | AB43: =NA() ->  | AC43: 0 | AD43: 0 | AF43: 0 | AG43: 0
B44: RELOCATE DUMPS | M44: RELOCATE DUMPS | X44: RELOCATE DUMPS
B45: Load, haul, dump or doze | D45: m3 | F45: =NA() ->  | G45: =IF(ISNA(F45),0,INDEX(IF(UPPER(RIGHT(F45,1))=Low,UnitCostLow, IF(UPPER(RIGHT(F45,1))=High,UnitCostHigh,UnitCostSpecified)),MATCH(UPPER(LEFT(F45,LEN(F45)-1)),CostCode,0))) -> 0 | H45: =G45*E45 -> 0 | J45: =H45*I45 -> 0 | K45: =+H45*(1-I45) -> 0 | M45: Load, haul, dump or doze | O45: m3 | Q45: =NA() ->  | R45: =IF(ISNA(Q45),0,INDEX(IF(UPPER(RIGHT(Q45,1))=Low,UnitCostLow, IF(UPPER(RIGHT(Q45,1))=High,UnitCostHigh,UnitCostSpecified)),MATCH(UPPER(LEFT(Q45,LEN(Q45)-1)),CostCode,0))) -> 0 | S45: =R45*P45 -> 0 | U45: =S45*T45 -> 0 | V45: =+S45*(1-T45) -> 0 | X45: Load, haul, dump or doze | Z45: m3 | AB45: =NA() ->  | AC45: =IF(ISNA(AB45),0,INDEX(IF(UPPER(RIGHT(AB45,1))=Low,UnitCostLow, IF(UPPER(RIGHT(AB45,1))=High,UnitCostHigh,UnitCostSpecified)),MATCH(UPPER(LEFT(AB45,LEN(AB45)-1)),CostCode,0))) -> 0 | AD45: =AC45*AA45 -> 0 | AF45: =AD45*AE45 -> 0 | AG45: =+AD45*(1-AE45) -> 0
B46: Add lime | D46: tonne | F46: =NA() ->  | G46: =IF(ISNA(F46),0,INDEX(IF(UPPER(RIGHT(F46,1))=Low,UnitCostLow, IF(UPPER(RIGHT(F46,1))=High,UnitCostHigh,UnitCostSpecified)),MATCH(UPPER(LEFT(F46,LEN(F46)-1)),CostCode,0))) -> 0 | H46: =G46*E46 -> 0 | J46: =H46*I46 -> 0 | K46: =+H46*(1-I46) -> 0 | M46: Add lime | O46: tonne | Q46: =NA() ->  | R46: =IF(ISNA(Q46),0,INDEX(IF(UPPER(RIGHT(Q46,1))=Low,UnitCostLow, IF(UPPER(RIGHT(Q46,1))=High,UnitCostHigh,UnitCostSpecified)),MATCH(UPPER(LEFT(Q46,LEN(Q46)-1)),CostCode,0))) -> 0 | S46: =R46*P46 -> 0 | U46: =S46*T46 -> 0 | V46: =+S46*(1-T46) -> 0 | X46: Add lime | Z46: tonne | AB46: =NA() ->  | AC46: =IF(ISNA(AB46),0,INDEX(IF(UPPER(RIGHT(AB46,1))=Low,UnitCostLow, IF(UPPER(RIGHT(AB46,1))=High,UnitCostHigh,UnitCostSpecified)),MATCH(UPPER(LEFT(AB46,LEN(AB46)-1)),CostCode,0))) -> 0 | AD46: =AC46*AA46 -> 0 | AF46: =AD46*AE46 -> 0 | AG46: =+AD46*(1-AE46) -> 0
B47: Contour reclaimed area | D47: ha | F47: =NA() ->  | G47: =IF(ISNA(F47),0,INDEX(IF(UPPER(RIGHT(F47,1))=Low,UnitCostLow, IF(UPPER(RIGHT(F47,1))=High,UnitCostHigh,UnitCostSpecified)),MATCH(UPPER(LEFT(F47,LEN(F47)-1)),CostCode,0))) -> 0 | H47: =G47*E47 -> 0 | J47: =H47*I47 -> 0 | K47: =+H47*(1-I47) -> 0 | M47: Contour reclaimed area | O47: ha | Q47: =NA() ->  | R47: =IF(ISNA(Q47),0,INDEX(IF(UPPER(RIGHT(Q47,1))=Low,UnitCostLow, IF(UPPER(RIGHT(Q47,1))=High,UnitCostHigh,UnitCostSpecified)),MATCH(UPPER(LEFT(Q47,LEN(Q47)-1)),CostCode,0))) -> 0 | S47: =R47*P47 -> 0 | U47: =S47*T47 -> 0 | V47: =+S47*(1-T47) -> 0 | X47: Contour reclaimed area | Z47: ha | AB47: =NA() ->  | AC47: =IF(ISNA(AB47),0,INDEX(IF(UPPER(RIGHT(AB47,1))=Low,UnitCostLow, IF(UPPER(RIGHT(AB47,1))=High,UnitCostHigh,UnitCostSpecified)),MATCH(UPPER(LEFT(AB47,LEN(AB47)-1)),CostCode,0))) -> 0 | AD47: =AC47*AA47 -> 0 | AF47: =AD47*AE47 -> 0 | AG47: =+AD47*(1-AE47) -> 0
B48: Other | F48: =NA() ->  | G48: =IF(ISNA(F48),0,INDEX(IF(UPPER(RIGHT(F48,1))=Low,UnitCostLow, IF(UPPER(RIGHT(F48,1))=High,UnitCostHigh,UnitCostSpecified)),MATCH(UPPER(LEFT(F48,LEN(F48)-1)),CostCode,0))) -> 0 | H48: =G48*E48 -> 0 | J48: =H48*I48 -> 0 | K48: =+H48*(1-I48) -> 0 | M48: Other | Q48: =NA() ->  | R48: =IF(ISNA(Q48),0,INDEX(IF(UPPER(RIGHT(Q48,1))=Low,UnitCostLow, IF(UPPER(RIGHT(Q48,1))=High,UnitCostHigh,UnitCostSpecified)),MATCH(UPPER(LEFT(Q48,LEN(Q48)-1)),CostCode,0))) -> 0 | S48: =R48*P48 -> 0 | U48: =S48*T48 -> 0 | V48: =+S48*(1-T48) -> 0 | X48: Other | AB48: =NA() ->  | AC48: =IF(ISNA(AB48),0,INDEX(IF(UPPER(RIGHT(AB48,1))=Low,UnitCostLow, IF(UPPER(RIGHT(AB48,1))=High,UnitCostHigh,UnitCostSpecified)),MATCH(UPPER(LEFT(AB48,LEN(AB48)-1)),CostCode,0))) -> 0 | AD48: =AC48*AA48 -> 0 | AF48: =AD48*AE48 -> 0 | AG48: =+AD48*(1-AE48) -> 0
B49: SPECIALIZED ITEMS | M49: SPECIALIZED ITEMS | X49: SPECIALIZED ITEMS
B50: Install permanent instrumentation | D50: each | F50: =NA() ->  | G50: =IF(ISNA(F50),0,INDEX(IF(UPPER(RIGHT(F50,1))=Low,UnitCostLow, IF(UPPER(RIGHT(F50,1))=High,UnitCostHigh,UnitCostSpecified)),MATCH(UPPER(LEFT(F50,LEN(F50)-1)),CostCode,0))) -> 0 | H50: =G50*E50 -> 0 | J50: =H50*I50 -> 0 | K50: =+H50*(1-I50) -> 0 | M50: Install permanent instrumentation | O50: each | Q50: =NA() ->  | R50: =IF(ISNA(Q50),0,INDEX(IF(UPPER(RIGHT(Q50,1))=Low,UnitCostLow, IF(UPPER(RIGHT(Q50,1))=High,UnitCostHigh,UnitCostSpecified)),MATCH(UPPER(LEFT(Q50,LEN(Q50)-1)),CostCode,0))) -> 0 | S50: =R50*P50 -> 0 | U50: =S50*T50 -> 0 | V50: =+S50*(1-T50) -> 0 | X50: Install permanent instrumentation | Z50: each | AB50: =NA() ->  | AC50: =IF(ISNA(AB50),0,INDEX(IF(UPPER(RIGHT(AB50,1))=Low,UnitCostLow, IF(UPPER(RIGHT(AB50,1))=High,UnitCostHigh,UnitCostSpecified)),MATCH(UPPER(LEFT(AB50,LEN(AB50)-1)),CostCode,0))) -> 0 | AD50: =AC50*AA50 -> 0 | AF50: =AD50*AE50 -> 0 | AG50: =+AD50*(1-AE50) -> 0
B51: Install permanent instrumentation, drilling | D51: each | F51: =NA() ->  | G51: =IF(ISNA(F51),0,INDEX(IF(UPPER(RIGHT(F51,1))=Low,UnitCostLow, IF(UPPER(RIGHT(F51,1))=High,UnitCostHigh,UnitCostSpecified)),MATCH(UPPER(LEFT(F51,LEN(F51)-1)),CostCode,0))) -> 0 | H51: =G51*E51 -> 0 | J51: =H51*I51 -> 0 | K51: =+H51*(1-I51) -> 0 | M51: Install permanent instrumentation, drilling | O51: each | Q51: =NA() ->  | R51: =IF(ISNA(Q51),0,INDEX(IF(UPPER(RIGHT(Q51,1))=Low,UnitCostLow, IF(UPPER(RIGHT(Q51,1))=High,UnitCostHigh,UnitCostSpecified)),MATCH(UPPER(LEFT(Q51,LEN(Q51)-1)),CostCode,0))) -> 0 | S51: =R51*P51 -> 0 | U51: =S51*T51 -> 0 | V51: =+S51*(1-T51) -> 0 | X51: Install permanent instrumentation, drilling | Z51: each | AB51: =NA() ->  | AC51: =IF(ISNA(AB51),0,INDEX(IF(UPPER(RIGHT(AB51,1))=Low,UnitCostLow, IF(UPPER(RIGHT(AB51,1))=High,UnitCostHigh,UnitCostSpecified)),MATCH(UPPER(LEFT(AB51,LEN(AB51)-1)),CostCode,0))) -> 0 | AD51: =AC51*AA51 -> 0 | AF51: =AD51*AE51 -> 0 | AG51: =+AD51*(1-AE51) -> 0
B52: TREAT ROCK PILE SEEPAGE - see "Water Management" | M52: TREAT ROCK PILE SEEPAGE - see "Water Management" | X52: TREAT ROCK PILE SEEPAGE - see "Water Management"
B53: HEAP LEACH SEEPAGE TREATMENT - Cyanide Detox | M53: HEAP LEACH SEEPAGE TREATMENT - Cyanide Detox | X53: HEAP LEACH SEEPAGE TREATMENT - Cyanide Detox
B54: Cyanide destruction water treatment pumping | D54: m3 | F54: =NA() ->  | G54: =IF(ISNA(F54),0,INDEX(IF(UPPER(RIGHT(F54,1))=Low,UnitCostLow, IF(UPPER(RIGHT(F54,1))=High,UnitCostHigh,UnitCostSpecified)),MATCH(UPPER(LEFT(F54,LEN(F54)-1)),CostCode,0))) -> 0 | H54: =G54*E54 -> 0 | J54: =H54*I54 -> 0 | K54: =+H54*(1-I54) -> 0 | M54: Cyanide destruction water treatment pumping | O54: m3 | Q54: =NA() ->  | R54: =IF(ISNA(Q54),0,INDEX(IF(UPPER(RIGHT(Q54,1))=Low,UnitCostLow, IF(UPPER(RIGHT(Q54,1))=High,UnitCostHigh,UnitCostSpecified)),MATCH(UPPER(LEFT(Q54,LEN(Q54)-1)),CostCode,0))) -> 0 | S54: =R54*P54 -> 0 | U54: =S54*T54 -> 0 | V54: =+S54*(1-T54) -> 0 | X54: Cyanide destruction water treatment pumping | Z54: m3 | AB54: =NA() ->  | AC54: =IF(ISNA(AB54),0,INDEX(IF(UPPER(RIGHT(AB54,1))=Low,UnitCostLow, IF(UPPER(RIGHT(AB54,1))=High,UnitCostHigh,UnitCostSpecified)),MATCH(UPPER(LEFT(AB54,LEN(AB54)-1)),CostCode,0))) -> 0 | AD54: =AC54*AA54 -> 0 | AF54: =AD54*AE54 -> 0 | AG54: =+AD54*(1-AE54) -> 0
B55: Reagents | D55: tonnes | F55: =NA() ->  | G55: =IF(ISNA(F55),0,INDEX(IF(UPPER(RIGHT(F55,1))=Low,UnitCostLow, IF(UPPER(RIGHT(F55,1))=High,UnitCostHigh,UnitCostSpecified)),MATCH(UPPER(LEFT(F55,LEN(F55)-1)),CostCode,0))) -> 0 | H55: =G55*E55 -> 0 | J55: =H55*I55 -> 0 | K55: =+H55*(1-I55) -> 0 | M55: Reagents | O55: tonnes | Q55: =NA() ->  | R55: =IF(ISNA(Q55),0,INDEX(IF(UPPER(RIGHT(Q55,1))=Low,UnitCostLow, IF(UPPER(RIGHT(Q55,1))=High,UnitCostHigh,UnitCostSpecified)),MATCH(UPPER(LEFT(Q55,LEN(Q55)-1)),CostCode,0))) -> 0 | S55: =R55*P55 -> 0 | U55: =S55*T55 -> 0 | V55: =+S55*(1-T55) -> 0 | X55: Reagents | Z55: tonnes | AB55: =NA() ->  | AC55: =IF(ISNA(AB55),0,INDEX(IF(UPPER(RIGHT(AB55,1))=Low,UnitCostLow, IF(UPPER(RIGHT(AB55,1))=High,UnitCostHigh,UnitCostSpecified)),MATCH(UPPER(LEFT(AB55,LEN(AB55)-1)),CostCode,0))) -> 0 | AD55: =AC55*AA55 -> 0 | AF55: =AD55*AE55 -> 0 | AG55: =+AD55*(1-AE55) -> 0
B56: Electrician/mechanic to maintain treatment plant | D56: allow | F56: =NA() ->  | G56: =IF(ISNA(F56),0,INDEX(IF(UPPER(RIGHT(F56,1))=Low,UnitCostLow, IF(UPPER(RIGHT(F56,1))=High,UnitCostHigh,UnitCostSpecified)),MATCH(UPPER(LEFT(F56,LEN(F56)-1)),CostCode,0))) -> 0 | H56: =G56*E56 -> 0 | J56: =H56*I56 -> 0 | K56: =+H56*(1-I56) -> 0 | M56: Electrician/mechanic to maintain treatment plant | O56: allow | Q56: =NA() ->  | R56: =IF(ISNA(Q56),0,INDEX(IF(UPPER(RIGHT(Q56,1))=Low,UnitCostLow, IF(UPPER(RIGHT(Q56,1))=High,UnitCostHigh,UnitCostSpecified)),MATCH(UPPER(LEFT(Q56,LEN(Q56)-1)),CostCode,0))) -> 0 | S56: =R56*P56 -> 0 | U56: =S56*T56 -> 0 | V56: =+S56*(1-T56) -> 0 | X56: Electrician/mechanic to maintain treatment plant | Z56: allow | AB56: =NA() ->  | AC56: =IF(ISNA(AB56),0,INDEX(IF(UPPER(RIGHT(AB56,1))=Low,UnitCostLow, IF(UPPER(RIGHT(AB56,1))=High,UnitCostHigh,UnitCostSpecified)),MATCH(UPPER(LEFT(AB56,LEN(AB56)-1)),CostCode,0))) -> 0 | AD56: =AC56*AA56 -> 0 | AF56: =AD56*AE56 -> 0 | AG56: =+AD56*(1-AE56) -> 0
B57: Equipment maintenance and parts | D57: allow | F57: =NA() ->  | G57: =IF(ISNA(F57),0,INDEX(IF(UPPER(RIGHT(F57,1))=Low,UnitCostLow, IF(UPPER(RIGHT(F57,1))=High,UnitCostHigh,UnitCostSpecified)),MATCH(UPPER(LEFT(F57,LEN(F57)-1)),CostCode,0))) -> 0 | H57: =G57*E57 -> 0 | J57: =H57*I57 -> 0 | K57: =+H57*(1-I57) -> 0 | M57: Equipment maintenance and parts | O57: allow | Q57: =NA() ->  | R57: =IF(ISNA(Q57),0,INDEX(IF(UPPER(RIGHT(Q57,1))=Low,UnitCostLow, IF(UPPER(RIGHT(Q57,1))=High,UnitCostHigh,UnitCostSpecified)),MATCH(UPPER(LEFT(Q57,LEN(Q57)-1)),CostCode,0))) -> 0 | S57: =R57*P57 -> 0 | U57: =S57*T57 -> 0 | V57: =+S57*(1-T57) -> 0 | X57: Equipment maintenance and parts | Z57: allow | AB57: =NA() ->  | AC57: =IF(ISNA(AB57),0,INDEX(IF(UPPER(RIGHT(AB57,1))=Low,UnitCostLow, IF(UPPER(RIGHT(AB57,1))=High,UnitCostHigh,UnitCostSpecified)),MATCH(UPPER(LEFT(AB57,LEN(AB57)-1)),CostCode,0))) -> 0 | AD57: =AC57*AA57 -> 0 | AF57: =AD57*AE57 -> 0 | AG57: =+AD57*(1-AE57) -> 0
G58: Annual treatment costs | H58: =SUM(H54:H57)+0.0001 -> 0.0001 | R58: Annual treatment costs | S58: =SUM(S54:S57)+0.0001 -> 0.0001 | AC58: Annual treatment costs | AD58: =SUM(AD54:AD57)+0.0001 -> 0.0001
B59: Number of years of treatment | D59: years | M59: Number of years of treatment | O59: years | X59: Number of years of treatment | Z59: years
G60: Total treatment costs | H60: =H58*E59 -> 0 | K60: =H60 -> 0 | R60: Total treatment costs | S60: =S58*P59 -> 0 | V60: =S60 -> 0 | AC60: Total treatment costs | AD60: =AD58*AA59 -> 0 | AG60: =AD60 -> 0
B61: HEAP LEACH SEEPAGE TREATMENT - ARD/ML** | M61: HEAP LEACH SEEPAGE TREATMENT - ARD/ML** | X61: HEAP LEACH SEEPAGE TREATMENT - ARD/ML**
B62: Upgrade/modify pumping system - report to WTP | D62: allow | F62: =NA() ->  | G62: =IF(ISNA(F62),0,INDEX(IF(UPPER(RIGHT(F62,1))=Low,UnitCostLow, IF(UPPER(RIGHT(F62,1))=High,UnitCostHigh,UnitCostSpecified)),MATCH(UPPER(LEFT(F62,LEN(F62)-1)),CostCode,0))) -> 0 | H62: =G62*E62 -> 0 | K62: =H62 -> 0 | M62: Upgrade/modify pumping system - report to WTP | O62: allow | Q62: =NA() ->  | R62: =IF(ISNA(Q62),0,INDEX(IF(UPPER(RIGHT(Q62,1))=Low,UnitCostLow, IF(UPPER(RIGHT(Q62,1))=High,UnitCostHigh,UnitCostSpecified)),MATCH(UPPER(LEFT(Q62,LEN(Q62)-1)),CostCode,0))) -> 0 | S62: =R62*P62 -> 0 | V62: =S62 -> 0 | X62: Upgrade/modify pumping system - report to WTP | Z62: allow | AB62: =NA() ->  | AC62: =IF(ISNA(AB62),0,INDEX(IF(UPPER(RIGHT(AB62,1))=Low,UnitCostLow, IF(UPPER(RIGHT(AB62,1))=High,UnitCostHigh,UnitCostSpecified)),MATCH(UPPER(LEFT(AB62,LEN(AB62)-1)),CostCode,0))) -> 0 | AD62: =AC62*AA62 -> 0 | AG62: =AD62 -> 0
G63: Total | H63: =SUM(H5:H51)+H60+H62+0.0001 -> 0.0001 | J63: =SUM(J5:J51)+J60+J62 -> 0 | K63: =SUM(K5:K51)+K60+K62 -> 0 | R63: Total | S63: =SUM(S5:S51)+S60+S62+0.0001 -> 0.0001 | U63: =SUM(U5:U51)+U60+U62 -> 0 | V63: =SUM(V5:V51)+V60+V62 -> 0 | AC63: Total | AD63: =SUM(AD5:AD51)+AD60+AD62+0.0001 -> 0.0001 | AF63: =SUM(AF5:AF51)+AF60+AF62 -> 0 | AG63: =SUM(AG5:AG51)+AG60+AG62 -> 0
G64: % of Total | J64: =J63/H63 -> 0 | K64: =K63/H63 -> 0 | R64: % of Total | U64: =U63/S63 -> 0 | V64: =V63/S63 -> 0 | AC64: % of Total | AF64: =AF63/AD63 -> 0 | AG64: =AG63/AD63 -> 0
B66: * For construction of passive treatment system refer to "Water Management". ARD/ML seepage treatment becomes post-closure water treatment cost | M66: * For construction of passive treatment system refer to "Water Management". ARD/ML seepage treatment becomes post-closure water treatment cost | X66: * For construction of passive treatment system refer to "Water Management". ARD/ML seepage treatment becomes post-closure water treatment cost
B67: **Heap leach ARD/ML seepage treatment becomes post-closure water treatment cost | M67: **Heap leach ARD/ML seepage treatment becomes post-closure water treatment cost | X67: **Heap leach ARD/ML seepage treatment becomes post-closure water treatment cost

Sheet Chemicals
A1: Chemicals/Soil Area Name:
A3: Note: The procedures, equipment and packaging for clean up and removal of chemicals or contaminated soils are highly dependent on the nature of the chemicals and their existing state of containment. Government guidelines should be consulted on an individual chemical basis. Any estimate made here should be considered very rough unless specific evaluations have been conducted.
A4: ACTIVITY/MATERIAL | B4: Notes | C4: Units | D4: Quantity | E4: Cost Code | F4: Unit Cost | G4: Cost | H4: % Land | I4: Land Cost | J4: Water Cost
A5: HAZARDOUS MATERIALS AUDIT
A6: Hazardous materials audit | C6: mandays | E6: =NA() ->  | F6: =IF(ISNA(E6),0,INDEX(IF(UPPER(RIGHT(E6,1))=Low,UnitCostLow, IF(UPPER(RIGHT(E6,1))=High,UnitCostHigh,UnitCostSpecified)),MATCH(UPPER(LEFT(E6,LEN(E6)-1)),CostCode,0))) -> 0 | G6: =F6*D6 -> 0 | I6: =G6*H6 -> 0 | J6: =+G6*(1-H6) -> 0
A7: Phase 1 audit | C7: each | D7: 1 | E7: MBK | F7: 7500 | G7: =F7*D7 -> 7500 | I7: =G7*H7 -> 0 | J7: =+G7*(1-H7) -> 7500
A8: Phase 2 audit | C8: each | D8: 1 | E8: MBK | F8: 50000 | G8: 50000 | I8: 0 | J8: 50000
A9: BUILDING DECONTAMINATION & CONSOLIDATION OF HAZARDOUS MATERIALS
A10: Environmental technician/coordinator | C10: mandays | E10: =NA() ->  | F10: =IF(ISNA(E10),0,INDEX(IF(UPPER(RIGHT(E10,1))=Low,UnitCostLow, IF(UPPER(RIGHT(E10,1))=High,UnitCostHigh,UnitCostSpecified)),MATCH(UPPER(LEFT(E10,LEN(E10)-1)),CostCode,0))) -> 0 | G10: =F10*D10 -> 0 | I10: =G10*H10 -> 0 | J10: =+G10*(1-H10) -> 0
A11: Decontaminate: oil, fuel | C11: mandays | E11: =NA() ->  | F11: =IF(ISNA(E11),0,INDEX(IF(UPPER(RIGHT(E11,1))=Low,UnitCostLow, IF(UPPER(RIGHT(E11,1))=High,UnitCostHigh,UnitCostSpecified)),MATCH(UPPER(LEFT(E11,LEN(E11)-1)),CostCode,0))) -> 0 | G11: 0 | I11: 0 | J11: 0
A12: Decontaminate maintenance shop | C12: mandays | E12: =NA() ->  | F12: =IF(ISNA(E12),0,INDEX(IF(UPPER(RIGHT(E12,1))=Low,UnitCostLow, IF(UPPER(RIGHT(E12,1))=High,UnitCostHigh,UnitCostSpecified)),MATCH(UPPER(LEFT(E12,LEN(E12)-1)),CostCode,0))) -> 0 | G12: 0 | I12: 0 | J12: 0
A13: Decontaminate power plant | C13: mandays | E13: =NA() ->  | F13: 0 | G13: 0 | I13: 0 | J13: 0
A14: Decontaminate bulk fuel storage | C14: mandays | E14: =NA() ->  | F14: 0 | G14: 0 | I14: 0 | J14: 0
A15: Decontaminate ANFO plant | C15: mandays | E15: =NA() ->  | F15: 0 | G15: 0 | I15: 0 | J15: 0
A16: Decontaminate offices/warehouse/accom | C16: mandays | E16: =NA() ->  | F16: 0 | G16: 0 | I16: 0 | J16: 0
A17: Removal of asbestos siding on buildings | C17: m2 | E17: =NA() ->  | F17: 0 | G17: 0 | I17: 0 | J17: 0
A18: Removal of friable asbestos on equipment | C18: m2 | E18: =NA() ->  | F18: 0 | G18: 0 | I18: 0 | J18: 0
A19: Other | E19: =NA() ->  | F19: 0 | G19: 0 | I19: 0 | J19: 0
A20: HAZARDOUS MATERIALS REMOVAL
A21: Waste oils | C21: litre | D21: 325161 | E21: ORL | F21: =IF(ISNA(E21),0,INDEX(IF(UPPER(RIGHT(E21,1))=Low,UnitCostLow, IF(UPPER(RIGHT(E21,1))=High,UnitCostHigh,UnitCostSpecified)),MATCH(UPPER(LEFT(E21,LEN(E21)-1)),CostCode,0))) -> 0.43 | G21: =F21*D21 -> 139819.23 | I21: =G21*H21 -> 0 | J21: =+G21*(1-H21) -> 139819.23
A22: Waste fuel (Type 1, e.g. diesel dregs) | C22: litre | D22: 280000 | E22: ORL | F22: 0.43 | G22: 120400 | I22: 0 | J22: 120400
A23: Waste batteries | C23: quatrex | D23: 16 | E23: EXPLO | F23: 75 | G23: 1200 | I23: 0 | J23: 1200
A24: mill and water treatment reagents | C24: kg | D24: 285614 | E24: PCRH | F24: =IF(ISNA(E24),0,INDEX(IF(UPPER(RIGHT(E24,1))=Low,UnitCostLow, IF(UPPER(RIGHT(E24,1))=High,UnitCostHigh,UnitCostSpecified)),MATCH(UPPER(LEFT(E24,LEN(E24)-1)),CostCode,0))) -> 2.5 | G24: =F24*D24 -> 714035 | I24: =G24*H24 -> 0 | J24: =+G24*(1-H24) -> 714035
A25: Assay & environmental lab reagents | C25: pallet | D25: 10 | E25: LCRH | F25: =IF(ISNA(E25),0,INDEX(IF(UPPER(RIGHT(E25,1))=Low,UnitCostLow, IF(UPPER(RIGHT(E25,1))=High,UnitCostHigh,UnitCostSpecified)),MATCH(UPPER(LEFT(E25,LEN(E25)-1)),CostCode,0))) -> 2606.82624 | G25: 26068.2624 | I25: 0 | J25: 26068.2624
A26: Machine shop paints, solvents etc | C26: litre | D26: 7500 | E26: EXPLO | F26: 1.5 | G26: 11250 | I26: 0 | J26: 11250
A27: Glycol | C27: kg | D27: 15484 | E27: PCRH | F27: 2.5 | G27: 38710 | I27: =G27*H27 -> 0 | J27: =+G27*(1-H27) -> 38710
A28: Process reagents | C28: kg | E28: =NA() ->  | F28: =IF(ISNA(E28),0,INDEX(IF(UPPER(RIGHT(E28,1))=Low,UnitCostLow, IF(UPPER(RIGHT(E28,1))=High,UnitCostHigh,UnitCostSpecified)),MATCH(UPPER(LEFT(E28,LEN(E28)-1)),CostCode,0))) -> 0 | G28: =F28*D28 -> 0 | I28: =G28*H28 -> 0 | J28: =+G28*(1-H28) -> 0
A29: Nuclear sources | C29: allow | E29: =NA() ->  | F29: =IF(ISNA(E29),0,INDEX(IF(UPPER(RIGHT(E29,1))=Low,UnitCostLow, IF(UPPER(RIGHT(E29,1))=High,UnitCostHigh,UnitCostSpecified)),MATCH(UPPER(LEFT(E29,LEN(E29)-1)),CostCode,0))) -> 0 | G29: 0 | I29: =G29*H29 -> 0 | J29: =+G29*(1-H29) -> 0
A30: Other hazardous materials | C30: allow | E30: =NA() ->  | F30: =IF(ISNA(E30),0,INDEX(IF(UPPER(RIGHT(E30,1))=Low,UnitCostLow, IF(UPPER(RIGHT(E30,1))=High,UnitCostHigh,UnitCostSpecified)),MATCH(UPPER(LEFT(E30,LEN(E30)-1)),CostCode,0))) -> 0 | G30: =F30*D30 -> 0 | I30: =G30*H30 -> 0 | J30: =+G30*(1-H30) -> 0
A31: HAZARDOUS MATERIALS
A32: Transportation to disposal facility | C32: allow | E32: =NA() ->  | F32: =IF(ISNA(E32),0,INDEX(IF(UPPER(RIGHT(E32,1))=Low,UnitCostLow, IF(UPPER(RIGHT(E32,1))=High,UnitCostHigh,UnitCostSpecified)),MATCH(UPPER(LEFT(E32,LEN(E32)-1)),CostCode,0))) -> 0 | G32: =F32*D32 -> 0 | I32: =G32*H32 -> 0 | J32: =+G32*(1-H32) -> 0
A33: Disposal fees | C33: allow | E33: =NA() ->  | F33: =IF(ISNA(E33),0,INDEX(IF(UPPER(RIGHT(E33,1))=Low,UnitCostLow, IF(UPPER(RIGHT(E33,1))=High,UnitCostHigh,UnitCostSpecified)),MATCH(UPPER(LEFT(E33,LEN(E33)-1)),CostCode,0))) -> 0 | G33: =F33*D33 -> 0 | I33: =G33*H33 -> 0 | J33: =+G33*(1-H33) -> 0
A34: Other | E34: =NA() ->  | F34: =IF(ISNA(E34),0,INDEX(IF(UPPER(RIGHT(E34,1))=Low,UnitCostLow, IF(UPPER(RIGHT(E34,1))=High,UnitCostHigh,UnitCostSpecified)),MATCH(UPPER(LEFT(E34,LEN(E34)-1)),CostCode,0))) -> 0 | G34: =F34*D34 -> 0 | I34: =G34*H34 -> 0 | J34: =+G34*(1-H34) -> 0
A35: CONTAMINATED SOILS
A36: Contam. soil investigation - Phase 1 | C36: each | E36: =NA() ->  | F36: =IF(ISNA(E36),0,INDEX(IF(UPPER(RIGHT(E36,1))=Low,UnitCostLow, IF(UPPER(RIGHT(E36,1))=High,UnitCostHigh,UnitCostSpecified)),MATCH(UPPER(LEFT(E36,LEN(E36)-1)),CostCode,0))) -> 0 | G36: =F36*D36 -> 0 | I36: =G36*H36 -> 0 | J36: =+G36*(1-H36) -> 0
A37: Contam. soil investigation - Phase 2 | C37: each | E37: =NA() ->  | F37: =IF(ISNA(E37),0,INDEX(IF(UPPER(RIGHT(E37,1))=Low,UnitCostLow, IF(UPPER(RIGHT(E37,1))=High,UnitCostHigh,UnitCostSpecified)),MATCH(UPPER(LEFT(E37,LEN(E37)-1)),CostCode,0))) -> 0 | G37: 0 | I37: 0 | J37: 0
A38: CONTAMINATED SOIL REMOVAL
A39: Excavate, load, haul to biopile or: Excavate and transport to onsite facility | C39: m3 | D39: 14367.3 | E39: SC4L | F39: =IF(ISNA(E39),0,INDEX(IF(UPPER(RIGHT(E39,1))=Low,UnitCostLow, IF(UPPER(RIGHT(E39,1))=High,UnitCostHigh,UnitCostSpecified)),MATCH(UPPER(LEFT(E39,LEN(E39)-1)),CostCode,0))) -> 9.3 | G39: =F39*D39 -> 133615.89 | I39: =G39*H39 -> 0 | J39: =+G39*(1-H39) -> 133615.89
A40: Remediate on-site at biopile or: Manage hydrocarbon remediation at facility | C40: m3 | D40: 14367.3 | E40: CSRL | F40: =IF(ISNA(E40),0,INDEX(IF(UPPER(RIGHT(E40,1))=Low,UnitCostLow, IF(UPPER(RIGHT(E40,1))=High,UnitCostHigh,UnitCostSpecified)),MATCH(UPPER(LEFT(E40,LEN(E40)-1)),CostCode,0))) -> 47 | G40: 675263.1 | I40: 0 | J40: 675263.1
A41: Reagents/stabilizing agent | C41: m2 | E41: =NA() ->  | F41: =IF(ISNA(E41),0,INDEX(IF(UPPER(RIGHT(E41,1))=Low,UnitCostLow, IF(UPPER(RIGHT(E41,1))=High,UnitCostHigh,UnitCostSpecified)),MATCH(UPPER(LEFT(E41,LEN(E41)-1)),CostCode,0))) -> 0 | G41: =F41*D41 -> 0 | I41: =G41*H41 -> 0 | J41: =+G41*(1-H41) -> 0
A42: Excavate and transport to offsite facility | C42: m3 | E42: =NA() ->  | F42: 0 | G42: 0 | I42: 0 | J42: 0
A43: Contour decontaminated area | C43: m3 | E43: =NA() ->  | F43: 0 | G43: 0 | I43: =G43*H43 -> 0 | J43: =+G43*(1-H43) -> 0
A44: CONTAMINATED SOIL VERY LOW PERMEABILITY COVER
A45: Supply geomembrame, HDPE, ES3, GCL | C45: m2 | E45: =NA() ->  | F45: =IF(ISNA(E45),0,INDEX(IF(UPPER(RIGHT(E45,1))=Low,UnitCostLow, IF(UPPER(RIGHT(E45,1))=High,UnitCostHigh,UnitCostSpecified)),MATCH(UPPER(LEFT(E45,LEN(E45)-1)),CostCode,0))) -> 0 | G45: =F45*D45 -> 0 | I45: =G45*H45 -> 0 | J45: =+G45*(1-H45) -> 0
A46: Upper and lower bedding layers | C46: m3 | E46: =NA() ->  | F46: 0 | G46: 0 | I46: 0 | J46: 0
A47: Install geomembrane, HDPE, ES3, GCL | C47: m2 | E47: =NA() ->  | F47: 0 | G47: 0 | I47: 0 | J47: 0
A48: Erosion protection layer | C48: m3 | E48: =NA() ->  | F48: 0 | G48: 0 | I48: 0 | J48: 0
A49: Vegetate | C49: m2 | E49: =NA() ->  | F49: 0 | G49: 0 | I49: 0 | J49: 0
A50: Install infiltration/seepage instrumentation | C50: allow | E50: =NA() ->  | F50: 0 | G50: 0 | I50: =G50*H50 -> 0 | J50: =+G50*(1-H50) -> 0
A51: Other | E51: =NA() ->  | F51: 0 | G51: 0 | I51: =G51*H51 -> 0 | J51: =+G51*(1-H51) -> 0
A52: OTHER
E53: =NA() ->  | F53: =IF(ISNA(E53),0,INDEX(IF(UPPER(RIGHT(E53,1))=Low,UnitCostLow, IF(UPPER(RIGHT(E53,1))=High,UnitCostHigh,UnitCostSpecified)),MATCH(UPPER(LEFT(E53,LEN(E53)-1)),CostCode,0))) -> 0 | G53: =F53*D53 -> 0 | I53: =G53*H53 -> 0 | J53: =+G53*(1-H53) -> 0
F54: Total | G54: =SUM(G6:G53)+0.0001 -> 1917861.483 | I54: =SUM(I6:I53) -> 0 | J54: =SUM(J6:J53) -> 1917861.482
F55: % of Total | I55: =I54/G54 -> 0 | J55: =J54/G54 -> 0.9999999999

Sheet Bldgs & Equip
A1: 1 | B1: Building / Equip Name: | G1: Bldg / Equip #: | H1: 1
B3: ACTIVITY/MATERIAL | C3: Notes | D3: Units | E3: Quantity | F3: Cost Code | G3: Unit Cost | H3: Cost | I3: % Land | J3: Land Cost | K3: Water Cost
B4: DISPOSE MOBILE EQUIPMENT
B5: Decontaminate and ship off-site | D5: tonne | E5: =55000/2 -> 27500 | F5: AEM | G5: 383.12 | H5: =G5*E5 -> 10535800 | J5: =H5*I5 -> 0 | K5: =+H5*(1-I5) -> 10535800
B6: Decontaminate and dispose on-site | D6: tonne | E6: =55000/2 -> 27500 | F6: AEM | G6: 5 | H6: =G6*E6 -> 137500 | J6: =H6*I6 -> 0 | K6: =+H6*(1-I6) -> 137500
B7: Salvage Value | D7: tonne | E7: 0 | F7: AEM | G7: -383.12 | H7: =G7*E7 -> 0 | J7: 0 | K7: 0
B8: Other | F8: =NA() ->  | G8: =IF(ISNA(F8),0,INDEX(IF(UPPER(RIGHT(F8,1))=Low,UnitCostLow, IF(UPPER(RIGHT(F8,1))=High,UnitCostHigh,UnitCostSpecified)),MATCH(UPPER(LEFT(F8,LEN(F8)-1)),CostCode,0))) -> 0 | H8: =G8*E8 -> 0 | J8: =H8*I8 -> 0 | K8: =+H8*(1-I8) -> 0
B9: REMOVE BUILDINGS - see note below
B10: Accomodation Complex (incl dorms, corridors, kitchen, laundry, dry, rec hall, ERT) | D10: m2 | E10: =8232.89+1787.26+1189.76+3547.89+3347.07+678.9 -> 18783.77 | F10: BRS1L | G10: 45 | H10: =G10*E10 -> 845269.65 | J10: 0 | K10: 845269.65
B11: Exploration camp - existing does not include fuel storage area | D11: m2 | E11: 2883 | F11: BRS1L | G11: =IF(ISNA(F11),0,INDEX(IF(UPPER(RIGHT(F11,1))=Low,UnitCostLow, IF(UPPER(RIGHT(F11,1))=High,UnitCostHigh,UnitCostSpecified)),MATCH(UPPER(LEFT(F11,LEN(F11)-1)),CostCode,0))) -> 45 | H11: =G11*E11 -> 129735 | J11: =H11*I11 -> 0 | K11: =+H11*(1-I11) -> 129735
B12: Process Facilities - assumes 5000 TPD plant (including crushing building and crushed ore storage) | D12: m2 | E12: =43248+890+225 -> 44363 | F12: BRS1H | G12: 65 | H12: 2883595 | J12: 0 | K12: 2883595
B13: Assay Lab | D13: m2 | E13: 1248.3 | F13: BRS1L | G13: =IF(ISNA(F13),0,INDEX(IF(UPPER(RIGHT(F13,1))=Low,UnitCostLow, IF(UPPER(RIGHT(F13,1))=High,UnitCostHigh,UnitCostSpecified)),MATCH(UPPER(LEFT(F13,LEN(F13)-1)),CostCode,0))) -> 45 | H13: =G13*E13 -> 56173.5 | J13: =H13*I13 -> 0 | K13: =+H13*(1-I13) -> 56173.5
B14: Maintenance Shop | D14: m2 | E14: 4966.71 | F14: BRS1L | G14: =IF(ISNA(F14),0,INDEX(IF(UPPER(RIGHT(F14,1))=Low,UnitCostLow, IF(UPPER(RIGHT(F14,1))=High,UnitCostHigh,UnitCostSpecified)),MATCH(UPPER(LEFT(F14,LEN(F14)-1)),CostCode,0))) -> 45 | H14: =G14*E14 -> 223501.95 | J14: =H14*I14 -> 0 | K14: =+H14*(1-I14) -> 223501.95
B15: Mine surface general (existing and future office and megadome, and explosive plant) | D15: m2 | E15: =669.1*2+583.62 -> 1921.82 | F15: BRS1L | G15: =IF(ISNA(F15),0,INDEX(IF(UPPER(RIGHT(F15,1))=Low,UnitCostLow, IF(UPPER(RIGHT(F15,1))=High,UnitCostHigh,UnitCostSpecified)),MATCH(UPPER(LEFT(F15,LEN(F15)-1)),CostCode,0))) -> 45 | H15: =G15*E15 -> 86481.9 | J15: =H15*I15 -> 0 | K15: =+H15*(1-I15) -> 86481.9
B16: Offices, Repair, Lab, Warehouse | D16: m2 | F16: =NA() ->  | G16: 0 | H16: 0 | J16: 0 | K16: 0
B17: Storage Facilites | D17: m2 | F17: =NA() ->  | G17: 0 | H17: 0 | J17: 0 | K17: 0
B18: Water and Wastewater Treatment Facilities | D18: m2 | E18: 840.1 | F18: BRS1L | G18: 45 | H18: 37804.5 | J18: 0 | K18: 37804.5
B19: Power Plant | D19: m2 | E19: 3620.7 | F19: BRS1H | G19: =IF(ISNA(F19),0,INDEX(IF(UPPER(RIGHT(F19,1))=Low,UnitCostLow, IF(UPPER(RIGHT(F19,1))=High,UnitCostHigh,UnitCostSpecified)),MATCH(UPPER(LEFT(F19,LEN(F19)-1)),CostCode,0))) -> 65 | H19: =G19*E19 -> 235345.5 | J19: =H19*I19 -> 0 | K19: =+H19*(1-I19) -> 235345.5
B20: U/G Heating Plant | D20: m2 | F20: =NA() ->  | G20: 0 | H20: 0 | J20: 0 | K20: 0
B21: Emulsion Plant | D21: m2 | E21: 594.75 | F21: BRS1H | G21: 65 | H21: 38658.75 | J21: 0 | K21: 38658.75
B22: AN Storage Facility | D22: m2 | F22: =NA() ->  | G22: =IF(ISNA(F22),0,INDEX(IF(UPPER(RIGHT(F22,1))=Low,UnitCostLow, IF(UPPER(RIGHT(F22,1))=High,UnitCostHigh,UnitCostSpecified)),MATCH(UPPER(LEFT(F22,LEN(F22)-1)),CostCode,0))) -> 0 | H22: 0 | J22: =H22*I22 -> 0 | K22: =+H22*(1-I22) -> 0
B23: Warehouse, Shops and Other | D23: m2 | E23: 1930.5 | F23: BRS1L | G23: 45 | H23: 86872.5 | J23: 0 | K23: 86872.5
B24: Paste plant | D24: m2 | E24: 1299.87 | F24: BRS1L | G24: 45 | H24: =G24*E24 -> 58494.15 | J24: 0 | K24: 58494.15
B25: Storage Facility at Laydown/Airstrip | D25: m2 | F25: =NA() ->  | G25: 0 | H25: 0 | J25: 0 | K25: 0
B26: Incinerator building | D26: m2 | E26: 130.34 | F26: BRS1L | G26: 45 | H26: =G26*E26 -> 5865.3 | J26: 0 | K26: 5865.3
B27: Fuel tanks-on site | D27: m2 | E27: 912 | F27: BRS1H | G27: 65 | H27: 59280 | J27: 0 | K27: 59280
B28: Fuel tanks - Itivia Harbour | D28: m2 | E28: 2619 | F28: BRS1H | G28: 65 | H28: 170235 | J28: 0 | K28: 170235
B29: Freshwater intake | D29: m2 | F29: =NA() ->  | G29: 0 | H29: 0 | J29: 0 | K29: 0
B30: Reclaim pumps | D30: m2 | F30: =NA() ->  | G30: 0 | H30: 0 | J30: 0 | K30: 0
B31: Outfall & Diffuser | D31: m2 | F31: =NA() ->  | G31: 0 | H31: 0 | J31: 0 | K31: 0
B32: Airstrip lighting, navigation, electrician | D32: mandays | F32: =NA() ->  | G32: =IF(ISNA(F32),0,INDEX(IF(UPPER(RIGHT(F32,1))=Low,UnitCostLow, IF(UPPER(RIGHT(F32,1))=High,UnitCostHigh,UnitCostSpecified)),MATCH(UPPER(LEFT(F32,LEN(F32)-1)),CostCode,0))) -> 0 | H32: 0 | J32: 0 | K32: 0
B33: Airstrip lighting, navigation, mechanical | D33: mandays | F33: =NA() ->  | G33: =IF(ISNA(F33),0,INDEX(IF(UPPER(RIGHT(F33,1))=Low,UnitCostLow, IF(UPPER(RIGHT(F33,1))=High,UnitCostHigh,UnitCostSpecified)),MATCH(UPPER(LEFT(F33,LEN(F33)-1)),CostCode,0))) -> 0 | H33: 0 | J33: 0 | K33: 0
B34: Break foundation slabs | C34: total of all buildings | D34: m2 | F34: =NA() ->  | G34: =IF(ISNA(F34),0,INDEX(IF(UPPER(RIGHT(F34,1))=Low,UnitCostLow, IF(UPPER(RIGHT(F34,1))=High,UnitCostHigh,UnitCostSpecified)),MATCH(UPPER(LEFT(F34,LEN(F34)-1)),CostCode,0))) -> 0 | H34: =G34*E34 -> 0 | J34: =H34*I34 -> 0 | K34: =+H34*(1-I34) -> 0
B35: Consolidate & dump boneyard debris | D35: m3 | F35: =NA() ->  | G35: 0 | H35: 0 | J35: 0 | K35: 0
B36: Guard house | D36: m2 | E36: 31.06 | F36: BRS1L | G36: =IF(ISNA(F36),0,INDEX(IF(UPPER(RIGHT(F36,1))=Low,UnitCostLow, IF(UPPER(RIGHT(F36,1))=High,UnitCostHigh,UnitCostSpecified)),MATCH(UPPER(LEFT(F36,LEN(F36)-1)),CostCode,0))) -> 45 | H36: =G36*E36 -> 1397.7 | J36: =H36*I36 -> 0 | K36: =+H36*(1-I36) -> 1397.7
B37: Other | F37: =NA() ->  | G37: 0 | H37: 0 | J37: 0 | K37: 0
B38: LANDFILL FOR DEMOLITION WASTE
B39: Place rock cover over operation landfill | D39: m3 | E39: =3500*3 -> 10500 | F39: AEM | G39: 8.47 | H39: =G39*E39 -> 88935 | J39: =H39*I39 -> 0 | K39: =+H39*(1-I39) -> 88935
B40: Place soil cover | D40: m3 | F40: =NA() ->  | G40: =IF(ISNA(F40),0,INDEX(IF(UPPER(RIGHT(F40,1))=Low,UnitCostLow, IF(UPPER(RIGHT(F40,1))=High,UnitCostHigh,UnitCostSpecified)),MATCH(UPPER(LEFT(F40,LEN(F40)-1)),CostCode,0))) -> 0 | H40: =G40*E40 -> 0 | J40: 0 | K40: =+H40*(1-I40) -> 0
B41: Vegetate | D41: ha | F41: =NA() ->  | G41: =IF(ISNA(F41),0,INDEX(IF(UPPER(RIGHT(F41,1))=Low,UnitCostLow, IF(UPPER(RIGHT(F41,1))=High,UnitCostHigh,UnitCostSpecified)),MATCH(UPPER(LEFT(F41,LEN(F41)-1)),CostCode,0))) -> 0 | H41: =G41*E41 -> 0 | J41: 0 | K41: 0
B42: Base, sides and cover of closure landfill (for demolition rubbish) | D42: m3 | E42: 58924 | G42: 29.41 | H42: =+E42*G42 -> 1732954.84 | J42: 0 | K42: 1732954.84
B43: GRADE AND CONTOUR PADS - see note below
B44: Accomodation Complex (incl dorms, corridors, kitchen, laundry, offices, dry, rec hall, ERT) | D44: m3 | E44: =(2945.1+1787.26+1189.76+2342.95+3347.07+678.9)*1 -> 12291.04 | F44: AEM | G44: 8.47 | H44: =G44*E44 -> 104105.1088 | J44: 0 | K44: 104105.1088
B45: Exploration camp - existing | D45: m3 | E45: =+E11*1 -> 2883 | F45: AEM | G45: =+G44 -> 8.47 | H45: =G45*E45 -> 24419.01 | J45: =H45*I45 -> 0 | K45: =+H45*(1-I45) -> 24419.01
B46: Process Facilities - assumes 5000 TPD plant (including crushing building and crushed ore storage) | D46: m3 | E46: =(10812+225.5+225)*1 -> 11262.5 | F46: AEM | G46: 8.47 | H46: 95393.375 | J46: 0 | K46: 95393.375
B47: Assay Lab | D47: m3 | E47: =+E13*1 -> 1248.3 | F47: AEM | G47: 8.47 | H47: 10573.101 | J47: 0 | K47: 10573.101
B48: Maintenance Shop | D48: m3 | E48: =+E14*1 -> 4966.71 | F48: AEM | G48: 8.47 | H48: 42068.0337 | J48: 0 | K48: 42068.0337
B49: Mine surface general (office and megadome, and explosive plant) | D49: m3 | E49: =+E15*1 -> 1921.82 | F49: AEM | G49: =+G48 -> 8.47 | H49: =G49*E49 -> 16277.8154 | J49: =H49*I49 -> 0 | K49: =+H49*(1-I49) -> 16277.8154
B50: Offices, Repair, Lab, Warehouse | D50: ha | F50: =NA() ->  | G50: =IF(ISNA(F50),0,INDEX(IF(UPPER(RIGHT(F50,1))=Low,UnitCostLow, IF(UPPER(RIGHT(F50,1))=High,UnitCostHigh,UnitCostSpecified)),MATCH(UPPER(LEFT(F50,LEN(F50)-1)),CostCode,0))) -> 0 | H50: 0 | J50: 0 | K50: 0
B51: Storage Facilites | D51: ha | F51: =NA() ->  | G51: 0 | H51: 0 | J51: 0 | K51: 0
B52: Water and Wastewater Treatment Facilities | D52: m3 | E52: =+E18*1 -> 840.1 | F52: AEM | G52: 8.47 | H52: 7115.647 | J52: 0 | K52: 7115.647
B53: Power Plant | D53: m3 | E53: =+E19*1 -> 3620.7 | F53: AEM | G53: 8.47 | H53: 30667.329 | J53: 0 | K53: 30667.329
B54: U/G Heating Plant | D54: ha | F54: =NA() ->  | G54: 0 | H54: 0 | J54: 0 | K54: 0
B55: Emulsion Plant | D55: m3 | E55: =+E21*1 -> 594.75 | F55: AEM | G55: 8.47 | H55: 5037.5325 | J55: 0 | K55: 5037.5325
B56: Warehouse, Shops and Other | D56: m3 | E56: =+E23*1 -> 1930.5 | F56: AEM | G56: 8.47 | H56: =G56*E56 -> 16351.335 | J56: =H56*I56 -> 0 | K56: =+H56*(1-I56) -> 16351.335
B57: Paste plant | D57: m3 | E57: =433.29*1 -> 433.29 | F57: AEM | G57: 8.47 | H57: 3669.9663 | J57: 0 | K57: 3669.9663
B58: Storage Facilities (Laydown areas) | D58: m3 | E58: =66800*1 -> 66800 | F58: MBK | G58: 5.31 | H58: 354708 | J58: 0 | K58: 354708
B59: Incinerator building | D59: m3 | E59: =+E26*1 -> 130.34 | F59: AEM | G59: 8.47 | H59: 1103.9798 | J59: 0 | K59: 1103.9798
B60: Fuel tanks-on site | D60: m3 | E60: =+E27*1 -> 912 | F60: AEM | G60: =+G59 -> 8.47 | H60: =G60*E60 -> 7724.64 | J60: =H60*I60 -> 0 | K60: =+H60*(1-I60) -> 7724.64
B61: Fuel tanks - Itivia Harbour | D61: m3 | E61: =+E28*1 -> 2619 | F61: AEM | G61: =+G60 -> 8.47 | H61: =G61*E61 -> 22182.93 | J61: =H61*I61 -> 0 | K61: =+H61*(1-I61) -> 22182.93
B62: Guard house | D62: m3 | E62: =+E36*1 -> 31.06 | F62: AEM | G62: =+G61 -> 8.47 | H62: =G62*E62 -> 263.0782 | J62: =H62*I62 -> 0 | K62: =+H62*(1-I62) -> 263.0782
B63: Place rock cover | D63: ha | F63: =NA() ->  | G63: =IF(ISNA(F63),0,INDEX(IF(UPPER(RIGHT(F63,1))=Low,UnitCostLow, IF(UPPER(RIGHT(F63,1))=High,UnitCostHigh,UnitCostSpecified)),MATCH(UPPER(LEFT(F63,LEN(F63)-1)),CostCode,0))) -> 0 | H63: 0 | J63: 0 | K63: 0
B64: Vegetate | D64: ha | F64: =NA() ->  | G64: 0 | H64: 0 | J64: 0 | K64: 0
B65: Other | F65: =NA() ->  | G65: =IF(ISNA(F65),0,INDEX(IF(UPPER(RIGHT(F65,1))=Low,UnitCostLow, IF(UPPER(RIGHT(F65,1))=High,UnitCostHigh,UnitCostSpecified)),MATCH(UPPER(LEFT(F65,LEN(F65)-1)),CostCode,0))) -> 0 | H65: =G65*E65 -> 0 | J65: =H65*I65 -> 0 | K65: =+H65*(1-I65) -> 0
B66: PUNCTURE LINED SUMPS
B67: Puncture liner and place soil cover | D67: m3 | F67: =NA() ->  | G67: =IF(ISNA(F67),0,INDEX(IF(UPPER(RIGHT(F67,1))=Low,UnitCostLow, IF(UPPER(RIGHT(F67,1))=High,UnitCostHigh,UnitCostSpecified)),MATCH(UPPER(LEFT(F67,LEN(F67)-1)),CostCode,0))) -> 0 | H67: =G67*E67 -> 0 | J67: =H67*I67 -> 0 | K67: =+H67*(1-I67) -> 0
B68: RECLAIM ROADS
B69: Remove culverts | D69: each | E69: 12 | F69: MBK | G69: 10000 | H69: =G69*E69 -> 120000 | J69: 0 | K69: 120000
B70: Remove bridges | D70: each | E70: 2 | F70: AEM | G70: 50000 | H70: 100000 | J70: 0 | K70: 100000
B71: Scarify and install water breaks | D71: ha | E71: =34000*5/10000 -> 17 | F71: SCFYH | G71: =IF(ISNA(F71),0,INDEX(IF(UPPER(RIGHT(F71,1))=Low,UnitCostLow, IF(UPPER(RIGHT(F71,1))=High,UnitCostHigh,UnitCostSpecified)),MATCH(UPPER(LEFT(F71,LEN(F71)-1)),CostCode,0))) -> 6030 | H71: 102510 | J71: 0 | K71: 102510
B72: scarify roads (15m x 40km) | D72: ha | E72: =40*0.015*100 -> 60 | F72: SCFYL | G72: =IF(ISNA(F72),0,INDEX(IF(UPPER(RIGHT(F72,1))=Low,UnitCostLow, IF(UPPER(RIGHT(F72,1))=High,UnitCostHigh,UnitCostSpecified)),MATCH(UPPER(LEFT(F72,LEN(F72)-1)),CostCode,0))) -> 4300 | H72: =G72*E72 -> 258000 | J72: =H72*I72 -> 0 | K72: =+H72*(1-I72) -> 258000
B73: Scarify airstriip | D73: ha | F73: =NA() ->  | G73: 0 | H73: 0 | J73: 0 | K73: 0
B74: Scarify laydown areas | D74: ha | F74: =NA() ->  | G74: 0 | H74: 0 | J74: 0 | K74: 0
B75: Vegetate | D75: ha | F75: =NA() ->  | G75: 0 | H75: 0 | J75: =H75*I75 -> 0 | K75: 0
B76: Other | F76: =NA() ->  | G76: 0 | H76: 0 | J76: =H76*I76 -> 0 | K76: 0
B77: OBJECTIVE: BUILDING DECONTAMINATION & HAZ. MATERIAL REMOVAL
B78: Decontaminate, oil, fuel and glycol systems | D78: mandays | E78: 120 | F78: AEM | G78: 1000 | H78: =G78*E78 -> 120000 | J78: =H78*I78 -> 0 | K78: =+H78*(1-I78) -> 120000
B79: Electrical | D79: mandays | E79: 60 | F79: AEM | G79: 1000 | H79: =G79*E79 -> 60000 | J79: =H79*I79 -> 0 | K79: =+H79*(1-I79) -> 60000
B80: SPECIALIZED ITEMS
B81: Dispose of misc. debris and laydown area refuse | F81: =NA() ->  | G81: =IF(ISNA(F81),0,INDEX(IF(UPPER(RIGHT(F81,1))=Low,UnitCostLow, IF(UPPER(RIGHT(F81,1))=High,UnitCostHigh,UnitCostSpecified)),MATCH(UPPER(LEFT(F81,LEN(F81)-1)),CostCode,0))) -> 0 | H81: =G81*E81 -> 0 | J81: =H81*I81 -> 0 | K81: 0
G82: Total | H82: =SUM(H5:H81)+0.0001 -> 18916071.12 | J82: =SUM(J5:J81) -> 0 | K82: =SUM(K5:K81) -> 18916071.12
G83: % of Total | J83: =J82/H82 -> 0 | K83: =K82/H82 -> 1
B85: Note: Unit costs are based on 3m high, single storey building. Scale larger building areas accordingly. E.g. 10m high building multiply area by 3.3 (10/3)

Sheet Water Management
A1: 1 | B1: Capital Expenditures and Short Term Water Treatment identified in 'Instructions' worksheet
B3: ACTIVITY/MATERIAL | C3: Notes | D3: Units | E3: Quantity | F3: Cost Code | G3: Unit Cost | H3: Cost
B4: BREACH DYKE EMBANKMENT
B5: Remove (Excavate) fill | D5: m3 | E5: =(150000)*0.1 -> 15000 | F5: AEM | G5: 8.47 | H5: =G5*E5 -> 127050
B6: Contour water intake area | D6: m3 | F6: =NA() ->  | G6: =IF(ISNA(F6),0,INDEX(IF(UPPER(RIGHT(F6,1))=Low,UnitCostLow, IF(UPPER(RIGHT(F6,1))=High,UnitCostHigh,UnitCostSpecified)),MATCH(UPPER(LEFT(F6,LEN(F6)-1)),CostCode,0))) -> 0 | H6: =G6*E6 -> 0
B7: STABILIZE SEDIMENT PONDS/WATER MANAGEMENT PONDS
B8: Place soil cover | D8: m3 | F8: =NA() ->  | G8: =IF(ISNA(F8),0,INDEX(IF(UPPER(RIGHT(F8,1))=Low,UnitCostLow, IF(UPPER(RIGHT(F8,1))=High,UnitCostHigh,UnitCostSpecified)),MATCH(UPPER(LEFT(F8,LEN(F8)-1)),CostCode,0))) -> 0 | H8: =G8*E8 -> 0
B9: Doze & spread excavated material | D9: m3 | F9: =NA() ->  | G9: =IF(ISNA(F9),0,INDEX(IF(UPPER(RIGHT(F9,1))=Low,UnitCostLow, IF(UPPER(RIGHT(F9,1))=High,UnitCostHigh,UnitCostSpecified)),MATCH(UPPER(LEFT(F9,LEN(F9)-1)),CostCode,0))) -> 0 | H9: =G9*E9 -> 0
B10: Vegetate spread material | D10: ha | F10: =NA() ->  | G10: =IF(ISNA(F10),0,INDEX(IF(UPPER(RIGHT(F10,1))=Low,UnitCostLow, IF(UPPER(RIGHT(F10,1))=High,UnitCostHigh,UnitCostSpecified)),MATCH(UPPER(LEFT(F10,LEN(F10)-1)),CostCode,0))) -> 0 | H10: =G10*E10 -> 0
B11: Rip rap in channel base | D11: each | F11: =NA() ->  | G11: =IF(ISNA(F11),0,INDEX(IF(UPPER(RIGHT(F11,1))=Low,UnitCostLow, IF(UPPER(RIGHT(F11,1))=High,UnitCostHigh,UnitCostSpecified)),MATCH(UPPER(LEFT(F11,LEN(F11)-1)),CostCode,0))) -> 0 | H11: =G11*E11 -> 0
B12: REDIRECT RUNOFF/CONSTRUCT DIVERSION DITCHES
B13: Excavate ditches -soil | D13: m3 | F13: =NA() ->  | G13: =IF(ISNA(F13),0,INDEX(IF(UPPER(RIGHT(F13,1))=Low,UnitCostLow, IF(UPPER(RIGHT(F13,1))=High,UnitCostHigh,UnitCostSpecified)),MATCH(UPPER(LEFT(F13,LEN(F13)-1)),CostCode,0))) -> 0 | H13: =G13*E13 -> 0
B14: Excavate ditches -rock | D14: m3 | F14: =NA() ->  | G14: =IF(ISNA(F14),0,INDEX(IF(UPPER(RIGHT(F14,1))=Low,UnitCostLow, IF(UPPER(RIGHT(F14,1))=High,UnitCostHigh,UnitCostSpecified)),MATCH(UPPER(LEFT(F14,LEN(F14)-1)),CostCode,0))) -> 0 | H14: =G14*E14 -> 0
B15: Stabilize side slopes | D15: m3 | F15: =NA() ->  | G15: =IF(ISNA(F15),0,INDEX(IF(UPPER(RIGHT(F15,1))=Low,UnitCostLow, IF(UPPER(RIGHT(F15,1))=High,UnitCostHigh,UnitCostSpecified)),MATCH(UPPER(LEFT(F15,LEN(F15)-1)),CostCode,0))) -> 0 | H15: =G15*E15 -> 0
B16: Rip rap in channel base | D16: m3 | F16: =NA() ->  | G16: =IF(ISNA(F16),0,INDEX(IF(UPPER(RIGHT(F16,1))=Low,UnitCostLow, IF(UPPER(RIGHT(F16,1))=High,UnitCostHigh,UnitCostSpecified)),MATCH(UPPER(LEFT(F16,LEN(F16)-1)),CostCode,0))) -> 0 | H16: =G16*E16 -> 0
B17: BREACH DITCHES
B18: Excavate breaches | D18: m3 | F18: =NA() ->  | G18: =IF(ISNA(F18),0,INDEX(IF(UPPER(RIGHT(F18,1))=Low,UnitCostLow, IF(UPPER(RIGHT(F18,1))=High,UnitCostHigh,UnitCostSpecified)),MATCH(UPPER(LEFT(F18,LEN(F18)-1)),CostCode,0))) -> 0 | H18: =G18*E18 -> 0
B19: Backfill/recontour | D19: m3 | F19: =NA() ->  | G19: =IF(ISNA(F19),0,INDEX(IF(UPPER(RIGHT(F19,1))=Low,UnitCostLow, IF(UPPER(RIGHT(F19,1))=High,UnitCostHigh,UnitCostSpecified)),MATCH(UPPER(LEFT(F19,LEN(F19)-1)),CostCode,0))) -> 0 | H19: =G19*E19 -> 0
B20: Install flow dissipation | D20: m3 | F20: =NA() ->  | G20: =IF(ISNA(F20),0,INDEX(IF(UPPER(RIGHT(F20,1))=Low,UnitCostLow, IF(UPPER(RIGHT(F20,1))=High,UnitCostHigh,UnitCostSpecified)),MATCH(UPPER(LEFT(F20,LEN(F20)-1)),CostCode,0))) -> 0 | H20: =G20*E20 -> 0
B21: Vegetate remainder of ditch | D21: m2 | F21: =NA() ->  | G21: =IF(ISNA(F21),0,INDEX(IF(UPPER(RIGHT(F21,1))=Low,UnitCostLow, IF(UPPER(RIGHT(F21,1))=High,UnitCostHigh,UnitCostSpecified)),MATCH(UPPER(LEFT(F21,LEN(F21)-1)),CostCode,0))) -> 0 | H21: =G21*E21 -> 0
B22: DECOMISSION FRESH WATER SUPPLY
B23: Breach embankment | D23: m | F23: =NA() ->  | G23: =IF(ISNA(F23),0,INDEX(IF(UPPER(RIGHT(F23,1))=Low,UnitCostLow, IF(UPPER(RIGHT(F23,1))=High,UnitCostHigh,UnitCostSpecified)),MATCH(UPPER(LEFT(F23,LEN(F23)-1)),CostCode,0))) -> 0 | H23: =G23*E23 -> 0
B24: Remove pump | D24: LS | F24: =NA() ->  | G24: =IF(ISNA(F24),0,INDEX(IF(UPPER(RIGHT(F24,1))=Low,UnitCostLow, IF(UPPER(RIGHT(F24,1))=High,UnitCostHigh,UnitCostSpecified)),MATCH(UPPER(LEFT(F24,LEN(F24)-1)),CostCode,0))) -> 0 | H24: =G24*E24 -> 0
B25: Remove pipeline | D25: m | F25: =NA() ->  | G25: =IF(ISNA(F25),0,INDEX(IF(UPPER(RIGHT(F25,1))=Low,UnitCostLow, IF(UPPER(RIGHT(F25,1))=High,UnitCostHigh,UnitCostSpecified)),MATCH(UPPER(LEFT(F25,LEN(F25)-1)),CostCode,0))) -> 0 | H25: =G25*E25 -> 0
B26: WATER CONTROL IN RECLAMATION QUARRY
B27: Install pumping system | D27: LS | F27: =NA() ->  | G27: =IF(ISNA(F27),0,INDEX(IF(UPPER(RIGHT(F27,1))=Low,UnitCostLow, IF(UPPER(RIGHT(F27,1))=High,UnitCostHigh,UnitCostSpecified)),MATCH(UPPER(LEFT(F27,LEN(F27)-1)),CostCode,0))) -> 0 | H27: =G27*E27 -> 0
B28: Remove pumping system | D28: LS | F28: =NA() ->  | G28: =IF(ISNA(F28),0,INDEX(IF(UPPER(RIGHT(F28,1))=Low,UnitCostLow, IF(UPPER(RIGHT(F28,1))=High,UnitCostHigh,UnitCostSpecified)),MATCH(UPPER(LEFT(F28,LEN(F28)-1)),CostCode,0))) -> 0 | H28: =G28*E28 -> 0
B29: REMOVE PIPELINES
B30: Remove pipes | D30: m | F30: =NA() ->  | G30: =IF(ISNA(F30),0,INDEX(IF(UPPER(RIGHT(F30,1))=Low,UnitCostLow, IF(UPPER(RIGHT(F30,1))=High,UnitCostHigh,UnitCostSpecified)),MATCH(UPPER(LEFT(F30,LEN(F30)-1)),CostCode,0))) -> 0 | H30: =G30*E30 -> 0
B31: Concrete plug deep pipes | D31: m3 | F31: =NA() ->  | G31: =IF(ISNA(F31),0,INDEX(IF(UPPER(RIGHT(F31,1))=Low,UnitCostLow, IF(UPPER(RIGHT(F31,1))=High,UnitCostHigh,UnitCostSpecified)),MATCH(UPPER(LEFT(F31,LEN(F31)-1)),CostCode,0))) -> 0 | H31: =G31*E31 -> 0
B32: Other | F32: =NA() ->  | G32: =IF(ISNA(F32),0,INDEX(IF(UPPER(RIGHT(F32,1))=Low,UnitCostLow, IF(UPPER(RIGHT(F32,1))=High,UnitCostHigh,UnitCostSpecified)),MATCH(UPPER(LEFT(F32,LEN(F32)-1)),CostCode,0))) -> 0 | H32: =G32*E32 -> 0
B33: GROUNDWATER COLLECTION SYSTEM
B34: Excavate/install sumps | D34: m3 | F34: =NA() ->  | G34: =IF(ISNA(F34),0,INDEX(IF(UPPER(RIGHT(F34,1))=Low,UnitCostLow, IF(UPPER(RIGHT(F34,1))=High,UnitCostHigh,UnitCostSpecified)),MATCH(UPPER(LEFT(F34,LEN(F34)-1)),CostCode,0))) -> 0 | H34: =G34*E34 -> 0
B35: Install pumping wells | D35: m3 | F35: =NA() ->  | G35: =IF(ISNA(F35),0,INDEX(IF(UPPER(RIGHT(F35,1))=Low,UnitCostLow, IF(UPPER(RIGHT(F35,1))=High,UnitCostHigh,UnitCostSpecified)),MATCH(UPPER(LEFT(F35,LEN(F35)-1)),CostCode,0))) -> 0 | H35: =G35*E35 -> 0
B36: Install pumps/pipelines/power supply | D36: LS | F36: =NA() ->  | G36: =IF(ISNA(F36),0,INDEX(IF(UPPER(RIGHT(F36,1))=Low,UnitCostLow, IF(UPPER(RIGHT(F36,1))=High,UnitCostHigh,UnitCostSpecified)),MATCH(UPPER(LEFT(F36,LEN(F36)-1)),CostCode,0))) -> 0 | H36: =G36*E36 -> 0
B37: CONSTRUCT CONTAMINATED WATER STORAGE POND
B38: Excavate pond | D38: m3 | F38: =NA() ->  | G38: =IF(ISNA(F38),0,INDEX(IF(UPPER(RIGHT(F38,1))=Low,UnitCostLow, IF(UPPER(RIGHT(F38,1))=High,UnitCostHigh,UnitCostSpecified)),MATCH(UPPER(LEFT(F38,LEN(F38)-1)),CostCode,0))) -> 0 | H38: =G38*E38 -> 0
B39: Doze & spread excavated material | D39: m3 | F39: =NA() ->  | G39: 0 | H39: 0
B40: Vegetate spread material | D40: ha | F40: =NA() ->  | G40: 0 | H40: 0
B41: Bedding layer | D41: m3 | F41: =NA() ->  | G41: 0 | H41: 0
B42: Supply geomembrane | D42: m2 | F42: =NA() ->  | G42: 0 | H42: 0
B43: Install geomembrane | D43: m2 | F43: =NA() ->  | G43: 0 | H43: 0
B44: Erosion protection layer | D44: m3 | F44: =NA() ->  | G44: 0 | H44: 0
B45: CONSTRUCT PASSIVE TREATMENT SYSTEM (e.g. Constructed Wetland)
B46: Construct access roads | D46: km | F46: =NA() ->  | G46: 0 | H46: =G46*E46 -> 0
B47: Install HDPE piping system from collection pond | D47: m | F47: =NA() ->  | G47: 0 | H47: =G47*E47 -> 0
B48: Inter-cell flow structures | D48: allow | F48: =NA() ->  | G48: 0 | H48: 0
B49: Install liners | D49: m2 | F49: =NA() ->  | G49: 0 | H49: =G49*E49 -> 0
B50: Install growth media | D50: m3 | F50: =NA() ->  | G50: 0 | H50: 0
B51: Wetland vegetation | D51: ha | F51: =NA() ->  | G51: 0 | H51: 0
B52: CONSTRUCT WATER TREATMENT PLANT
B53: Build treatment plant | D53: LS | F53: =NA() ->  | G53: =IF(ISNA(F53),0,INDEX(IF(UPPER(RIGHT(F53,1))=Low,UnitCostLow, IF(UPPER(RIGHT(F53,1))=High,UnitCostHigh,UnitCostSpecified)),MATCH(UPPER(LEFT(F53,LEN(F53)-1)),CostCode,0))) -> 0 | H53: =G53*E53 -> 0
B54: Build sludge containment facility | D54: LS | F54: =NA() ->  | G54: =IF(ISNA(F54),0,INDEX(IF(UPPER(RIGHT(F54,1))=Low,UnitCostLow, IF(UPPER(RIGHT(F54,1))=High,UnitCostHigh,UnitCostSpecified)),MATCH(UPPER(LEFT(F54,LEN(F54)-1)),CostCode,0))) -> 0 | H54: =G54*E54 -> 0
G55: Total | H55: =SUM(H5:H54)+0.0001 -> 127050.0001
B56: For cost of long-term/post-closure water treatment see "WATER TREATMENT" Worksheet"

Sheet Water Treatment
A1: 1 | B1: Post Closure Water Treatment - Identified as long term/post-closure in 'Instructions' worksheet
B3: ACTIVITY/MATERIAL | C3: Notes | D3: Units | E3: Quantity | F3: Cost Code | G3: Unit Cost | H3: Cost
B4: ADDITION OF REAGENTS TO WTP
B5: H2O2 | D5: kg | F5: =NA() ->  | G5: =IF(ISNA(F5),0,INDEX(IF(UPPER(RIGHT(F5,1))=Low,UnitCostLow, IF(UPPER(RIGHT(F5,1))=High,UnitCostHigh,UnitCostSpecified)),MATCH(UPPER(LEFT(F5,LEN(F5)-1)),CostCode,0))) -> 0 | H5: =G5*E5 -> 0
B6: lime | D6: kg | F6: =NA() ->  | G6: 0 | H6: 0
B7: ferric sulphate | D7: kg | F7: =NA() ->  | G7: 0 | H7: 0
B8: ferrous sulphate | D8: kg | F8: =NA() ->  | G8: 0 | H8: 0
B9: flocculents | D9: kg | F9: =NA() ->  | G9: 0 | H9: 0
B10: Other | F10: =NA() ->  | G10: 0 | H10: 0
B11: LABOUR AND SUPPLIES
B12: Annual fuel | D12: litres | F12: =NA() ->  | G12: =IF(ISNA(F12),0,INDEX(IF(UPPER(RIGHT(F12,1))=Low,UnitCostLow, IF(UPPER(RIGHT(F12,1))=High,UnitCostHigh,UnitCostSpecified)),MATCH(UPPER(LEFT(F12,LEN(F12)-1)),CostCode,0))) -> 0 | H12: =G12*E12 -> 0
B13: Annual power | D13: kW-h | F13: =NA() ->  | G13: =IF(ISNA(F13),0,INDEX(IF(UPPER(RIGHT(F13,1))=Low,UnitCostLow, IF(UPPER(RIGHT(F13,1))=High,UnitCostHigh,UnitCostSpecified)),MATCH(UPPER(LEFT(F13,LEN(F13)-1)),CostCode,0))) -> 0 | H13: =G13*E13 -> 0
B14: Electrician/mechanic to maintain treatment plant | D14: allow | F14: =NA() ->  | G14: 0 | H14: 0
B15: Equipment maintenance and parts | D15: allow | F15: =NA() ->  | G15: 0 | H15: 0
B16: Misc. supplies, hoses, tools | D16: allow | F16: =NA() ->  | G16: 0 | H16: 0
B17: Communications | D17: allow | F17: =NA() ->  | G17: 0 | H17: 0
B18: Other | F18: =NA() ->  | G18: 0 | H18: 0
B19: WATER MANAGEMENT
B20: Water Treatment (reagents, equip. Op., labour) | D20: m3 | E20: 720886 | F20: AEM | G20: 0.62 | H20: =G20*E20 -> 446949.32
B21: Water pumping from sumps and ponds to treatment plant | D21: allow | E21: 1 | F21: AEM | G21: 114510.7262 | H21: =E21*G21 -> 114510.7262
B22: WTP WATER SAMPLING AND ANALYSES
B23: Sampling equipment | D23: allow | F23: =NA() ->  | G23: =IF(ISNA(F23),0,INDEX(IF(UPPER(RIGHT(F23,1))=Low,UnitCostLow, IF(UPPER(RIGHT(F23,1))=High,UnitCostHigh,UnitCostSpecified)),MATCH(UPPER(LEFT(F23,LEN(F23)-1)),CostCode,0))) -> 0 | H23: =G23*E23 -> 0
B24: Analyses | D24: allow | F24: =NA() ->  | G24: =IF(ISNA(F24),0,INDEX(IF(UPPER(RIGHT(F24,1))=Low,UnitCostLow, IF(UPPER(RIGHT(F24,1))=High,UnitCostHigh,UnitCostSpecified)),MATCH(UPPER(LEFT(F24,LEN(F24)-1)),CostCode,0))) -> 0 | H24: =G24*E24 -> 0
B25: Shipping to laboratory | D25: allow | F25: =NA() ->  | G25: =IF(ISNA(F25),0,INDEX(IF(UPPER(RIGHT(F25,1))=Low,UnitCostLow, IF(UPPER(RIGHT(F25,1))=High,UnitCostHigh,UnitCostSpecified)),MATCH(UPPER(LEFT(F25,LEN(F25)-1)),CostCode,0))) -> 0 | H25: =G25*E25 -> 0
B26: Reporting | D26: allow | F26: =NA() ->  | G26: =IF(ISNA(F26),0,INDEX(IF(UPPER(RIGHT(F26,1))=Low,UnitCostLow, IF(UPPER(RIGHT(F26,1))=High,UnitCostHigh,UnitCostSpecified)),MATCH(UPPER(LEFT(F26,LEN(F26)-1)),CostCode,0))) -> 0 | H26: =G26*E26 -> 0
B27: Other | F27: =NA() ->  | G27: =IF(ISNA(F27),0,INDEX(IF(UPPER(RIGHT(F27,1))=Low,UnitCostLow, IF(UPPER(RIGHT(F27,1))=High,UnitCostHigh,UnitCostSpecified)),MATCH(UPPER(LEFT(F27,LEN(F27)-1)),CostCode,0))) -> 0 | H27: =G27*E27 -> 0
B28: SITE ACCESS
B29: Road maintenance (incl. snow removal) | D29: allow | F29: =NA() ->  | G29: =IF(ISNA(F29),0,INDEX(IF(UPPER(RIGHT(F29,1))=Low,UnitCostLow, IF(UPPER(RIGHT(F29,1))=High,UnitCostHigh,UnitCostSpecified)),MATCH(UPPER(LEFT(F29,LEN(F29)-1)),CostCode,0))) -> 0 | H29: =G29*E29 -> 0
B30: Winter road tariff | D30: allow | F30: =NA() ->  | G30: =IF(ISNA(F30),0,INDEX(IF(UPPER(RIGHT(F30,1))=Low,UnitCostLow, IF(UPPER(RIGHT(F30,1))=High,UnitCostHigh,UnitCostSpecified)),MATCH(UPPER(LEFT(F30,LEN(F30)-1)),CostCode,0))) -> 0 | H30: =G30*E30 -> 0
B31: Truck rental | D31: allow | F31: =NA() ->  | G31: =IF(ISNA(F31),0,INDEX(IF(UPPER(RIGHT(F31,1))=Low,UnitCostLow, IF(UPPER(RIGHT(F31,1))=High,UnitCostHigh,UnitCostSpecified)),MATCH(UPPER(LEFT(F31,LEN(F31)-1)),CostCode,0))) -> 0 | H31: =G31*E31 -> 0
B32: Air support | D32: allow | F32: =NA() ->  | G32: =IF(ISNA(F32),0,INDEX(IF(UPPER(RIGHT(F32,1))=Low,UnitCostLow, IF(UPPER(RIGHT(F32,1))=High,UnitCostHigh,UnitCostSpecified)),MATCH(UPPER(LEFT(F32,LEN(F32)-1)),CostCode,0))) -> 0 | H32: =G32*E32 -> 0
G34: Annual water treatment costs | H34: =SUM(H5:H33)+0.0001 -> 561460.0463
B35: Number of years of water treatment | D35: years | E35: 3
G36: Total | H36: =AnnualTreat1Cost*E35 -> 1684380.139

Sheet ICM
A1: 1 | B1: Interim Care and Maintenance
B3: ACTIVITY/MATERIAL | C3: Notes | D3: Units | E3: Quantity | F3: Cost Code | G3: Unit Cost | H3: Cost
B4: INTERIM CARE & MAINTENANCE
B5: on-site caretaker | D5: manmonths | F5: =NA() ->  | G5: =IF(ISNA(F5),0,INDEX(IF(UPPER(RIGHT(F5,1))=Low,UnitCostLow, IF(UPPER(RIGHT(F5,1))=High,UnitCostHigh,UnitCostSpecified)),MATCH(UPPER(LEFT(F5,LEN(F5)-1)),CostCode,0))) -> 0 | H5: =G5*E5 -> 0
B6: extra personnel | D6: manmonths | F6: =NA() ->  | G6: 0 | H6: 0
B7: -electrician | D7: manmonths | F7: =NA() ->  | G7: =IF(ISNA(F7),0,INDEX(IF(UPPER(RIGHT(F7,1))=Low,UnitCostLow, IF(UPPER(RIGHT(F7,1))=High,UnitCostHigh,UnitCostSpecified)),MATCH(UPPER(LEFT(F7,LEN(F7)-1)),CostCode,0))) -> 0 | H7: =G7*E7 -> 0
B8: -mechanic | D8: manmonths | F8: =NA() ->  | G8: =IF(ISNA(F8),0,INDEX(IF(UPPER(RIGHT(F8,1))=Low,UnitCostLow, IF(UPPER(RIGHT(F8,1))=High,UnitCostHigh,UnitCostSpecified)),MATCH(UPPER(LEFT(F8,LEN(F8)-1)),CostCode,0))) -> 0 | H8: =G8*E8 -> 0
B9: annual fuel | D9: litre | F9: =NA() ->  | G9: 0 | H9: 0
B10: misc. supplies | D10: allow | F10: =NA() ->  | G10: =IF(ISNA(F10),0,INDEX(IF(UPPER(RIGHT(F10,1))=Low,UnitCostLow, IF(UPPER(RIGHT(F10,1))=High,UnitCostHigh,UnitCostSpecified)),MATCH(UPPER(LEFT(F10,LEN(F10)-1)),CostCode,0))) -> 0 | H10: =G10*E10 -> 0
B11: pick-up truck | D11: each | F11: =NA() ->  | G11: 0 | H11: 0
B12: small dozer | D12: allow | F12: =NA() ->  | G12: 0 | H12: 0
B13: small excavator | D13: allow | F13: =NA() ->  | G13: 0 | H13: 0
B14: snow machine | D14: allow | F14: =NA() ->  | G14: 0 | H14: 0
B15: communications | D15: allow | F15: =NA() ->  | G15: 0 | H15: 0
B16: SNP/AEMP water sampling & reporting | D16: each | F16: =NA() ->  | G16: 0 | H16: 0
B17: geotechnical assessment | D17: each | F17: =NA() ->  | G17: 0 | H17: 0
B18: interim water treatment | F18: =NA() ->  | H18: =AnnualTreat1Cost -> 561460.0463
B19: other | D19: each | F19: =NA() ->  | G19: 0 | H19: 0
G20: Annual Interim C&M Cost | H20: =SUM(H5:H19) -> 561460.0463
B21: Number of years of ICM | D21: years | E21: 3 | G21: Total | H21: =H20*E21 -> 1684380.139

Sheet PostClosure
A1: 1 | B1: Post-Closure Monitoring & Maintenance:
B3: ACTIVITY/MATERIAL | C3: Notes | D3: Units | E3: Quantity | F3: Cost Code | G3: Unit Cost | H3: Cost
B4: MONITORING & INSPECTIONS
B5: Annual geotechnical inspection | D5: each | E5: 1 | F5: VIH | G5: =IF(ISNA(F5),0,INDEX(IF(UPPER(RIGHT(F5,1))=Low,UnitCostLow, IF(UPPER(RIGHT(F5,1))=High,UnitCostHigh,UnitCostSpecified)),MATCH(UPPER(LEFT(F5,LEN(F5)-1)),CostCode,0))) -> 7977.7872 | H5: =G5*E5 -> 7977.7872
B6: Surface water sampling | D6: each | E6: 1 | F6: WSH | G6: =IF(ISNA(F6),0,INDEX(IF(UPPER(RIGHT(F6,1))=Low,UnitCostLow, IF(UPPER(RIGHT(F6,1))=High,UnitCostHigh,UnitCostSpecified)),MATCH(UPPER(LEFT(F6,LEN(F6)-1)),CostCode,0))) -> 10000 | H6: =G6*E6 -> 10000
B7: Groundwater Sampling | D7: each | E7: 1 | F7: WSH | G7: 10000 | H7: 10000
B8: Receiving/downstream water sampling | D8: each | E8: 1 | F8: WSH | G8: 10000 | H8: 10000
B9: Monitoring program as per plan | D9: each | E9: 0.5 | F9: AEM | G9: 100000 | H9: 50000
B10: Survey inspection | D10: each | F10: =NA() ->  | G10: 0 | H10: 0
B11: Regulatory costs* | D11: each | F11: =NA() ->  | G11: 0 | H11: =G11*E11 -> 0
B12: Site water monitoring (AEMP and SNP) | D12: each | F12: =NA() ->  | G12: =IF(ISNA(F12),0,INDEX(IF(UPPER(RIGHT(F12,1))=Low,UnitCostLow, IF(UPPER(RIGHT(F12,1))=High,UnitCostHigh,UnitCostSpecified)),MATCH(UPPER(LEFT(F12,LEN(F12)-1)),CostCode,0))) -> 0 | H12: 0
B13: - Active closure and flooding | D13: each | F13: =NA() ->  | G13: 0 | H13: 0
B14: - Post pit flooding | D14: each | F14: =NA() ->  | G14: 0 | H14: 0
B15: Air Quality Monitoring Program (AQMP) | D15: each | F15: =NA() ->  | G15: 0 | H15: 0
B16: Wildlife Effects Monitoring Program (WEMP) | D16: each | F16: =NA() ->  | G16: =IF(ISNA(F16),0,INDEX(IF(UPPER(RIGHT(F16,1))=Low,UnitCostLow, IF(UPPER(RIGHT(F16,1))=High,UnitCostHigh,UnitCostSpecified)),MATCH(UPPER(LEFT(F16,LEN(F16)-1)),CostCode,0))) -> 0 | H16: 0
B17: Vegetation Monitoring | D17: each | F17: =NA() ->  | G17: 0 | H17: 0
B18: Other | F18: =NA() ->  | G18: =IF(ISNA(F18),0,INDEX(IF(UPPER(RIGHT(F18,1))=Low,UnitCostLow, IF(UPPER(RIGHT(F18,1))=High,UnitCostHigh,UnitCostSpecified)),MATCH(UPPER(LEFT(F18,LEN(F18)-1)),CostCode,0))) -> 0 | H18: =G18*E18 -> 0
B19: COVER MAINTENANCE
B20: Repair erosion - infill gullies | D20: allow | F20: =NA() ->  | G20: 0 | H20: =G20*E20 -> 0
B21: Repair erosion - upgrade diversion ditches | D21: allow | F21: =NA() ->  | G21: 0 | H21: 0
B22: Remove problem vegetation | D22: allow | F22: =NA() ->  | G22: 0 | H22: 0
B23: Repair animal damage | D23: allow | F23: =NA() ->  | G23: 0 | H23: 0
B24: Repair/upgrade access controls | D24: allow | F24: =NA() ->  | G24: 0 | H24: 0
B25: Other | F25: =NA() ->  | G25: 0 | H25: 0
B26: SPILLWAY MAINTENANCE
B27: Repair erosion | D27: m3 | F27: =NA() ->  | G27: 0 | H27: =G27*E27 -> 0
B28: Clear spillway | D28: each | F28: =NA() ->  | G28: 0 | H28: =G28*E28 -> 0
B29: CWTS MAINTENANCE
B30: Maintain flow, restore vegetation | D30: allow | F30: =NA() ->  | G30: =IF(ISNA(F30),0,INDEX(IF(UPPER(RIGHT(F30,1))=Low,UnitCostLow, IF(UPPER(RIGHT(F30,1))=High,UnitCostHigh,UnitCostSpecified)),MATCH(UPPER(LEFT(F30,LEN(F30)-1)),CostCode,0))) -> 0 | H30: =G30*E30 -> 0
B31: POST-CLOSURE WATER TREATMENT
B32: Subtotal, Annual post-closure costs | H32: =SUM(H5:H31)+0.0001 -> 87977.7873
B33: Discount rate for calculation of net present value of post-closure cost, % | F33: 0
B34: Number of years of post-closure activity | F34: 10 | G34: years
B35: Present Value of payment stream | H35: =PV(DiscountRate,PCYears, PCAnnualTotal)*-1 -> 879777.873
B37: *Regulatory costs - annual reporting, management plans, progress reports etc.

Sheet Mobilization
A1: Mobilization/Demobilization:
A3: ACTIVITY/MATERIAL | B3: Notes | C3: Units | D3: Quantity | E3: Cost Code | F3: Unit Cost | G3: Cost
A4: MOBILIZE HEAVY EQUIPMENT
A5: Excavators | C5: each | E5: =NA() ->  | F5: =IF(ISNA(E5),0,INDEX(IF(UPPER(RIGHT(E5,1))=Low,UnitCostLow, IF(UPPER(RIGHT(E5,1))=High,UnitCostHigh,UnitCostSpecified)),MATCH(UPPER(LEFT(E5,LEN(E5)-1)),CostCode,0))) -> 0 | G5: =F5*D5 -> 0
A6: Dump trucks | C6: each | E6: =NA() ->  | F6: 0 | G6: 0
A7: Dozers | C7: each | E7: =NA() ->  | F7: 0 | G7: 0
A8: Demolition shears | C8: each | D8: 1 | E8: AEM | F8: 1000000 | G8: 1000000
A9: Crane | C9: each | E9: =NA() ->  | F9: 0 | G9: 0
A10: Loader | C10: each | E10: =NA() ->  | F10: 0 | G10: =F10*D10 -> 0
A11: Compactor | C11: each | E11: =NA() ->  | F11: 0 | G11: =F11*D11 -> 0
A12: Light duty vehicles | C12: each | E12: =NA() ->  | F12: 0 | G12: 0
A13: MOBILIZE MISC. EQUIPMENT
A14: Pump shipping | C14: each | E14: =NA() ->  | F14: =IF(ISNA(E14),0,INDEX(IF(UPPER(RIGHT(E14,1))=Low,UnitCostLow, IF(UPPER(RIGHT(E14,1))=High,UnitCostHigh,UnitCostSpecified)),MATCH(UPPER(LEFT(E14,LEN(E14)-1)),CostCode,0))) -> 0 | G14: =F14*D14 -> 0
A15: Pipe shipping | C15: m | E15: =NA() ->  | F15: =IF(ISNA(E15),0,INDEX(IF(UPPER(RIGHT(E15,1))=Low,UnitCostLow, IF(UPPER(RIGHT(E15,1))=High,UnitCostHigh,UnitCostSpecified)),MATCH(UPPER(LEFT(E15,LEN(E15)-1)),CostCode,0))) -> 0 | G15: =F15*D15 -> 0
A16: Minor tools and equipment | C16: allow | E16: =NA() ->  | F16: =IF(ISNA(E16),0,INDEX(IF(UPPER(RIGHT(E16,1))=Low,UnitCostLow, IF(UPPER(RIGHT(E16,1))=High,UnitCostHigh,UnitCostSpecified)),MATCH(UPPER(LEFT(E16,LEN(E16)-1)),CostCode,0))) -> 0 | G16: =F16*D16 -> 0
A17: Truck tires | C17: allow | E17: =NA() ->  | F17: =IF(ISNA(E17),0,INDEX(IF(UPPER(RIGHT(E17,1))=Low,UnitCostLow, IF(UPPER(RIGHT(E17,1))=High,UnitCostHigh,UnitCostSpecified)),MATCH(UPPER(LEFT(E17,LEN(E17)-1)),CostCode,0))) -> 0 | G17: =F17*D17 -> 0
A18: Other | E18: =NA() ->  | F18: =IF(ISNA(E18),0,INDEX(IF(UPPER(RIGHT(E18,1))=Low,UnitCostLow, IF(UPPER(RIGHT(E18,1))=High,UnitCostHigh,UnitCostSpecified)),MATCH(UPPER(LEFT(E18,LEN(E18)-1)),CostCode,0))) -> 0 | G18: 0
A19: MOBILIZE CAMP
A20: Reclamation activities | C20: allow | E20: =NA() ->  | F20: =IF(ISNA(E20),0,INDEX(IF(UPPER(RIGHT(E20,1))=Low,UnitCostLow, IF(UPPER(RIGHT(E20,1))=High,UnitCostHigh,UnitCostSpecified)),MATCH(UPPER(LEFT(E20,LEN(E20)-1)),CostCode,0))) -> 0 | G20: =F20*D20 -> 0
A21: Long term reclamation activities (eg pump flooding) | C21: allow | E21: =NA() ->  | F21: =IF(ISNA(E21),0,INDEX(IF(UPPER(RIGHT(E21,1))=Low,UnitCostLow, IF(UPPER(RIGHT(E21,1))=High,UnitCostHigh,UnitCostSpecified)),MATCH(UPPER(LEFT(E21,LEN(E21)-1)),CostCode,0))) -> 0 | G21: =F21*D21 -> 0
A22: MOBILIZE WORKERS
A23: rotations over reclamation period | C23: manhours | D23: =12*365*24 -> 105120 | E23: AEM | F23: 75 | G23: =F23*D23 -> 7884000
A24: crew transportation | C24: each | D24: =26*12 -> 312 | E24: AEM | F24: =693*2 -> 1386 | G24: 432432
A25: Reclamation activities - transport | C25: each | E25: =NA() ->  | F25: =IF(ISNA(E25),0,INDEX(IF(UPPER(RIGHT(E25,1))=Low,UnitCostLow, IF(UPPER(RIGHT(E25,1))=High,UnitCostHigh,UnitCostSpecified)),MATCH(UPPER(LEFT(E25,LEN(E25)-1)),CostCode,0))) -> 0 | G25: 0
A26: Reclamation activities - travel time | C26: manhours | E26: =NA() ->  | F26: =IF(ISNA(E26),0,INDEX(IF(UPPER(RIGHT(E26,1))=Low,UnitCostLow, IF(UPPER(RIGHT(E26,1))=High,UnitCostHigh,UnitCostSpecified)),MATCH(UPPER(LEFT(E26,LEN(E26)-1)),CostCode,0))) -> 0 | G26: 0
A27: Long term reclamation activities (eg pump flooding) - transport | C27: each | E27: =NA() ->  | F27: =IF(ISNA(E27),0,INDEX(IF(UPPER(RIGHT(E27,1))=Low,UnitCostLow, IF(UPPER(RIGHT(E27,1))=High,UnitCostHigh,UnitCostSpecified)),MATCH(UPPER(LEFT(E27,LEN(E27)-1)),CostCode,0))) -> 0 | G27: 0
A28: Long term reclamation activities (eg pump flooding) - travel time | C28: each | E28: =NA() ->  | F28: =IF(ISNA(E28),0,INDEX(IF(UPPER(RIGHT(E28,1))=Low,UnitCostLow, IF(UPPER(RIGHT(E28,1))=High,UnitCostHigh,UnitCostSpecified)),MATCH(UPPER(LEFT(E28,LEN(E28)-1)),CostCode,0))) -> 0 | G28: 0
A29: Monitoring Airfare | C29: each | E29: =NA() ->  | F29: =IF(ISNA(E29),0,INDEX(IF(UPPER(RIGHT(E29,1))=Low,UnitCostLow, IF(UPPER(RIGHT(E29,1))=High,UnitCostHigh,UnitCostSpecified)),MATCH(UPPER(LEFT(E29,LEN(E29)-1)),CostCode,0))) -> 0 | G29: 0
A30: WORKER ACCOMODATIONS
A31: Reclamation activities | C31: manmonths | D31: =12*12 -> 144 | E31: ACCM | F31: =86*30 -> 2580 | G31: =F31*D31 -> 371520
A32: Long term reclamation activities (eg pump flooding) | C32: manmonths | E32: =NA() ->  | F32: =IF(ISNA(E32),0,INDEX(IF(UPPER(RIGHT(E32,1))=Low,UnitCostLow, IF(UPPER(RIGHT(E32,1))=High,UnitCostHigh,UnitCostSpecified)),MATCH(UPPER(LEFT(E32,LEN(E32)-1)),CostCode,0))) -> 0 | G32: =F32*D32 -> 0
A33: MOBILIZE FUEL
A34: Fuel freight - reclamation activities | C34: litre | E34: =NA() ->  | F34: =IF(ISNA(E34),0,INDEX(IF(UPPER(RIGHT(E34,1))=Low,UnitCostLow, IF(UPPER(RIGHT(E34,1))=High,UnitCostHigh,UnitCostSpecified)),MATCH(UPPER(LEFT(E34,LEN(E34)-1)),CostCode,0))) -> 0 | G34: =F34*D34 -> 0
A35: Fuel freight - long term reclamation activities | C35: litre | E35: =NA() ->  | F35: =IF(ISNA(E35),0,INDEX(IF(UPPER(RIGHT(E35,1))=Low,UnitCostLow, IF(UPPER(RIGHT(E35,1))=High,UnitCostHigh,UnitCostSpecified)),MATCH(UPPER(LEFT(E35,LEN(E35)-1)),CostCode,0))) -> 0 | G35: =F35*D35 -> 0
A36: Fuel freight accomodations | C36: litre | E36: =NA() ->  | F36: =IF(ISNA(E36),0,INDEX(IF(UPPER(RIGHT(E36,1))=Low,UnitCostLow, IF(UPPER(RIGHT(E36,1))=High,UnitCostHigh,UnitCostSpecified)),MATCH(UPPER(LEFT(E36,LEN(E36)-1)),CostCode,0))) -> 0 | G36: =F36*D36 -> 0
A37: WINTER ROAD
A38: Construction and operation | C38: km | E38: =NA() ->  | F38: =IF(ISNA(E38),0,INDEX(IF(UPPER(RIGHT(E38,1))=Low,UnitCostLow, IF(UPPER(RIGHT(E38,1))=High,UnitCostHigh,UnitCostSpecified)),MATCH(UPPER(LEFT(E38,LEN(E38)-1)),CostCode,0))) -> 0 | G38: =F38*D38 -> 0
A39: Limited winter use | C39: km | E39: =NA() ->  | F39: =IF(ISNA(E39),0,INDEX(IF(UPPER(RIGHT(E39,1))=Low,UnitCostLow, IF(UPPER(RIGHT(E39,1))=High,UnitCostHigh,UnitCostSpecified)),MATCH(UPPER(LEFT(E39,LEN(E39)-1)),CostCode,0))) -> 0 | G39: =F39*D39 -> 0
A40: Winter road tarriff | C40: km | E40: =NA() ->  | F40: =IF(ISNA(E40),0,INDEX(IF(UPPER(RIGHT(E40,1))=Low,UnitCostLow, IF(UPPER(RIGHT(E40,1))=High,UnitCostHigh,UnitCostSpecified)),MATCH(UPPER(LEFT(E40,LEN(E40)-1)),CostCode,0))) -> 0 | G40: =F40*D40 -> 0
A41: DEMOBILIZE HEAVY EQUIPMENT
A42: Excavators | C42: km | E42: =NA() ->  | F42: =IF(ISNA(E42),0,INDEX(IF(UPPER(RIGHT(E42,1))=Low,UnitCostLow, IF(UPPER(RIGHT(E42,1))=High,UnitCostHigh,UnitCostSpecified)),MATCH(UPPER(LEFT(E42,LEN(E42)-1)),CostCode,0))) -> 0 | G42: =F42*D42 -> 0
A43: Dump trucks | C43: km | E43: =NA() ->  | F43: =IF(ISNA(E43),0,INDEX(IF(UPPER(RIGHT(E43,1))=Low,UnitCostLow, IF(UPPER(RIGHT(E43,1))=High,UnitCostHigh,UnitCostSpecified)),MATCH(UPPER(LEFT(E43,LEN(E43)-1)),CostCode,0))) -> 0 | G43: 0
A44: Dozers | C44: km | E44: =NA() ->  | F44: 0 | G44: 0
A45: Demolition shears | C45: km | E45: =NA() ->  | F45: 0 | G45: 0
A46: Crane | C46: km | E46: =NA() ->  | F46: 0 | G46: 0
A47: Loader | C47: km | E47: =NA() ->  | F47: =IF(ISNA(E47),0,INDEX(IF(UPPER(RIGHT(E47,1))=Low,UnitCostLow, IF(UPPER(RIGHT(E47,1))=High,UnitCostHigh,UnitCostSpecified)),MATCH(UPPER(LEFT(E47,LEN(E47)-1)),CostCode,0))) -> 0 | G47: =F47*D47 -> 0
A48: Compactor | C48: each | E48: =NA() ->  | F48: =IF(ISNA(E48),0,INDEX(IF(UPPER(RIGHT(E48,1))=Low,UnitCostLow, IF(UPPER(RIGHT(E48,1))=High,UnitCostHigh,UnitCostSpecified)),MATCH(UPPER(LEFT(E48,LEN(E48)-1)),CostCode,0))) -> 0 | G48: =F48*D48 -> 0
A49: Light duty vehicles | C49: km | E49: =NA() ->  | F49: 0 | G49: 0
A50: Other | C50: km | E50: =NA() ->  | F50: 0 | G50: 0
A51: DEMOBILIZE CAMP
C52: allow | E52: =NA() ->  | F52: =IF(ISNA(E52),0,INDEX(IF(UPPER(RIGHT(E52,1))=Low,UnitCostLow, IF(UPPER(RIGHT(E52,1))=High,UnitCostHigh,UnitCostSpecified)),MATCH(UPPER(LEFT(E52,LEN(E52)-1)),CostCode,0))) -> 0 | G52: =F52*D52 -> 0
A53: DEMOBILIZE WORKERS
A54: crew travel time | C54: mandays | E54: =NA() ->  | F54: =IF(ISNA(E54),0,INDEX(IF(UPPER(RIGHT(E54,1))=Low,UnitCostLow, IF(UPPER(RIGHT(E54,1))=High,UnitCostHigh,UnitCostSpecified)),MATCH(UPPER(LEFT(E54,LEN(E54)-1)),CostCode,0))) -> 0 | G54: =F54*D54 -> 0
A55: crew transportation | C55: each | E55: =NA() ->  | F55: =IF(ISNA(E55),0,INDEX(IF(UPPER(RIGHT(E55,1))=Low,UnitCostLow, IF(UPPER(RIGHT(E55,1))=High,UnitCostHigh,UnitCostSpecified)),MATCH(UPPER(LEFT(E55,LEN(E55)-1)),CostCode,0))) -> 0 | G55: =F55*D55 -> 0
A56: WINTER ROAD
A57: Construction and operation | C57: km | E57: =NA() ->  | F57: =IF(ISNA(E57),0,INDEX(IF(UPPER(RIGHT(E57,1))=Low,UnitCostLow, IF(UPPER(RIGHT(E57,1))=High,UnitCostHigh,UnitCostSpecified)),MATCH(UPPER(LEFT(E57,LEN(E57)-1)),CostCode,0))) -> 0 | G57: =F57*D57 -> 0
A58: Limited winter use | C58: km | E58: =NA() ->  | F58: =IF(ISNA(E58),0,INDEX(IF(UPPER(RIGHT(E58,1))=Low,UnitCostLow, IF(UPPER(RIGHT(E58,1))=High,UnitCostHigh,UnitCostSpecified)),MATCH(UPPER(LEFT(E58,LEN(E58)-1)),CostCode,0))) -> 0 | G58: =F58*D58 -> 0
A59: Winter road tarriff | C59: km | E59: =NA() ->  | F59: =IF(ISNA(E59),0,INDEX(IF(UPPER(RIGHT(E59,1))=Low,UnitCostLow, IF(UPPER(RIGHT(E59,1))=High,UnitCostHigh,UnitCostSpecified)),MATCH(UPPER(LEFT(E59,LEN(E59)-1)),CostCode,0))) -> 0 | G59: =F59*D59 -> 0
F60: Total | G60: =SUM(G5:G59)+0.0001 -> 9687952

Sheet Unit_Costs
A1: Unit Cost Table (for refining unit costs see "Estimator" worksheet)
D2: Filter by unit
A4: ITEM | B4: Detail | D4: COST CODE | E4: UNITS | F4: LOW $ | G4: HIGH $ | H4: SPECIFIED $ | J4: COMMENTS
A6: Accomodation
D7: ACCM | E7: manday | F7: 100 | G7: 175
A8: Buildings - Decontaminate
B9: Asbestos | D9: BDA | E9: m2 | F9: 25.6 | G9: 51.2 | J9: Low: removal of asbestos siding & flooring; High: removal of insulated pipes, friable asbestos
A10: Buildings - Remove | J10: Unit costs are based on 3m high, single storey building. Scale areas accordingly.
B11: Wood | D11: BRW | E11: m2 | F11: 27.5 | G11: 41
B12: Concrete | D12: BRC | E12: m2 | F12: 40 | G12: 65 | H12: 6 | J12: Specified: puncture concrete foundation slabs
B13: Steel - teardown | D13: BRS1 | E13: m2 | F13: 45 | G13: 65
B14: Steel - for salvage | D14: BRS2 | E14: m2 | F14: 67 | G14: 100
A15: Concrete work
B16: Small pour | D16: CSF | E16: m3 | F16: 426.5 | G16: 639.75 | J16: Low: YK; High=1.5xLow
B17: Large pour | D17: CLF | E17: m3 | F17: 353.5 | G17: 530.25 | H17: 2130 | J17: Specified: concrete crown pillar
A18: Contaminated Soils
B19: ESA Phase 1 | D19: CS1 | E19: each | F19: 7500 | J19: Low: small, "clean" site
B20: ESA Phase 1 | D20: CS2 | E20: each | F20: 50000 | J20: Low: small, "clean" site
B21: Remediate on site | D21: CSR | E21: m3 | F21: 47 | G21: 146
A22: Dozing
B23: doze rock piles | D23: DR | E23: m3 | F23: 1.05 | G23: 2.4 | J23: Low cost: doze crest off dump
B24: doze overburden/soil piles | D24: DS | E24: m3 | F24: 0.95 | G24: 3.8 | J24: High cost: push up to 300 m
A25: Excavate Rock; Low Spec's and QA/QC
B26: drill/blast/load/short haul | D26: RB1 | E26: m3 | F26: 11.4 | G26: 17.05 | J26: Low:quarry operations for bulk fill
B27: drill/blast/load/long haul | D27: RB2 | E27: m3 | F27: 12.05 | G27: 17.8
B28: RB1 + spread and compact | D28: RB3 | E28: m3 | F28: 12.05 | G28: 17.8
B29: RB2 + spread and compact | D29: RB4 | E29: m3 | F29: 12.5 | G29: 30.75
B30: Specified activity | D30: RBS | E30: m3
A31: Excavate Rock; High Spec's and QA/QC | J31: (e.g. ditch/spillway excavation)
B32: drill/blast/load/short haul | D32: RC1 | E32: m3 | F32: 12.05 | G32: 17.8 | J32: Low:foundation excavation;High:spillway excavation
B33: drill/blast/load/long haul | D33: RC2 | E33: m3 | F33: 12.7 | G33: 18.4
B34: RC1 + spread and compact | D34: RC3 | E34: m3 | F34: 12.7 | G34: 18.4 | J34: e,g, cover construction
B35: RC2 + spread and compact | D35: RC4 | E35: m3 | F35: 13.5 | G35: 19.2 | J35: e,g, cover construction
B36: Specified activity | D36: RCS | E36: m3 | H36: 175 | J36: Specified-drift excavation
A37: Excavate Rip Rap
B38: drill/blast/load/short haul/place | D38: RR1 | E38: m3 | F38: 13.5 | G38: 17.75 | J38: High: quarry & place rip rap in channel
B39: drill/blast/load/long haul/place | D39: RR2 | E39: m3 | F39: 14.2 | G39: 20.65
B40: source is waste dump/short haul | D40: RR3 | E40: m3 | F40: 7 | J40: cost includes sorting
B41: source is waste dump/long haul | D41: RR4 | E41: m3 | F41: 7.6
B42: Specified activity | D42: RRS | E42: m3
A43: Excavate Soil; Low Spec's and QA/QC
B44: clear & grub | D44: SBC | E44: m2 | F44: 3.4 | G44: 5
B45: excavate/load/short haul | D45: SB1 | E45: m3 | F45: 4.3 | G45: 5.9
B46: excavate/load/long haul | D46: SB2 | E46: m3 | F46: 4.6 | G46: 7.3
B47: SB1 + spread and compact | D47: SB3 | E47: m3 | F47: 5.1 | G47: 8.9 | J47: Low: non-engineered; High:engineered
B48: SB2 + spread and compact | D48: SB4 | E48: m3 | F48: 5.5 | G48: 11 | J48: Low: non-engineered; High:engineered
B49: Specified activity | D49: SBS | E49: m3 | F49: 3.2 | G49: 6.3 | J49: Low: rehandle waste rock dump by dozing; High:rehandle waste rock by hauling
B50: Tailings | D50: SBT | E50: m3 | F50: 1.35 | G50: 3.7 | H50: 15.5 | J50: High:contour surface - wet or frozen; Specified:haul/place wet infill
A51: Excavate Soil, High Spec's and QA/QC
B52: excavate/load/short haul | D52: SC1 | E52: m3 | F52: 6.8 | G52: 9.3
B53: excavate/load/long haul | D53: SC2 | E53: m3 | F53: 7.1 | G53: 11.75
B54: SC1 + spread and compact | D54: SC3 | E54: m3 | F54: 8.9 | G54: 14.2 | J54: Low: non-engineered; High:engineered
B55: SC2 + spread and compact | D55: SC4 | E55: m3 | F55: 9.3 | G55: 23.2 | J55: Low: non-engineered; High:engineered (e.g. complex covers, low volume dam construction)
B56: Specified activity | D56: SCS | E56: m3 | H56: 18.8 | J56: Backfill adit with waste rock
A57: Fence
D58: FNC | E58: m | F58: 13.55 | G58: 203
A59: Fuel and Electricity
B60: Fuel cost - gas | D60: FCG | E60: litre | F60: 1.05 | G60: 1.4
B61: Fuel cost - diesel | D61: FCD | E61: litre | F61: 0.99 | G61: 1.39
B62: Fuel mobilization | D62: FCM | E62: litre | F62: 0.22 | G62: 0.42 | J62: High: winter road usage
B63: Electricity | D63: FCE | E63: kW-h | F63: 0.17 | G63: 0.19 | H63: 0.49 | J63: Low and High:Yellowknife; Specified:diesel generator
A64: Geo-Synthetics
B65: geotextile | D65: GST | E65: m2 | F65: 3.44 | J65: Supply and install
B66: geogrid | D66: GSG | E66: m2 | F66: 5.75
B67: liner, HDPE | D67: GSHDPE | E67: m2 | F67: 7.95 | J67: Supply and install; large quantity
B68: liner, ES3 | D68: GSES3 | E68: m2 | F68: 20.2 | J68: FOB Yellowknife
B69: geosynthetic installation | D69: GSI | E69: m2 | F69: 3.16 | G69: 14 | J69: Low:geotextile; High:ES3 or HDPE
B70: bentonite soil ammendment | D70: GSBA | E70: tonne | F70: 308.3 | G70: 348.5 | J70: FOB Edmonton, add shipping & mixing
A71: Grouting (/m3 of rock grouted)
D72: grout | E72: m3 | F72: 236.55 | G72: 286.75 | J72: High: cement, FOB Yellowknife
A73: Laboratory Chemicals
B74: Remove from site | D74: LCR | E74: pallet | F74: 1966.356 | G74: 2606.82624
A75: Labour & Equipment Rates
B76: Site manager | D76: sman | E76: $/hr | F76: 125 | G76: 152
B77: Supervisor | D77: super | E77: $/hr | F77: 52 | G77: 91.84
B78: Registered engineer | D78: eng | E78: $/hr | F78: 95 | G78: 220
B79: Environmental coordinator | D79: envco | E79: $/hr | F79: 74.16 | G79: 130
B80: Evironmental technologist | D80: envtech | E80: $/hr | F80: 36
B81: Electrician | D81: elec | E81: $/hr | F81: 74 | G81: 95
B82: Journeyman - various | D82: journey | E82: $/hr | F82: 44 | G82: 71.79
B83: Labour - skilled | D83: lab-s | E83: $/hr | F83: 41 | G83: 49.6
B84: Labour - unskilled | D84: lab-us | E84: $/hr | F84: 31 | G84: 43.98
B85: Equipment operator | D85: oper | E85: $/hr | F85: 41 | G85: 65
B86: Heavy duty mechanic | D86: mech | E86: $/hr | F86: 49 | G86: 72.85
B87: Water treatment plant operator | D87: oper-wt | E87: $/hr | F87: 41 | G87: 59.86
B88: Security / first aid | D88: safety | E88: $/hr | F88: 36 | G88: 66.97
B89: Administative staff | D89: admin | E89: $/hr | F89: 38 | G89: 57.89
B91: Equipment rates include operator and fuel
B92: Loader - 4 cu.yd (3.06m3) | D92: load-s | E92: $/hr | F92: 175
B93: Loader - 7 cu.yd (5.35m3) | D93: load-l | E93: $/hr | F93: 315
B94: Excavator - 26.76-30.84 tonnes | D94: exc-s | E94: $/hr | F94: 190
B95: Excavator - 68.95+tonnes | D95: exc-l | E95: $/hr | F95: 420
B96: Grader | D96: grad | E96: $/hr | F96: 190
B97: Dump truck off hwy 30-50 tonnes | D97: truck-s | E97: $/hr | F97: 225
B98: Dump truck off hwy 55-75 tonnes | D98: truck-l | E98: $/hr | F98: 300
B99: dozer, small | D99: dozers | E99: $/hr | F99: 205 | G99: 260
B100: dozer, large | D100: dozerl | E100: $/hr | F100: 490 | G100: 565
B101: smooth drum compactor | D101: comp | E101: $/hr | F101: 155
B102: scooptram, 6 yd3 bucket | D102: scoop | E102: $/hr | F102: 170
B103: flat bed truck with hiab | D103: hiab | E103: $/hr | F103: 155
B104: fuel truck | D104: ftruck | E104: $/hr | F104: 150
B105: water truck | D105: wtruck | E105: $/hr | F105: 58 | G105: 150
A106: Mobilize Heavy Equipment
B107: Road access | D107: MHER | E107: kmtonne | F107: 3.4 | G107: 10.25
B108: Air access | D108: MHEA | E108: kmtonne | F108: 12 | J108: cargo rate>500lb
A109: Mobilize Camp
B110: Road access | D110: MCR | E110: each | F110: 50000 | J110: refurbish existing camp
A111: Mobilize Workers
B112: flight | D112: MW | E112: each | F112: 4500 | G112: 9100 | J112: Low:e.g. 8 passenger; High: Dash 7
A113: Oil Removal
B114: oil removal | D114: OR | E114: litre | F114: 0.43 | G114: 1.2 | J114: Low:waste oil heater; High: ship offsite
A115: PCB Removal
B116: Remove from site | D116: PCBR | E116: litre | F116: 40.2 | G116: 46.9 | J116: Low: shipping, handling & disposal from Yellowknife
A117: Pipes, small (<6in dia.)
B118: remove/dispose on site | D118: PSR | E118: m | F118: 1 | G118: 24 | J118: Low: remove/dispose on site; High: remove/re-use
B119: supply | D119: PSS | E119: m | F119: 6.1 | G119: 11.1 | J119: Low:supply; High:supply and ship
B120: install | D120: PSI | E120: m | F120: 25
A121: Pipes, large (>6in dia.)
B122: remove/dispose on site | D122: PLR | E122: m | F122: 22 | G122: 72 | J122: Low: remove/dispose on site; High: remove/re-use
B123: supply | D123: PLS | E123: m | F123: 129 | G123: 143 | J123: Low:supply; High:supply and ship
B124: install | D124: PLI | E124: m | F124: 50
A125: Power Lines
B126: remove/dispose on site | D126: POWR | E126: m | F126: 25.5
A127: Process Chemicals
B128: Remove from site | D128: PCR | E128: kg | F128: 0.45 | G128: 2.5 | J128: Low: shipping, handling & disposal from Yellowknife
A129: Pumps
B130: Pump capital cost | D130: PC | E130: each | F130: 195000
B131: Pump shipping | D131: PS | E131: each | F131: 2500
B132: Pump operating cost | D132: POC | E132: m3 | F132: 0.12 | J132: pump operating costs should be calculated based on pump capacity, fuel costs, etc.
B133: Pump maintenance | D133: PM | E133: allow | F133: 25000
B134: Pump removal - small | D134: PR | E134: each | F134: 3370 | G134: 6742
B135: Pump to flood - install | D135: PF | E135: each | F135: 350000 | G135: 450000
A136: Pump sand BackFill
D137: PBF | E137: m3 | F137: 85 | G137: 300
A138: Scarify - road/mine site
D139: SCFY | E139: ha | F139: 4300 | G139: 6030 | H139: 2150
A140: Shaft, Raise & Portal Closures
B141: Shaft & Raises | D141: SR | E141: m2 | F141: 645 | G141: 2132 | J141: Low:pre-cast concrete slabs, little site prep. Area=shaft+>1m all around
B142: Portals | D142: POR | E142: m3 | F142: 18.8 | G142: 250 | H142: 1200 | J142: Low:unit cost code SCS;High:excavate & backfill collapsed portal;Spec: installed pressure plug
A143: Signs
B144: Signs | D144: S | E144: each | F144: 12.359952 | G144: 37.079856
A145: Site Inspection Report
D146: RPT | E146: each | F146: 10000 | G146: 20000
A147: SpillWay - Clear
D148: SW | E148: each | F148: 3000 | G148: 7000
A149: Survey/Instrumentation
D150: SI | E150: each | F150: 1800 | G150: 3600 | J150: 2 person crew
A151: Treatment Plant - Construct
B152: Small (< 1000 m3/d) | D152: TPS | E152: lump sum | F152: 9000000 | G152: 15000000
B153: Large (> 1000 m3/d) | D153: TPL | E153: lump sum | F153: 15000000 | G153: 46000000
B154: Constructed Wetland | D154: CWTS | E154: ha | F154: 200000 | G154: 300000
A155: Treatment Plant - Operate
D156: TPO | E156: m3 | F156: 0.35 | G156: 2
A157: Treatment Chemicals
B158: ferric sulphate | D158: ferric | E158: kg | F158: 1.19
B159: ferrous sulphate | D159: ferrous | E159: kg | F159: 1.32
B160: lime | D160: lime | E160: kg | F160: 0.56
B161: hydrogen peroxide, 35% | D161: hperox | E161: kg | F161: 1.5
B162: Sodium Metabisulfate | D162: Nametab | E162: kg | F162: 1.18
B163: Caustic soda, 50% | D163: caustic | E163: kg | F163: 0.74
B164: Sulfuric acid, 93% | D164: sulfuric | E164: kg | F164: 0.31
B165: flocculant | D165: flocc | E165: kg | F165: 6
B166: copper sulphate | D166: copper | E166: kg
B167: shipping | D167: shipping | E167: kg | F167: 0.2
A168: Vegetation
B169: Hydroseed, Flat | D169: VHF | E169: ha | F169: 4000
B170: Hydroseed, Sloped | D170: VHS | E170: ha | F170: 4500
B171: Veg. blanket/erosion mat | D171: VB | E171: ha | F171: 13000
B172: Tree planting | D172: VT | E172: ha | F172: 2600 | G172: 6000
B173: Wetland species | D173: VW | E173: ha | H173: 47.72 | J173: Specified= /m3, Wetland Growth Media Substrate mixed and installed (sand, biochar and fertilizer, woodchips)
A174: Visual Site Inspection
B175: Visual site inspection | D175: VI | E175: each | F175: 3955.18464 | G175: 7977.7872 | H175: 11016
A176: Water Sampling/Analysis/Reporting
D177: WS | E177: each | F177: 7000 | G177: 10000
A178: Winter Road
B179: Construction | D179: WRC | E179: km | F179: 2000 | G179: 11500
B180: Usage | D180: WRU | E180: kmtonne | F180: 0.29

Sheet Estimator
B1: Unit Cost Estimator | D1: 1 | E1: Equipment Productivity Figures and Graphs have been reproduced from Caterpillar Performance Handbook - Edition 42
B2: EXCAVATION | G2: HAUL AND DUMPING | L2: SPREADING/DOZING
B3: Productivity | G3: Productivity | L3: Productivity
B4: Machine | C4: Cat 336EL | G4: Machine | H4: Cat 770 | L4: Machine | M4: Cat D8
B5: bucket capacity | D5: 3.16 | E5: m3 | G5: truck capacity | I5: 25.1 | J5: m3 | L5: Estimate production using example curves provided or | N5: 600 | O5: m3/hr
B6: fill factor | D6: 0.75 | E6: % | G6: fill factor | I6: 0.8 | J6: % | L6: equivalent from other supplier
B7: cycle time | D7: 45 | E7: seconds | L7: Correction factors (see table provided)
B8: operator skill | D8: 0.8 | E8: % | G8: load time | I8: 6 | J8: min. | L8: operator skill | N8: 0.75
B9: machine availability | D9: 0.83 | E9: % | G9: haul distance | I9: 1.5 | J9: km | L9: material type, see table | N9: 0.8
B10: altitude adjustment | D10: 1 | E10: % | G10: average velocity | I10: 20 | J10: km/hr | L10: slot dozing | N10: 1
B11: Hourly productivity | D11: =D5*D6*(60*60/D7)*D8*D9*D10 -> 125.8944 | E11: m3/hr | G11: haul time + return time | I11: =+I9/I10*60*2 -> 9 | J11: min. | L11: side by side dozing | N11: 1
G12: wait time | I12: 0.5 | J12: min. | L12: visibility | N12: 1
G13: dump time | I13: 1 | J13: min. | L13: job efficiency | N13: 0.83
G14: cycle time | I14: =I8+SUM(I11:I13) -> 16.5 | J14: min. | L14: altitude adjustment | N14: 1
G15: machine availability | I15: 0.83 | J15: % | L15: slope adjustment | N15: 1
G16: altitude adjustment | I16: 1 | J16: % | L16: Hourly productivity | N16: =+N5*N8*N9*N10*N11*N12*N13*N14*N15 -> 298.8 | O16: m3/hr
I17: =I14*I15*I16 -> 13.695 | J17: ave. min/cycle
G18: Hourly productivity | I18: =I5*I6*60/I17 -> 87.97371303 | J18: m3/hr
B19: Operating Costs | G19: Operating Costs | L19: Operating Costs
B20: - Contractor | G20: - Contractor | L20: - Contractor
B21: Contractor hourly rate | D21: 180 | E21: $/hr | G21: Contractor hourly rate | I21: 225 | J21: $/hr | L21: Hourly rate - contractor supplied | N21: 260 | O21: $/hr
B22: Excavation cost - contractor rate | D22: =D21/D11 -> 1.429769712 | E22: $/m3 | G22: Haul and Dump - contractor rate | I22: =I21/I18 -> 2.557582171 | J22: $/m3 | L22: Dozing - contractor rate | N22: =N21/N16 -> 0.8701472557 | O22: $/m3
B24: - Owner | G24: - Owner | L24: - Owner
B25: ownership, daily | E25: $/day | G25: ownership, daily | J25: $/day | L25: ownership, daily | O25: $/day
B26: maintenance | E26: $/hr | G26: maintenance | J26: $/hr | L26: maintenance | O26: $/hr
B27: fuel | E27: $/hr | G27: fuel | J27: $/hr | L27: fuel | O27: $/hr
B28: consumables (cutters, tires) | E28: $/hr | G28: consumables (cutters, tires) | J28: $/hr | L28: consumables (cutters, tires) | O28: $/hr
B29: operator | E29: $/hr | G29: operator | J29: $/hr | L29: operator | O29: $/hr
B30: Owner hourly rate | D30: =D25/10+SUM(D26:D29) -> 0 | E30: $/hr | G30: Owner hourly rate | I30: =I25/10+SUM(I26:I29) -> 0 | J30: $/hr | L30: Owner hourly rate | N30: =N25/10+SUM(N26:N29) -> 0
B31: Excavation cost - owner rate | D31: =D30/D11 -> 0 | E31: $/m3 | G31: Haul/Dumping Cost - owner rate | I31: =I30/I18 -> 0 | J31: $/m3 | L31: Spreading/Dozing Cost - owner rate | N31: =N30/N16 -> 0 | O31: $/hr
B32: Excavation cost - select contractor or owner rate (D22 or D31) | E32: $/m3 | G32: Haul/Dumping Cost - select contractor or owner rate (I22 or I31 | J32: $/m3 | L32: Spreading/Dozing Cost - select contractor or owner rate (N22 or N31) | O32: $/m3
B36: Excavator | G36: Trucking | L36: Dozing
C37: Cat 320 | D37: Cat 325B | E37: Cat 375 | H37: Cat 771 D | I37: Cat 777D | J37: Cat 789C
B38: heaped bucket capacity, m3 | C38: 1.5 | D38: 2.2 | E38: 5.4 | G38: Truck capacity - heaped, m3 | H38: 27.5 | I38: 60.5 | J38: 137
D39: Typical Cycle Times (seconds)
B40: easy digging, shallow digging, small swing angle | C40: 16 | D40: 18 | E40: 20
B41: med. to hard digging, rocky soil, swing angle to 90 deg. | C41: 23 | D41: 23 | E41: 25
B42: tough digging, sandstone, caliche, at max. machine depth, swing angle > 120 deg. | C42: 27 | D42: 29 | E42: 35
B44: Material | C44: Fill Factor (% of heaped bucket capacity
B45: Moist loam or sandy clay | D45: 100 - 110
B46: sand and gravel (not till) | D46: 95 - 110
B47: hard tough clay | D47: 80 - 90
B48: rock - will blasted | D48: 60 - 75
B49: rock - poorly blasted | D49: 40 -60
B51: Operator Skill | C51: poor | D51: average | E51: good
B52: Correction factor | C52: 0.6 | D52: 0.75 | E52: 1
B54: Machine availability | C54: poor | D54: average | E54: good
B55: Correction factor | C55: 0.9 | D55: 0.95 | E55: 1

Sheet Tools
A1: The functions in this worksheet serve as a back up in the event that the menu item "Add-Ins" is not shown in Excel menu bar
C4: Save file before clearing all data
L6: These functions duplicate components within worksheet
C9: Shows both active worksheet as well as table of Unit Costs in a separate window
C12: Prints all worksheets having non-zero sums

Sheet Sheet1
